{"text_format":"1","workbook":"xlsx","n_sheets":13,"sheets":["Limitación a Mipymes","Datos","Solicitud Información General","Detalle Bienes de Aseo y Caf","Detalle Especificaciones","Observaciones Proveedores ","ConsolidadoServicios","solCotizacionCSV_es","Listas","ClasifiPersonal","TablaDinamica","temp","Precios"],"not_rendered":{"charts":0,"images":3,"macros":1,"external_links":0,"defined_names":34,"comments":0,"pivot_tables":0},"unopened":[],"bounds":{"document_bytes":16777216,"sheet_cells":100000,"rows_first":2000,"rows_last":500,"rows_between":2000,"halvings":0,"cell_chars":16384,"cell_head_chars":4096},"cells_cut":0,"cells_raw":0,"read":"whole","date_system":"1900"}

{"sheet":"Limitación a Mipymes","index":0,"n_rows":29,"n_cols":11,"rows_kept":29,"cut":false,"hidden":false,"merged":[[9,0,10,10],[11,0,11,8],[13,0,13,4],[26,13,27,14],[0,0,2,14],[19,3,19,10],[24,0,24,14],[26,0,27,8],[26,10,26,12],[22,0,22,2],[22,3,22,4],[5,0,6,10],[14,0,15,10],[17,0,17,10],[20,0,20,2],[20,3,20,10],[4,0,4,2],[8,0,8,1]]}
["SOLICITUD DE LIMITACIÓN A MIPYMES"]
[]
[]
[]
["¿Cuándo usar esta pestaña?"]
["Cuando como entidad compradora, previamente identifique que mi evento de cotización esta por debajo del umbral establecido en el Decreto 1860 de 2021: US$125.000"]
[]
[]
["¿Qué TRM debo usar?"]
["La tasa de cambio que para el efecto determina cada dos años el Ministerio de Comercio, Industria y Turismo, lo cual se puede verificar en la página de Colombia Compra Eficiente, a traves del siguiente link:"]
[]
["https://colombiacompra.gov.co/sites/cce_public/files/files_2020/umbrales_2022-2024_actualizada_vf_1.pdf"]
[]
["¿Quién responde la solicitud de limitación a MiPymes?"]
["Solo deben ser tenidas en cuenta las respuestas de las Mipymes que se encuentran listadas en el documento \"Regiones de Cobertura - Solicitud de cotización limitada a MiPymes\" publicado en el minisitio del Acuerdo Marco"]
[]
[]
["ENTIDAD COMPRADORA"]
[]
[null,null,null,"Casillas para diligenciamiento de la Entidad Compradora"]
["Nombre de la Entidad Compradora",null,null,"UNIDAD ADMINISTRATIVA ESPECIAL DE LA JUSTICIA PENAL MILITAR Y POLICIAL"]
[]
["Región",null,null,4]
[]
["PROVEEDOR MIPYME"]
[]
["¿Solicita que el evento de cotización que pretende lanzar la entidad identificada en la casilla \"Nombre de la Entidad Compradora\" sea limitada a MiPymes colombianas en virtud del Decreto 1860 de 2021?",null,null,null,null,null,null,null,null,null,"Espacio para respuesta del proveedor"]
[]
["|"]

{"sheet":"Datos","index":1,"n_rows":18,"n_cols":2,"rows_kept":18,"cut":false,"hidden":true,"merged":[]}
[1,"SI"]
[2,"NO"]
[3]
[4]
[5]
[6]
[7]
[8]
[9]
[10]
[11]
[12]
[13]
[14]
[15]
[16]
[17]
[18]

{"sheet":"Solicitud Información General","index":2,"n_rows":51,"n_cols":10,"rows_kept":51,"cut":false,"hidden":false,"merged":[[31,9,32,9],[25,9,26,9],[15,9,16,9],[20,9,21,9],[50,0,51,7],[43,0,43,7],[53,0,58,7],[45,3,45,7],[47,0,47,1],[45,0,45,1],[46,0,46,1],[34,4,34,5],[35,4,35,7],[34,6,34,7],[34,0,34,1],[32,6,32,7],[33,0,33,1],[32,0,32,1],[33,4,33,5],[33,6,33,7],[32,4,32,5],[10,0,10,1],[10,3,10,4],[11,0,11,1],[11,3,11,4],[13,0,13,7],[0,0,3,6],[8,0,8,1],[8,2,8,3],[4,0,4,7],[6,0,6,1],[6,2,6,7],[7,0,7,1],[7,2,7,5],[40,5,40,7],[36,3,36,7],[38,0,38,7],[40,0,40,2],[36,0,36,2],[25,5,25,7],[25,0,25,1],[31,0,31,7],[29,4,29,7],[27,0,27,1],[27,5,27,7],[28,0,28,1],[28,5,28,7],[29,0,29,1],[26,0,26,7],[15,0,15,1],[18,0,18,1],[20,0,20,1],[20,5,20,7],[18,5,18,7],[15,5,15,7],[17,5,17,7],[17,0,17,1],[23,5,23,7],[16,0,16,7],[21,0,21,7],[23,0,23,1],[22,0,22,1],[22,5,22,7]]}
["Solicitud de Información"]
[]
[]
[]
["1. Información básica de la Entidad Compradora"]
[]
["Nombre de la Entidad Compradora"]
["Dirección",null,null,null,null,null,"Teléfono"]
["Departamento",null,null,null,"Municipio",null,"Región"]
[]
["Vigencia del contrato en meses",null,null,"Fecha estimada de inicio: dd/mm/aaaa"]
["¿Requiere el servicio para otras sedes? ",null,null,"N° de sedes"]
[]
["2. Personal ",null,null,null,null,null,null,null,null,"Detalle \nSolicitud Entidad"]
[]
["Perfil del operario que requiere la sede",null,"Total requerido ","Días de trabajo","Horario","Observaciones",null,null,null,"Sede 1"]
["Tiempo completo"]
[null,null,{"$f":"SUM(J18:J18)","v":0}]
["1. Si requiere agregue o elimine filas de Personal TC",null,null,null,null,null,null,null,null,{"$f":"SUM(J18:J18)","v":0}]
[null,null,{"$f":"SUM(C18:C19)","v":0}]
["Perfil del operario que requiere la sede",null,"Total requerido ","Días de trabajo","Horario","Observaciones",null,null,null,{"$f":"J16","v":"Sede 1"}]
["Medio Tiempo"]
[null,null,{"$f":"SUM(J23:J23)","v":0}]
["1. Si requiere agregue o elimine filas de Personal MT",null,null,null,null,null,null,null,null,{"$f":"SUM(J23:J23)","v":0}]
[null,null,{"$f":"SUM(C23:C24)","v":0}]
["Perfil del operario que requiere la sede",null,"Total requerido ","Días de trabajo","Horario","Observaciones",null,null,null,{"$f":"J21","v":"Sede 1"}]
["Personal por Turnos"]
[null,null,{"$f":"SUM(J28:J28)","v":0}]
["1. Si requiere agregue o elimine filas de Personal Turno",null,{"$f":"SUM(C28:C28)","v":0},null,null,null,null,null,null,{"$f":"SUM(J28:J28)","v":0}]
["Total N° de operarios requeridos: ",null,{"$f":"C20+C25+C29","v":0}]
[]
["Disminución del personal",null,null,null,null,null,null,null,null,{"$f":"J26","v":"Sede 1"}]
["perfil de operario",null,"Total requerido ","cantidad","fecha inicial",null,"fecha final"]
[null,null,{"$f":"SUM(J34:J34)","v":0}]
["1. Si requiere agregue o elimine filas de Disminución Personal",null,null,null,null,null,null,null,null,{"$f":"SUM(J34:J34)","v":0}]
[]
["Observaciones sobre:\n(I) Dotación para clima frío de acuerdo con lo descrito en el Anexo 2\n(II) Café social, cuando sea requerido que la adquisición se realice a pequeños productores locales y productores local agropecuarios\n(III) Gestión de residuos peligrosos, en caso de que la entidad no contemple dentro su Plan de Gestión Ambiental un protocolo para la gestión de residuos peligrosos\n(IV) Dotación especial\n(V) Horas extras\n"]
[]
["3. Bienes de Aseo y Cafetería "]
[]
["¿Requiere Bienes de Aseo y Cafetería?",null,null,"No",null,{"$f":"IF(D41=\"Sí\",HYPERLINK(\"#'Detalle Bienes de Aseo y Caf'!F10\",\"Seleccionar Bienes de Aseo y Cafetería\"),\"Sin Bienes\")","v":"Sin Bienes"}]
[]
[]
["4. Servicios Especiales",null,null,null,null,null,null,null,null,"Detalle \nSolicitud Entidad"]
[]
["2. Jardinería",null,{"$f":"IF($C47<100,\"No\",\"Sí\")","v":"No"},null,null,null,null,null,null,{"$f":"J32","v":"Sede 1"}]
["Área total de la zona verde a mantener en m2: ",null,{"$f":"SUM(J47)","v":0}]
[]
[]
[null,null,{"$f":"SUM(J50)","v":0}]
["6. Observaciones generales"]

{"sheet":"Detalle Bienes de Aseo y Caf","index":3,"n_rows":420,"n_cols":9,"rows_kept":420,"cut":false,"hidden":false,"merged":[[1,0,1,6],[2,0,2,4],[3,0,3,4]]}
[]
["Formato de Solicitud de Información"]
[]
["3. Bienes de Aseo y Cafetería"]
[]
[]
[]
[]
[]
[]
["A. Insumos",null,null,null,null,null,null,null,"Detalle Sede"]
[]
["No.","Bien","Especificación ","Presentación ","Cantidad Mensual","Precio unitario","Total",null,"Sede 1"]
[1,"Jabón para loza 1 (Compra)","- Con agente(s) tensoactivo(s) principal(es) con efecto limpiador y desengrasante en una concentración mínima del 8%.\n- Disponible en mínimo (2) dos fragancias\n- El envase debe estar correctamente etiquetado bajo los parámetros establecidos en el sistema globalmente armonizado (Decreto 1496 de 2018) indicando: nombre comercial del producto, pictogramas de los compuestos peligrosos si aplica e instrucciones de uso de acuerdo con los tiempos de transición descritos en el artículo 24 de la Resolución 773 de 2021.\n- Debe contener concentraciones de fósforo iguales o inferiores a 0.65% de fósforo (Resolución 0689 de 2016)","Líquido, en recipiente plástico con capacidad mínima de 3.785 ml",{"$f":"SUM(I14:I14)","v":0},null,{"$f":"E14*F14","v":0}]
[2,"Jabón para loza 2 (Compra)","- Con agente(s) tensoactivo(s) principal(es) con efecto limpiador y desengrasante en una concentración mínima del 8%.\n- Disponible en mínimo (2) dos fragancias\n- El envase debe estar correctamente etiquetado bajo los parámetros establecidos en el sistema globalmente armonizado (Decreto 1496 de 2018) indicando: nombre comercial del producto, pictogramas de los compuestos peligrosos si aplica e instrucciones de uso de acuerdo con los tiempos de transición descritos en el artículo 24 de la Resolución 773 de 2021.\n- Debe contener concentraciones de fósforo iguales o inferiores a 0.65% de fósforo (Resolución 0689 de 2016)","Líquido, en recipiente plástico de mínimo 500 ml",{"$f":"SUM(I15:I15)","v":0},null,{"$f":"E15*F15","v":0}]
[3,"Jabón para loza 3 (Compra)"," - Con agente(s) tensoactivo(s) principal(es) con efecto limpiador y desengrasante en una concentración mínima del 15%.\n - Disponible en mínimo (2) dos fragancias\n- El envase debe estar correctamente etiquetados bajo los parámetros establecidos en el sistema globalmente armonizado (Decreto 1496 de 2018) indicando: nombre comercial del producto, pictogramas de los compuestos peligrosos si aplica e instrucciones de uso.\n- Debe contener concentraciones de fósforo iguales o inferiores a 0.65% de fósforo (Resolución 0689 de 2016)","Crema, en recipiente plástico de mínimo 850 g",{"$f":"SUM(I16:I16)","v":0},null,{"$f":"E16*F16","v":0}]
[4,"Jabón para loza 4 (Compra)","- Con agente(s) tensoactivo(s) con efecto limpiador y desengrasante. \n- Disponible en múltiples fragancias. \n- El envase debe estar correctamente etiquetado bajo los parámetros establecidos en el sistema globalmente armonizado (Decreto 1496 de 2018) indicando: nombre comercial del producto, pictogramas de los compuestos peligrosos si aplica e instrucciones de uso de acuerdo con los tiempos de transición descritos en el artículo 24 de la Resolución 773 de 2021.\n- Elaborado en material reciclable\n- Con etiqueta de amigable con el ambiente\n- Debe contener concentraciones de fósforo iguales o inferiores a 0.65% de fósforo (Resolución 0689 de 2016)","Crema, en recipiente plástico de mínimo 1000 g",{"$f":"SUM(I17:I17)","v":0},null,0]
[5,"Jabón en barra (Compra)","-Composición de ácidos grasos de mínimo 50%.\n- Debe contener concentraciones de fósforo iguales o inferiores a 0.65% de fósforo (Resolución 0689 de 2016)","Barra, unidad con peso mínimo de 250 g en\nenvoltura individual",{"$f":"SUM(I18:I18)","v":0},null,0]
[6,"Jabón en barra azul (Compra)","- Todo tipo de uso\n- Biodegradable\n- No debe contener PVC o Poliestireno expandido u otros plásticos de un solo uso tanto en el envase como en el embalaje.\n- Debe contener concentraciones de fósforo iguales o inferiores a 0.65% de fósforo (Resolución 0689 de 2016)","Barra, unidad con peso mínimo de 250 g en\nenvoltura individual",{"$f":"SUM(I19:I19)","v":0},null,0]
[7,"Jabón abrasivo (Compra)","-Con agente(s) tensoactivo(s) pincipal(es) con efecto limpiador, pulidor y desengrasante\n- Con agente activo mínimo del 5%\n- Debe contener concentraciones de fósforo iguales o inferiores a 0.65% de fósforo (Resolución 0689 de 2016)","En polvo, en tarro de mínimo 500 g",{"$f":"SUM(I20:I20)","v":0},null,0]
[8,"Jabón de tocador 1 (Compra)"," - Elaborado con grasas vegetales\n - Con agente humectante\n - pH modificar entre PH 5,5 a 7\n - Disponible en mínimo (2) dos fragancias\n - Debe estar  correctamente etiquetados bajo los parámetros indicando: nombre comercial del producto, pictogramas de los compuestos peligrosos e instrucciones de uso\n- Debe contener concentraciones de fósforo iguales o inferiores a 0.65% de fósforo (Resolución 0689 de 2016)","Barra, unidad con peso mínimo de 125 g en envoltura individual",{"$f":"SUM(I21:I21)","v":0},null,0]
[9,"Jabón de tocador 2 (Compra)","- Jabón de tocador para manos en espuma\n- Líquido para manos en bolsa para dispensador spray y con boquilla especial de dispensador\n- Tapa tipo válvula, para dispensador, antibacterial y antiséptico \n- Con agente limpiador en una concentración mínima del 6%\n- Con agente humectante en una concentración mínima del 3%\n- Disponible en múltiples fragancias\n- Producto biodegradable basado en ingredientes orgánicos\n- El envase debe estar correctamente etiquetado bajo los parámetros establecidos en el sistema globalmente armonizado (Decreto 1496 de 2018) indicando: nombre comercial del producto, pictogramas de los compuestos peligrosos si aplica e instrucciones de uso de acuerdo con los tiempos de transición descritos en el artículo 24 de la Resolución 773 de 2021.\n- Elaborado en material reciclable\n- No debe contener PVC, Poliestireno expandido u otros plásticos de un solo uso tanto en el envase como en el embalaje.\n- Debe contener concentraciones de fósforo iguales o inferiores a 0.65% de fósforo (Resolución 0689 de 2016)","Líquido, en bolsa  con capacidad mínima de 800 ml",{"$f":"SUM(I22:I22)","v":0},null,0]
[10,"Jabón de dispensador para manos 1 (Compra)","- Con agente limpiador en una concentración mínima del 6%\n- Con agente humectante en una concentración mínima del 3%\n- pH entre 5,5 a 7\n- Disponible en mínimo (2) dos fragancias\n- Debe contener concentraciones de fósforo iguales o inferiores a 0.65% de fósforo (Resolución 0689 de 2016)","Líquido, en recipiente plástico con dispensador y capacidad mínima de 500 ml",{"$f":"SUM(I23:I23)","v":0},null,0]
[11,"Jabón de dispensador para manos 2 (Compra)","- Con agente limpiador en una concentración mínima del 6%\n- Con agente humectante en una concentración mínima del 3%\n- pH entre 5,5 a 7\n- Disponible en mínimo (2) dos fragancias\n- Debe contener concentraciones de fósforo iguales o inferiores a 0.65% de fósforo (Resolución 0689 de 2016)","Líquido, en recipiente plástico con capacidad mínima de 3.785 ml",{"$f":"SUM(I24:I24)","v":0},null,0]
[12,"Jabón de dispensador para manos 3 (Compra)","- Con agente limpiador en una concentración mínima del 6%.\n- Con agente antibacterial en una concentración mínima del 0,2%\n- Con agente humectante en una concentración mínima del 3%\n- pH entre 5,5 a 7\n- Disponible en mínimo (2) dos fragancias\n- Debe contener concentraciones de fósforo iguales o inferiores a 0.65% de fósforo (Resolución 0689 de 2016)","Líquido, en recipiente plástico con capacidad mínima de 3.785 ml",{"$f":"SUM(I25:I25)","v":0},null,0]
[13,"Gel antibacterial para manos (Compra)","- Con agente antibacterial en una concentración mínima del 0,2%\n- Con agente humectante\n- pH entre 5, 5 a 7\n- Con fragancia","Gel, en recipiente plástico con capacidad mínima de 3.785 ml",{"$f":"SUM(I26:I26)","v":0},null,0]
[14,"Dispensador de gel antibacterial para manos (Compra)","- Material: Plástico\n- Tipo de instalación: De pared\n- Incluye Chazos y tornillos\n- Con visor para determinar el nivel del líquido\n- Con ventanilla en la parte superior para añadir el gel \n- Funcionamiento: Manual","Recipiente con capacidad mínima de 500 ml (Unidad)",{"$f":"SUM(I27:I27)","v":0},null,0]
[15,"Limpiador multiusos 1 (Compra)","- Con agente(s) tensoactivo(s) principal(es) con efecto limpiador en una concentración mínima del 8%\n- Disponible en mínimo (2) dos fragancias\n- El envase debe estar correctamente etiquetado bajo los parámetros establecidos en el sistema globalmente armonizado (Decreto 1496 de 2018) indicando: nombre comercial del producto, pictogramas de los compuestos peligrosos si aplica e instrucciones de uso de acuerdo con los tiempos de transición descritos en el artículo 24 de la Resolución 773 de 2021.","Líquido, en recipiente plástico con capacidad mínima de 3.785 ml ",{"$f":"SUM(I28:I28)","v":0},null,0]
[16,"Limpiador multiusos 2 (Compra)","- Con agente(s) tensoactivo(s) principal(es) con efecto limpiador y desengrasante en una concentración mínima del 8%\n- Disponible en mínimo (2) dos fragancias\n- El envase debe estar correctamente etiquetado bajo los parámetros establecidos en el sistema globalmente armonizado (Decreto 1496 de 2018) indicando: nombre comercial del producto, pictogramas de los compuestos peligrosos si aplica e instrucciones de uso de acuerdo con los tiempos de transición descritos en el artículo 24 de la Resolución 773 de 2021.","Líquido, en recipiente plástico con capacidad mínima de 500 ml, con\natomizador de pistola.",{"$f":"SUM(I29:I29)","v":0},null,0]
[17,"Limpiador multiusos 3 (Compra)","- Con agente(s) tensoactivo(s) principal(es) con efecto limpiador y desengrasante en una concentración mínima del 8%\n- Disponible en mínimo (2) dos fragancias\n- El envase debe estar correctamente etiquetado bajo los parámetros establecidos en el sistema globalmente armonizado (Decreto 1496 de 2018) indicando: nombre comercial del producto, pictogramas de los compuestos peligrosos si aplica e instrucciones de uso de acuerdo con los tiempos de transición descritos en el artículo 24 de la Resolución 773 de 2021.","Líquido, en recipiente plástico de repuesto  con capacidad mínima de 500 ml",{"$f":"SUM(I30:I30)","v":0},null,0]
[18,"Limpiador desinfectante para pisos (Compra)","- Apariencia: Líquido transparente\n- Color y olor: De acuerdo a la fragancia\n- Producto biodegradable que no afectas la capa de ozono\n- Solubilidad: Total en agua\n- PH: 7.5 - 8.5\n- Composición: Tensoactivos, espesante, coadyuvante, colorante \n- El envase debe estar correctamente etiquetado bajo los parámetros establecidos en el sistema globalmente armonizado (Decreto 1496 de 2018) indicando: nombre comercial del producto, pictogramas de los compuestos peligrosos si aplica e instrucciones de uso de acuerdo con los tiempos de transición descritos en el artículo 24 de la Resolución 773 de 2021.\n- Elaborado en material reciclable\n- No debe contener PVC, poliestireno expandido u otros plásticos de un solo uso tanto en el envase como en el embalaje.","Líquido, en garrafa  con capacidad mínima de 3.785 ml",{"$f":"SUM(I31:I31)","v":0},null,0]
[19,"Líquido desengrasante (Compra)"," - Con agente(s) tensoactivo(s) principal(es) con efecto limpiador y desengrasante en una concentración mínima del 10%\n- El envase debe estar correctamente etiquetado bajo los parámetros establecidos en el sistema globalmente armonizado (Decreto 1496 de 2018) indicando: nombre comercial del producto, pictogramas de los compuestos peligrosos si aplica e instrucciones de uso de acuerdo con los tiempos de transición descritos en el artículo 24 de la Resolución 773 de 2021.\n- Debe contener concentraciones de fósforo iguales o inferiores a 0.65% de fósforo (Resolución 0689 de 2016)","Líquido, en recipiente plástico con capacidad mínima de 3.785 ml",{"$f":"SUM(I32:I32)","v":0},null,0]
[20,"Crema desengrasante (Compra)","- Disponible en múltiples fragancias \n- Limpia y desengrasa todos los metales, plásticos, gomas, vidrio, cerámica y madera \n- El envase debe estar correctamente etiquetado bajo los parámetros establecidos en el sistema globalmente armonizado (Decreto 1496 de 2018) indicando: nombre comercial del producto, pictogramas de los compuestos peligrosos si aplica e instrucciones de uso de acuerdo con los tiempos de transición descritos en el artículo 24 de la Resolución 773 de 2021.\n- Elaborado en material reciclable o biodegradable\n- No debe contener PVC o Poliestireno expandido u otros plásticos de un solo uso tanto en el envase como en el embalaje. ","Crema, en recipiente reciclable o biodegadable con capacidad mínima de 500 g",{"$f":"SUM(I33:I33)","v":0},null,0]
[21,"Detergente multiusos en polvo (Compra)"," - Con agente tensoactivo de mínimo 60% de biodegradabilidad\n  -Con efecto limpiador de mínimo 9%.\n -  El  envase del producto deberá estar correctamente etiquetado bajo los parámetros: nombre comercial del producto, pictogramas de los compuestos peligrosos e instrucciones de uso\n- Debe contener concentraciones de fósforo iguales o inferiores a 0.65% de fósforo (Resolución 0689 de 2016)\n","Polvo, en bolsa plástica o recipiente plástico\ncon un peso de 1.000 g",{"$f":"SUM(I34:I34)","v":0},null,0]
[22,"Limpiador desinfectante para uso general 1 (Compra)","- Con agente(s) tensoactivo(s) con efecto antibacterial en una concentración mínima del 0,2%\n- Con agente(s) tensoactivo(s) con efecto limpiador y desengrasante en una concentración mínima del 1,5%\n- El envase debe estar correctamente etiquetado bajo los parámetros establecidos en el sistema globalmente armonizado (Decreto 1496 de 2018) indicando: nombre comercial del producto, pictogramas de los compuestos peligrosos si aplica e instrucciones de uso de acuerdo con los tiempos de transición descritos en el artículo 24 de la Resolución 773 de 2021.","Líquido, en recipiente plástico con capacidad mínima de 3.785 ml",{"$f":"SUM(I35:I35)","v":0},null,0]
[23,"Limpiador desinfectante para uso general 2 (Compra)","- Con agente(s) tensoactivo(s) con efecto antibacterial en una concentración mínima del 0,2%\n- Con agente(s) tensoactivo(s) con efecto limpiador y desengrasante en una concentración mínima del 1,5%\n- El envase debe estar correctamente etiquetado bajo los parámetros establecidos en el sistema globalmente armonizado (Decreto 1496 de 2018) indicando: nombre comercial del producto, pictogramas de los compuestos peligrosos si aplica e instrucciones de uso de acuerdo con los tiempos de transición descritos en el artículo 24 de la Resolución 773 de 2021.","Líquido, en recipiente plástico con capacidad mínima de 500 ml, con atomizador de pistola.",{"$f":"SUM(I36:I36)","v":0},null,0]
[24,"Limpiador desinfectante para uso general 3 (Compra)","- Con agente(s) tensoactivo(s) con efecto antibacterial en una concentración mínima del 0,2%\n- Con agente(s) tensoactivo(s) con efecto limpiador y desengrasante en una concentración mínima del 1,5%\n- El envase debe estar correctamente etiquetado bajo los parámetros establecidos en el sistema globalmente armonizado (Decreto 1496 de 2018) indicando: nombre comercial del producto, pictogramas de los compuestos peligrosos si aplica e instrucciones de uso de acuerdo con los tiempos de transición descritos en el artículo 24 de la Resolución 773 de 2021.","Líquido, en recipiente plástico con capacidad mínima de 500 ml",{"$f":"SUM(I37:I37)","v":0},null,0]
[25,"Desinfectante de alto nivel de desinfección para uso hospitalario (Compra)"," - Con agentes bactericidas, fungicidas, tubercolicidas, esporicidas y virucidas.\n - Sin fragacia\n- El envase debe estar correctamente etiquetado bajo los parámetros establecidos en el sistema globalmente armonizado (Decreto 1496 de 2018) indicando: nombre comercial del producto, pictogramas de los compuestos peligrosos si aplica e instrucciones de uso de acuerdo con los tiempos de transición descritos en el artículo 24 de la Resolución 773 de 2021.","Líquido, en recipiente plástico con capacidad\nmínima de 3.785 ml",{"$f":"SUM(I38:I38)","v":0},null,0]
[26,"Pastilla desinfectante para sanitario (Compra)","- Con agentes bactericidas, fungicidas y virucidas.","Unidad con peso mínimo de 45 g",{"$f":"SUM(I39:I39)","v":0},null,0]
[27,"Líquido para limpiar vidrios 1 (Compra)","- Con agente(s) principal(es) con efecto limpiador y desengrasante en una concentración mínima del 4%\n- Disponible mínimo en dos (2) fragancias\n - El envase debe estar  correctamente etiquetados bajo los parámetros establecidos en el sistema globalmente armonizado indicando: nombre comercial del producto, pictogramas de los compuestos peligrosos e instrucciones de uso","Líquido, en recipiente plástico con capacidad mínima de 3.785 ml",{"$f":"SUM(I40:I40)","v":0},null,0]
[28,"Líquido para limpiar vidrios 2 (Compra)","- Con agente(s) principal(es) con efecto limpiador y desengrasante en una concentración mínima del 4%\n- Disponible mínimo en dos (2) fragancias\n- El envase debe estar correctamente etiquetado bajo los parámetros establecidos en el sistema globalmente armonizado (Decreto 1496 de 2018) indicando: nombre comercial del producto, pictogramas de los compuestos peligrosos si aplica e instrucciones de uso de acuerdo con los tiempos de transición descritos en el artículo 24 de la Resolución 773 de 2021.","Líquido, en recipiente plástico con capacidad mínima de 500 ml, con\natomizador de pistola.",{"$f":"SUM(I41:I41)","v":0},null,0]
[29,"Líquido para limpiar vidrios 3 (Compra)","- Con agente(s) principal(es) con efecto limpiador y desengrasante en una concentración mínima del 4%\n- Disponible mínimo en dos (2) fragancias\n- El envase debe estar correctamente etiquetado bajo los parámetros establecidos en el sistema globalmente armonizado (Decreto 1496 de 2018) indicando: nombre comercial del producto, pictogramas de los compuestos peligrosos si aplica e instrucciones de uso de acuerdo con los tiempos de transición descritos en el artículo 24 de la Resolución 773 de 2021.","Líquido, en recipiente plástico de repuesto con capacidad mínima\nde 500 ml",{"$f":"SUM(I42:I42)","v":0},null,0]
[30,"Blanqueador o hipoclorito 1 (Compra)","- Solución con una concentración mínima del 5%\n - El  envase del producto deberá estar correctamente etiquetado, indicando: nombre comercial del producto, pictogramas de los compuestos peligrosos e instrucciones de uso\n- El envase debe estar correctamente etiquetado bajo los parámetros establecidos en el sistema globalmente armonizado (Decreto 1496 de 2018) indicando: nombre comercial del producto, pictogramas de los compuestos peligrosos si aplica e instrucciones de uso de acuerdo con los tiempos de transición descritos en el artículo 24 de la Resolución 773 de 2021.","Líquido, en recipiente plástico con capacidad\nmínima de 3.785 ml",{"$f":"SUM(I43:I43)","v":0},null,0]
[31,"Blanqueador o hipoclorito 2 (Compra)","- Solución con una concentración mínima del 5%\n - El  envase del producto deberá estar correctamente etiquetado, indicando: nombre comercial del producto, pictogramas de los compuestos peligrosos e instrucciones de uso\n- El envase debe estar correctamente etiquetado bajo los parámetros establecidos en el sistema globalmente armonizado (Decreto 1496 de 2018) indicando: nombre comercial del producto, pictogramas de los compuestos peligrosos si aplica e instrucciones de uso de acuerdo con los tiempos de transición descritos en el artículo 24 de la Resolución 773 de 2021.","Líquido, en recipiente plástico con capacidad\nmínima de 1.000 ml",{"$f":"SUM(I44:I44)","v":0},null,0]
[32,"Blanqueador o hipoclorito 3 (Compra)","- Granulado con una concentración mínima del 90%\n - El  envase del producto deberá estar correctamente etiquetado, indicando: nombre comercial del producto, pictogramas de los compuestos peligrosos e instrucciones de uso\n- El envase debe estar correctamente etiquetado bajo los parámetros establecidos en el sistema globalmente armonizado (Decreto 1496 de 2018) indicando: nombre comercial del producto, pictogramas de los compuestos peligrosos si aplica e instrucciones de uso de acuerdo con los tiempos de transición descritos en el artículo 24 de la Resolución 773 de 2021.","ganulado, en bolsa plástica de mínimo\n1.000 g",{"$f":"SUM(I45:I45)","v":0},null,0]
[33,"Alcohol industrial 1 (Compra)"," - Solución acuosa de alcohol etílico desnaturalizado con una concentración mínima de 70%\n - Desnaturalizado","Líquido, en recipiente plástico con capacidad mínima de 3.785 ml",{"$f":"SUM(I46:I46)","v":0},null,0]
[34,"Alcohol industrial 2 (Compra)","- Solución acuosa de alcohol etílico desnaturalizado con una concentración mínima de 70%\n- Desnaturalizado","Líquido, en recipiente plástico con capacidad mínima de 1000ml",{"$f":"SUM(I47:I47)","v":0},null,0]
[35,"Creolina 1 (Compra)","- Solución con una concentración mínima de fenoles de 4%","Líquido, en recipiente\nplástico con capacidad mínima de 500 ml",{"$f":"SUM(I48:I48)","v":0},null,0]
[36,"Creolina 2 (Compra)","- Solución con una concentración mínima de fenoles de 4%","Líquido, en recipiente plástico con capacidad\nmínima de 3.785 ml",{"$f":"SUM(I49:I49)","v":0},null,0]
[37,"Líquido para limpiar equipos de oficina 1 (Compra)"," - Con agente(s) principal(es) con efecto limpiador, desengrasante y desinfectante en una concentración mínima del 4%\n- El envase debe estar correctamente etiquetado bajo los parámetros establecidos en el sistema globalmente armonizado (Decreto 1496 de 2018) indicando: nombre comercial del producto, pictogramas de los compuestos peligrosos si aplica e instrucciones de uso de acuerdo con los tiempos de transición descritos en el artículo 24 de la Resolución 773 de 2021.","Líquido, en recipiente plástico con capacidad mínima de 500 ml con\natomizador",{"$f":"SUM(I50:I50)","v":0},null,0]
[38,"Líquido para limpiar equipos de oficina 2 (Compra)"," - Con agente(s) principal(es) con efecto limpiador, desengrasante y desinfectante en una concentración mínima del 4%\n- El envase debe estar correctamente etiquetado bajo los parámetros establecidos en el sistema globalmente armonizado (Decreto 1496 de 2018) indicando: nombre comercial del producto, pictogramas de los compuestos peligrosos si aplica e instrucciones de uso de acuerdo con los tiempos de transición descritos en el artículo 24 de la Resolución 773 de 2021.","Líquido, en recipiente plástico con capacidad\nmínima de 500 ml",{"$f":"SUM(I51:I51)","v":0},null,0]
[39,"Champú para alfombras y tapizados 1 (Compra)","- Con agente(s) principal(es) con efecto limpiador en una concentración mínima del 8%\n - El envase debe estar  correctamente etiquetado: nombre comercial del producto, pictogramas de los compuestos peligrosos e instrucciones de uso","Líquido, en recipiente plástico con capacidad\nmínima de 3.785 ml",{"$f":"SUM(I52:I52)","v":0},null,0]
[40,"Champú para alfombras y tapizados 2 (Compra)","- Con agente(s) principal(es) con efecto limpiador en una concentración mínima del 8%\n- Con agente espumante para la generación de espuma seca\n - El envase debe estar  correctamente etiquetados: nombre comercial del producto, pictogramas de los compuestos peligrosos e instrucciones de uso","Líquido, en recipiente plástico con capacidad mínima de 3.785 ml ",{"$f":"SUM(I53:I53)","v":0},null,0]
[41,"Lustrador de muebles (Compra)"," - Con agentes limpiadores y abrillantadores en una concentración mínima del 5%\n- El envase debe estar correctamente etiquetado bajo los parámetros establecidos en el sistema globalmente armonizado (Decreto 1496 de 2018) indicando: nombre comercial del producto, pictogramas de los compuestos peligrosos si aplica e instrucciones de uso de acuerdo con los tiempos de transición descritos en el artículo 24 de la Resolución 773 de 2021.","Líquido, en recipiente plástico con capacidad mínima de 200 ml",{"$f":"SUM(I54:I54)","v":0},null,0]
[42,"Líquido cubre rasguños para madera (Compra)","- Con agentes limpiadores y abrillantadores en una concentración mínima del 5%\n- De color oscuro para coayudar a cubrir rasguños en maderas oscuras","En recipiente plástico\ncon capacidad mínima de 200 ml",{"$f":"SUM(I55:I55)","v":0},null,0]
[43,"Crema para cuero (Compra)"," - Con agentes limpiadores y abrillantadores en una concentración mínima del 5% ","Crema, en recipiente plástico con capacidad\nmínima de 200 ml",{"$f":"SUM(I56:I56)","v":0},null,0]
[44,"Cera polimérica (Compra)","- Polimérica autobrillante.\n- Con polímeros acrílicos, nivelantes y plastificantes.\n- Neutra (para pisos de todos los colores)\n- Contenido mínimo de sólidos del 10%","Líquido, en recipiente plástico con capacidad mínima de 3.785 ml",{"$f":"SUM(I57:I57)","v":0},null,0]
[45,"Cera emulsionada Neutra (Compra)","- Emulsionada\n- Neutra (para pisos de todos los colores)\n- Contenido mínimo de sólidos del 5%","Líquido, en recipiente plástico con capacidad\nmínima de 3.785 ml",{"$f":"SUM(I58:I58)","v":0},null,0]
[46,"Cera emulsionada roja (Compra)","- Emulsionada\n- Roja\n- Contenido mínimo de sólidos del 5%\n- Antideslizante","Líquido, en recipiente plástico con capacidad mínima de 3.785 ml",{"$f":"SUM(I59:I59)","v":0},null,0]
[47,"Cera solvente (Compra)","- Solvente\n- Contenido mínimo de sólidos del 10%","Líquido, en recipiente plástico con capacidad\nmínima de 3.785 ml",{"$f":"SUM(I60:I60)","v":0},null,0]
[48,"Sellante para pisos (Compra)","- Polimérico autobrillante.\n- Con polímeros acrílicos, nivelantes y plastificantes.\n- Contenido mínimo de sólidos del 20%\n- El envase debe estar correctamente etiquetado bajo los parámetros establecidos en el sistema globalmente armonizado (Decreto 1496 de 2018) indicando: nombre comercial del producto, pictogramas de los compuestos peligrosos si aplica e instrucciones de uso de acuerdo con los tiempos de transición descritos en el artículo 24 de la Resolución 773 de 2021.","Líquido, en recipiente plástico con capacidad mínima de 3.785 ml",{"$f":"SUM(I61:I61)","v":0},null,0]
[49,"Mantenedor de pisos (Compra)","- Polimérico autobrillante.\n- Con polímeros acrílicos, nivelantes y plastificantes.\n- Contenido mínimo de sólidos del 8%","Líquido, en recipiente\nplástico con capacidad mínima de 3.785 ml",{"$f":"SUM(I62:I62)","v":0},null,0]
[50,"Removedor de cera (Compra)","- Con agente activo alcalino en una concentración mínima del 9%\n- pH entre 11 y 14","Líquido, en recipiente plástico con capacidad mínima de 3.785 ml",{"$f":"SUM(I63:I63)","v":0},null,0]
[51,"Abrillantador para piso laminado (Compra)","- Con agente(s) con efecto limpiador y brillador.","Líquido, en recipiente\nplástico con capacidad mínima de 3.785 ml",{"$f":"SUM(I64:I64)","v":0},null,0]
[52,"Jabón neutro para pisos 1 (Compra)"," - Jabón multiusos\n - PH Neutro, \n - No corrosivo ni tóxico\n- Debe contener concentraciones de fósforo iguales o inferiores a 0.65% de fósforo (Resolución 0689 de 2016)","Líquido, en recipiente\nplástico con capacidad mínima de 3.785 ml",{"$f":"SUM(I65:I65)","v":0},null,0]
[53,"Jabón neutro para pisos 2 (Compra)","- Jabón neutro biodegradable multiusos\n- PH Neutro\n- No es corrosivo ni tóxico\n- Color: Azul claro \n- El envase debe estar correctamente etiquetado bajo los parámetros establecidos en el sistema globalmente armonizado (Decreto 1496 de 2018) indicando: nombre comercial del producto, pictogramas de los compuestos peligrosos si aplica e instrucciones de uso de acuerdo con los tiempos de transición descritos en el artículo 24 de la Resolución 773 de 2021.\n- Elaborado en material reciclable, no debe contener PVC, Poliestireno expandido u otros plásticos de un solo uso tanto en el envase como en el embalaje.\n- Debe contener concentraciones de fósforo iguales o inferiores a 0.65% de fósforo (Resolución 0689 de 2016)","Líquido, en cuñete con capacidad de 20 L",{"$f":"SUM(I66:I66)","v":0},null,0]
[54,"Varsol  ecológico 1 (Compra)","- Solución con agentes desinfectantes, desmanchadores y desengrasantes  en concentración mínima del 15%.\n- Biodegradable mínimo en un 95%","Líquido, en recipiente plástico con capacidad mínima de 1000 ml",{"$f":"SUM(I67:I67)","v":0},null,0]
[55,"Varsol ecológico 2 (Compra)","- Solución con agentes desinfectantes, desmanchadores y desengrasantes  en concentración mínima del 15%.\n- Biodegradable mínimo en un 95%","Líquido, en recipiente plástico con capacidad mínima de 3.785 ml",{"$f":"SUM(I68:I68)","v":0},null,0]
[56,"Desmanchador multiusos (Compra)","- Con agente(s) tensoactivo(s) con efecto limpiador y desengrasante\n- Para superficies de todo tipo.","Crema, en bolsa plástica de mínimo 500 g",{"$f":"SUM(I69:I69)","v":0},null,0]
[57,"Brillametal en crema (Compra)","- Con agentes con efecto limpiador, pulidor y brillador.\n- Para todo tipo de metales\n - El  envase del producto deberá estar correctamente etiquetado, indicando: nombre comercial del producto, pictogramas de los compuestos peligrosos e instrucciones de uso","En crema de mínimo 70 g",{"$f":"SUM(I70:I70)","v":0},null,0]
[58,"Brillametal líquido (Compra)","- Con agentes con efecto limpiador, pulidor y brillador.\n- Para todo tipo de metales","Líquido , en recipiente plástico con capacidad mínima de 200 ml",{"$f":"SUM(I71:I71)","v":0},null,0]
[59,"Betún (Compra)","- Contenido mínimo de sólidos del 30%\n- Color negro\n- No debe contener ningún material que sea cancerígeno ( Clasificación 1 y 2a por la IARC), Mutagénico, Tóxico, Contaminante peligroso del aire o que sea agotador de la capa de ozono \n- El envase debe estar correctamente etiquetado bajo los parámetros establecidos en el sistema globalmente armonizado (Decreto 1496 de 2018) indicando: nombre comercial del producto, pictogramas de los compuestos peligrosos si aplica e instrucciones de uso de acuerdo con los tiempos de transición descritos en el artículo 24 de la Resolución 773 de 2021.","Tarro de mínimo 100 g",{"$f":"SUM(I72:I72)","v":0},null,0]
[60,"Ambientador 1 (Compra)","- Solución con alcohol etílico y solventes.\n- Con fragancia en una concentración del 1,5%\n- En múltiples fragancias\n- El envase debe estar correctamente etiquetado bajo los parámetros establecidos en el sistema globalmente armonizado (Decreto 1496 de 2018) indicando: nombre comercial del producto, pictogramas de los compuestos peligrosos si aplica e instrucciones de uso de acuerdo con los tiempos de transición descritos en el artículo 24 de la Resolución 773 de 2021.","Líquido, en recipiente plástico con capacidad\nmínima de 3.785 ml",{"$f":"SUM(I73:I73)","v":0},null,0]
[61,"Ambientador 2 (Compra)","- Solución con alcohol etílico y solventes.\n- Con fragancia en una concentración del 1,5%\n- En múltiples fragancias\n- libre de CFC\n - Envase correctamente etiquetado bajo los parámetros establecidos indicando: nombre comercial del producto, pictogramas de los compuestos peligrosos e instrucciones de uso.\n- Elaborado en material reciclable","Líquido, en aerosol seguro para la capa de ozono con capacidad mínima de 400 ml",{"$f":"SUM(I74:I74)","v":0},null,0]
[62,"Insecticida 1 (Compra)","- Para eliminar insectos rastreros.\n-  Con acción residual hasta por 4 semanas o de larga duración\n- Sin fuertes olores químicos\n- Libre de CFC\n - El  envase del producto deberá estar correctamente etiquetado, indicando: nombre comercial del producto, pictogramas de los compuestos peligrosos e instrucciones de uso","Líquido, en aerosol seguro para la capa de ozono con capacidad\nmínima de 350 ml",{"$f":"SUM(I75:I75)","v":0},null,0]
[63,"Insecticida 2 (Compra)","- Para eliminar insectos voladores\n-  Con acción residual hasta por 4 semanas o de larga duración\n- Sin fuertes olores químicos\n- Libre de CFC\n - El  envase del producto deberá estar correctamente etiquetado, indicando: nombre comercial del producto, pictogramas de los compuestos peligrosos e instrucciones de uso","Líquido, en aerosol seguro para la capa de ozono con capacidad\nmínima de 350 ml",{"$f":"SUM(I76:I76)","v":0},null,0]
[64,"Limpiones 1 (Compra)","- En tela de toalla fileteada\n- Color blanco sin estampado\n- Tamaño mínimo de 45cm de largo por 45cm de ancho.","Unidad",{"$f":"SUM(I77:I77)","v":0},null,0]
[65,"Limpiones 2 (Compra)","- En tela de toalla fileteada\n- Color blanco sin estampado\n-Tamaño mínimo de 100 cm de largo por 70 cm de ancho","Unidad",{"$f":"SUM(I78:I78)","v":0},null,0]
[66,"Limpiones 3 (Compra)","- En tela fileteada\n- Color blanco sin estampado\n- Tamaño mínimo de 45 cm de largo por 45 cm de ancho","Unidad",{"$f":"SUM(I79:I79)","v":0},null,{"$f":"E79*F79","v":0}]
[67,"Limpiones 4 (Compra)","- En tela fileteada\n- Color blanco sin estampado\n-Tamaño mínimo de 100 cm de largo por 70 cm de ancho","Unidad",{"$f":"SUM(I80:I80)","v":0},null,0]
[68,"Limpiones 5 (Compra)","- En tela tipo galleta fileteada\n- Color blanco o beige sin estampado\n-Tamaño mínimo de 100 cm de largo por 70 cm de ancho","Unidad",{"$f":"SUM(I81:I81)","v":0},null,0]
[69,"Bayetilla 1 (Compra)"," - En tela fileteada\n -  100% algodón y fibra natural \n- Color blanco sin estampado\n-Tamaño mínimo de 100 cm de largo por 70 cm de ancho","Unidad",{"$f":"SUM(I82:I82)","v":0},null,0]
[70,"Bayetilla 2 (Compra)"," - En tela fileteada\n - 100% algodón y fibra natural \n - Color rojo sin estampado\n -Tamaño mínimo de 100 cm de largo por 70 cm de ancho","Unidad",{"$f":"SUM(I83:I83)","v":0},null,0]
[71,"Toalla en tela blanca para pisos por metro (repuesto de haraganes) (Compra)"," - Elaborado  en microfibras\n - Color blanco\n - Tamaño mínimo de 100 cm de largo por 70 cm de ancho","Unidad",{"$f":"SUM(I84:I84)","v":0},null,0]
[72,"Paño absorbente multiusos 1 (Compra)","- Retira el polvo sin dejar residuos ni pelusas\n- Antibacterial reutilizable\n- Tela con microporos\n- Tamaño mínimo de 60 cm de largo por 33 cm de ancho","Paquete X 6 unidades",{"$f":"SUM(I85:I85)","v":0},null,0]
[73,"Paño absorbente multiusos 2 (Compra)","- Retira el polvo sin dejar residuos ni pelusas\n- Antibacterial reutilizable\n- Tela con microporos\n- Tamaño mínimo de 25 cm de largo por 45 cm de ancho","Rollo X 40 unidades",{"$f":"SUM(I86:I86)","v":0},null,0]
[74,"Estopa (Compra)","- Hecha 100% de hilos de algodón blanco peinado.\n-Suave al tacto, para lustrar\n- No debe contener PVC o Poliestireno expandido u otros plásticos de un solo uso tanto en el envase como en el embalaje.","Bolsa de mínimo 400 g",{"$f":"SUM(I87:I87)","v":0},null,0]
[75,"Esponjilla 1 (Compra)","- Espuma enmallada\n- Tamaño mínimo de 7 cm de largo por 10 cm de ancho","Unidad",{"$f":"SUM(I88:I88)","v":0},null,0]
[76,"Esponjilla 2 (Compra)","- Doble uso (material de esponjilla blanda y abrasiva)\n- Tamaño mínimo de 7 cm de largo por 10 cm de ancho\n- No debe contener PVC o Poliestireno expandido u otros plásticos de un solo uso tanto en el envase como en el embalaje","Unidad",{"$f":"SUM(I89:I89)","v":0},null,0]
[77,"Esponjilla 3 (Compra)","- Abrasiva\n- Tamaño mínimo de 9 cm de largo por 12 cm de","Unidad",{"$f":"SUM(I90:I90)","v":0},null,0]
[78,"Esponjilla 4 (Compra)","- Elaborada con fibra de acero inoxidable para dar brillo\n- Tamaño mínimo de 5 cm de largo por 5 cm de ancho","Paquete X 6 unidades",{"$f":"SUM(I91:I91)","v":0},null,0]
[79,"Esponjilla 5 (Compra)","- Elaborada con alambre de acero inoxidable\n- Tamaño mínimo de 7 cm de largo por 10 cm de ancho","Unidad",{"$f":"SUM(I92:I92)","v":0},null,0]
[80,"Esponjilla 6 (Compra)","- Espuma enmallada\n- Tamaño mínimo de 7 cm de largo por 10 cm de ancho\n- No debe contener PVC o Poliestireno expandido u otros plásticos de un solo uso tanto en el envase como en el embalaje.","Unidad",{"$f":"SUM(I93:I93)","v":0},null,0]
[81,"Esponjilla 7 (Compra)","- Abrasiva\n- Tamaño mínimo de 9 cm de largo por 12 cm de ancho\n- No debe contener PVC o Poliestireno expandido u otros plásticos de un solo uso tanto en el envase como en el embalaje.","Unidad",{"$f":"SUM(I94:I94)","v":0},null,0]
[82,"Escoba 1 (Compra)","- Cerdas suaves elaboradas con PET calibre entre 0,3 y 0,4 mm.\n- Área de barrido mínima de 25 cm de largo por 8 cm de ancho por 10 cm de alto\n- Material de base en plástico con acople tipo rosca\n","Unidad",{"$f":"SUM(I95:I95)","v":0},null,0]
[83,"Escoba 2 (Compra)","- Cerdas duras elaboradas con PET calibre entre 0,4 y 0,6 mm.\n- Área de barrido mínima de 25 cm de largo por 8 cm de ancho por 10 cm de alto\n- Material de base en plástico con acople tipo rosca\n","Unidad",{"$f":"SUM(I96:I96)","v":0},null,0]
[84,"Escoba 3 (Compra)","- Cerdas suaves elaboradas con PET calibre entre 0,3 y 0,4 mm.\n- Área de barrido mínima de 35 cm de largo por 8 cm de ancho por 10 cm de alto\n- Material de base en plástico con acople tipo rosca\n","Unidad",{"$f":"SUM(I97:I97)","v":0},null,0]
[85,"Escoba 4 (Compra)","- Cerdas duras elaboradas con PET calibre entre 0,4 y 0,6 mm.\n- Área de barrido mínima de 35 cm de largo por 8 cm de ancho por 10 cm de alto\n- Material de base en plástico con acople tipo rosca\n","Unidad",{"$f":"SUM(I98:I98)","v":0},null,0]
[86,"Escoba 5 (Compra)","- Cerdas suaves elaboradas con PET calibre entre 0,3 y 0,4 mm.\n- Área de barrido mínima de 35 cm de largo por 8 cm de ancho por 10 cm de alto\n- Mango de madera proveniente de explotación forestal sostenible certificada ( FSC, PEFC o equivalentes) y/o Mango y Fibra de plástico (reciclado o nuevo) de polipropileno (PP) o polietileno (PE) y/o cabo metálico que no contenga material plastificado\n- No debe contener PVC u otros plásticos con cloro. \n- Cabo de madera 140cm elaborada con fibra natural, con soporte para colgar, con capucha plástica protectora que evita que se desprendan las fibras o se deformen\n","Unidad",{"$f":"SUM(I99:I99)","v":0},null,0]
[87,"Mango metálico escoba 1 (Compra)","- Extensión mínima de 140 cm\n -Acople plástico o rosca para palos de escoba\n ","Unidad",{"$f":"SUM(I100:I100)","v":0},null,0]
[88,"Mango madera escoba 1 (Compra)","- Extensión mínima de 140 cm\n -Acople plástico o rosca para palos de escoba\n ","Unidad",{"$f":"SUM(I101:I101)","v":0},null,0]
[89,"Cepillos 1 (Compra)","- Tipo plancha, con mango de plástico\n- Cuerpo elaborado en plástico\n- Cerdas duras en fibra plástica\n- Tamaño mínimo de 15 cm de largo por 5cm de ancho por 6 cm de alto.","Unidad",{"$f":"SUM(I102:I102)","v":0},null,0]
[90,"Cepillos 2 (Compra)","- Para pisos\n- Cuerpo elaborado en plástico\n- Cerdas duras en fibra plástica\n- Tamaño mínimo de 23 cm de largo por 6 cm de ancho por 7 cm de alto.\n- Mango metálico con una extensión mínima de\n140 cm","Unidad",{"$f":"SUM(I103:I103)","v":0},null,0]
[91,"Cepillos 3 (Compra)","- Para pisos\n- Cuerpo elaborado en plástico\n- Cerdas duras en fibra plástica\n- Tamaño mínimo de 35 cm de largo por 6 cm de ancho por 7 cm de alto.\n- Mango metálico con una extensión mínima de\n140 cm","Unidad",{"$f":"SUM(I104:I104)","v":0},null,0]
[92,"Trapero 1 (Compra)"," - Elaborado con hilaza de algodón natural\n - Mecha con peso mínimo 250 gr y extensión mínima de 32 cm de  largo\n - Material de base en plástico con acople tipo rosca\n","Unidad",{"$f":"SUM(I105:I105)","v":0},null,0]
[93,"Trapero 2 (Compra)","- Elaborado con hilaza de algodón natural\n- Mecha con peso mínimo de 350 gr y extensión mínima de 32 cm de largo\n- Material de base en plástico con acople tipo rosca\n","Unidad",{"$f":"SUM(I106:I106)","v":0},null,0]
[94,"Trapero 3 (Compra)","- Elaborado con hilaza de algodón natural\n- Mecha con peso mínimo de 435 gr y extensión mínima de 32 cm de largo\n- Material de base en plástico con acople tipo rosca","Unidad",{"$f":"SUM(I107:I107)","v":0},null,0]
[95,"Trapero 4 (Compra)","- Trapero en hilo encabado o con cabo en madera \n- Mecha con peso mínimo de 400 gr y extensión mínima de 1.40 cm de largo\n- Mango de madera proveniente de explotación forestal sostenible certificada ( FSC, PEFC o equivalentes) y/o cabo metálico que no contenga material plastificado\n- Fibras en tela , algodón o pabilo de fibra de Rayón. \n- No debe contener PVC o Poliestireno expandido u otros plásticos de un solo uso tanto en el envase como en el embalaje.","Unidad",{"$f":"SUM(I108:I108)","v":0},null,0]
[96,"Mango metálico trapero (Compra)","- Extensión mínima de 140 cm\n- Acople plástico o rosca para palos de escoba\n ","Unidad",{"$f":"SUM(I109:I109)","v":0},null,0]
[97,"Mango madera trapero (Compra)","- Extensión mínima de 140 cm\n- Acople plástico o rosca para palos de escoba\n ","Unidad",{"$f":"SUM(I110:I110)","v":0},null,0]
[98,"Cepillo para sanitario (churrusco) (Compra)","- Cerdas duras elaboradas en fibras plásticas\n- Extensión mínima de las cerdas es de 2,5 cm\n- Base y mango elaborados en plástico\n- Mango con longitud mínima de 33 cm","Unidad",{"$f":"SUM(I111:I111)","v":0},null,0]
[99,"Pads 1 (Compra)","- Para brillo\n- Diámetro mínimo de 16 pulgadas\n- Rojo o blanco","Unidad",{"$f":"SUM(I112:I112)","v":0},null,0]
[100,"Pads 2 (Compra)","- Para remoción\n- Diámetro mínimo de 16 pulgadas\n- Café o negro","Unidad",{"$f":"SUM(I113:I113)","v":0},null,0]
[101,"Pads 3 (Compra)","- Para brillo\n- Diámetro mínimo de 20 pulgadas\n- Rojo o blanco","Unidad",{"$f":"SUM(I114:I114)","v":0},null,0]
[102,"Pads 4 (Compra)","- Para remoción\n- Diámetro mínimo de 20 pulgadas\n- Café o negro","Unidad",{"$f":"SUM(I115:I115)","v":0},null,0]
[103,"Pads 5 (Compra)","- Pad de fibras para máquinas de baja densidad para lavado suave de mantención, remueve marcas, suciedad y derrames. \n- Diámetro: 17\" \n- Color: blanco. \n- No debe contener PVC o Poliestireno expandido u otros plásticos de un solo uso tanto en el envase como en el embalaje.","Unidad",{"$f":"SUM(I116:I116)","v":0},null,0]
[104,"Boneth 1 (Compra)","- Diámetro mínimo de 16 pulgadas\n- Elaborado en hilaza de algodón","Unidad",{"$f":"SUM(I117:I117)","v":0},null,0]
[105,"Boneth 2 (Compra)","- Diámetro mínimo de 20 pulgadas\n- Elaborado en hilaza de algodón","Unidad",{"$f":"SUM(I118:I118)","v":0},null,0]
[106,"Bolsas plásticas 1 (Compra)","- Elaborada en polietileno de baja densidad\n- De color negro\n- Calibre de mínimo 1\n- Tamaño de 40 cm de ancho por 55 cm de largo","Paquete de mínimo 6",{"$f":"SUM(I119:I119)","v":0},null,0]
[107,"Bolsas plásticas 2 (Compra)","- Elaborada en polietileno de baja densidad\n- De color verde\n- Calibre de mínimo 1\n- Tamaño de 40 cm de ancho por 55 cm de largo","Paquete de mínimo 6",{"$f":"SUM(I120:I120)","v":0},null,0]
[108,"Bolsas plásticas 3 (Compra)","- Elaborada en polietileno de baja densidad\n- De color blanco\n- Calibre de mínimo 1\n- Tamaño de 40 cm de ancho por 55 cm de largo","Paquete de mínimo 6",{"$f":"SUM(I121:I121)","v":0},null,0]
[109,"Bolsas plásticas 4 (Compra)","- Elaborada en polietileno de baja densidad\n- De color rojo\n- Calibre de mínimo 1\n- Tamaño de 40 cm de ancho por 55 cm de largo\n - Con impresión de aviso de riesgo biológico","Paquete de mínimo 6",{"$f":"SUM(I122:I122)","v":0},null,0]
[110,"Bolsas plásticas 5 (Compra)","- Elaborada en polietileno de baja densidad\n- De color azul\n- Calibre de mínimo 1\n- Tamaño de 40 cm de ancho por 55 cm de largo","Paquete de mínimo 6",{"$f":"SUM(I123:I123)","v":0},null,0]
[111,"Bolsas plásticas 7 (Compra)","- Elaborada en polietileno de baja densidad\n- De color amarillo\n- Calibre de mínimo 1\n- Tamaño de 40 cm de ancho por 55 cm de largo","Paquete de mínimo 6",{"$f":"SUM(I124:I124)","v":0},null,0]
[112,"Bolsas plásticas 8 (Compra)","- Elaborada en polietileno de baja densidad\n- De color negro\n-Calibre de mínimo 2\n- Tamaño de 60 cm de ancho por 70 cm de largo","Paquete de mínimo 6",{"$f":"SUM(I125:I125)","v":0},null,0]
[113,"Bolsas plásticas 9 (Compra)","- Elaborada en polietileno de baja densidad\n- De color verde\n- Calibre de mínimo 2\n- Tamaño de 60 cm de ancho por 70 cm de largo","Paquete de mínimo 6",{"$f":"SUM(I126:I126)","v":0},null,0]
[114,"Bolsas plásticas 10 (Compra)","- Elaborada en polietileno de baja densidad\n- De color blanco\n- Calibre de mínimo 2\n- Tamaño de 60 cm de ancho por 70 cm de largo","Paquete de mínimo 6",{"$f":"SUM(I127:I127)","v":0},null,0]
[115,"Bolsas plásticas 11 (Compra)","- Elaborada en polietileno de baja densidad\n- De color rojo\n- Calibre de mínimo 2\n- Tamaño de 60 cm de ancho por 70 cm de largo\n- Con impresión de aviso de riesgo biológico","Paquete de mínimo 6",{"$f":"SUM(I128:I128)","v":0},null,0]
[116,"Bolsas plásticas 12 (Compra)","- Elaborada en polietileno de baja densidad\n- De color azul\n- Calibre de mínimo 2\n- Tamaño de 60 cm de ancho por 70 cm de largo\n","Paquete de mínimo 6",{"$f":"SUM(I129:I129)","v":0},null,0]
[117,"Bolsas plásticas 14 (Compra)","- Elaborada en polietileno de baja densidad\n- De color amarillo\n- Calibre de mínimo 2\n- Tamaño de 60 cm de ancho por 70 cm de largo\n","Paquete de mínimo 6",{"$f":"SUM(I130:I130)","v":0},null,0]
[118,"Bolsas plásticas 15 (Compra)","- Elaborada en polietileno de baja densidad\n- De color negro\n- Calibre de mínimo 2\n- Tamaño de 70 cm de ancho por 90 cm de largo","Paquete de mínimo 6",{"$f":"SUM(I131:I131)","v":0},null,0]
[119,"Bolsas plásticas 16 (Compra)","- Elaborada en polietileno de baja densidad\n- De color verde\n- Calibre de mínimo 2\n- Tamaño de 70 cm de ancho por 90 cm de largo","Paquete de mínimo 6",{"$f":"SUM(I132:I132)","v":0},null,0]
[120,"Bolsas plásticas 17 (Compra)","- Elaborada en polietileno de baja densidad\n- De color blanco\n- Calibre de mínimo 2\n- Tamaño de 70 cm de ancho por 90 cm de largo","Paquete de mínimo 6",{"$f":"SUM(I133:I133)","v":0},null,0]
[121,"Bolsas plásticas 18 (Compra)","- Elaborada en polietileno de baja densidad\n- De color rojo\n- Calibre de mínimo 2\n- Tamaño de 70 cm de ancho por 90 cm de largo\n- Con impresión de aviso de riesgo biológico","Paquete de mínimo 6",{"$f":"SUM(I134:I134)","v":0},null,0]
[122,"Bolsas plásticas 19 (Compra)","- Elaborada en polietileno de baja densidad\n- De color azul\n- Calibre de mínimo 2\n- Tamaño de 70 cm de ancho por 90 cm de largo\n","Paquete de mínimo 6",{"$f":"SUM(I135:I135)","v":0},null,0]
[123,"Bolsas plásticas 20 (Compra)","- Elaborada en polietileno de baja densidad\n- De color amarillo\n- Calibre de mínimo 2\n- Tamaño de 70 cm de ancho por 90 cm de largo\n","Paquete de mínimo 6",{"$f":"SUM(I136:I136)","v":0},null,0]
[124,"Bolsas plásticas 21 (Compra)","- Elaborada en polietileno de baja densidad\n- De color negro\n- Calibre de mínimo 3\n- Tamaño de 80 cm de ancho por 110 cm de largo","Paquete de mínimo 6",{"$f":"SUM(I137:I137)","v":0},null,0]
[125,"Bolsas plásticas 22 (Compra)","- Elaborada en polietileno de baja densidad\n- De color verde\n- Calibre de mínimo 3\n- Tamaño de 80 cm de ancho por 110 cm de largo","Paquete de mínimo 6",{"$f":"SUM(I138:I138)","v":0},null,0]
[126,"Bolsas plásticas 23 (Compra)","- Elaborada en polietileno de baja densidad\n- De color blanco\n-Calibre de mínimo 3\n- Tamaño de 80 cm de ancho por 110 cm de largo","Paquete de mínimo 6",{"$f":"SUM(I139:I139)","v":0},null,0]
[127,"Bolsas plásticas 24 (Compra)","- Elaborada en polietileno de baja densidad\n- De color rojo\n-Calibre de mínimo 3\n- Tamaño de 80 cm de ancho por 110 cm de largo\n- Con impresión de aviso de riesgo biológico","Paquete de mínimo 6",{"$f":"SUM(I140:I140)","v":0},null,0]
[128,"Bolsas plásticas 25 (Compra)","- Elaborada en polietileno de baja densidad\n- De color azul\n-Calibre de mínimo 3\n- Tamaño de 80 cm de ancho por 110 cm de largo\n","Paquete de mínimo 6",{"$f":"SUM(I141:I141)","v":0},null,0]
[129,"Bolsas plásticas 26 (Compra)","- Elaborada en polietileno de baja densidad\n- De color amarilla\n-Calibre de mínimo 3\n- Tamaño de 80 cm de ancho por 110 cm de largo\n","Paquete de mínimo 6",{"$f":"SUM(I142:I142)","v":0},null,0]
[130,"Guantes 1 (Compra)","- Tipo doméstico\n- Elaborados en látex\n- Calibre mínimo de 18\n- Tallas 7 a 9 o S a XL\n- Color amarillo","Par",{"$f":"SUM(I143:I143)","v":0},null,{"$f":"E143*F143","v":0}]
[131,"Guantes 2 (Compra)","- Tipo doméstico\n- Elaborados en látex\n- Calibre mínimo de 18\n- Tallas 7 a 9 o S a XL\n- Color negro","Par",{"$f":"SUM(I144:I144)","v":0},null,0]
[132,"Guantes 3 (Compra)","- Tipo doméstico\n- Elaborados en látex\n- Calibre mínimo de 25\n- Tallas 7 a 9 o S a XL\n- Color negro","Par",{"$f":"SUM(I145:I145)","v":0},null,0]
[133,"Guantes 4 (Compra)","- Tipo doméstico\n- Elaborados en látex\n- Calibre mínimo de 25\n- Tallas 7 a 9 o S a XL\n- Color rojo","Par",{"$f":"SUM(I146:I146)","v":0},null,0]
[134,"Guantes 5 (Compra)","- Tipo industrial\n- Elaborados en látex\n- Calibre mínimo de 35\n- Tallas 7 a 9 o S a XL\n- Color negro","Par",{"$f":"SUM(I147:I147)","v":0},null,0]
[135,"Guantes 6 (Compra)","- Elaborados en látex desechable (tipo cirugía)\n- Empovaldos\n- Tallas XS a XXL","Caja de mínimo 100 unidades",{"$f":"SUM(I148:I148)","v":0},null,0]
[136,"Guantes 7 (Compra)","- Elaborados en carnaza\n- Tallas 7 a 9 o S a XL","Par",{"$f":"SUM(I149:I149)","v":0},null,0]
[137,"Guantes 8 (Compra)","- Tipo mosquetero\n- Calibre mínimo de 40\n- Tallas 7 a 9 o S a XL\n- Color negro","Par",{"$f":"SUM(I150:I150)","v":0},null,0]
[138,"Guantes 9 (Compra)","- Elaborados en hilaza\n- Tallas 7 a 9 o S a XL","Par",{"$f":"SUM(I151:I151)","v":0},null,0]
[139,"Tapabocas 1 (Compra)","- Elaborado en tela no tejida\n- Desechable\n- Con tiras elásticas","Caja de mínimo 50 unidades",{"$f":"SUM(I152:I152)","v":0},null,0]
[140,"Tapabocas 2 (Compra)","- Elaborado en tela no tejida de Polipropileno y Poliéster\n- Desechable\n- Con tiras elásticas\n- Con soporte nasal","Caja de mínimo 50 unidades",{"$f":"SUM(I153:I153)","v":0},null,0]
[141,"Papel higiénico 1 (Compra)"," - Rollo con longitud mínima de 20 metros\n - Doble hoja blanca\n - Sin fragancia","Rollo",{"$f":"SUM(I154:I154)","v":0},null,0]
[142,"Papel higiénico 2 (Compra)","- Rollo con longitud mínima de 250 metros\n- Doble hoja de color natural\n- Sin fragancia","Rollo",{"$f":"SUM(I155:I155)","v":0},null,0]
[143,"Papel higiénico 3 (Compra)","- Rollo con longitud mínima de 250 metros\n- Doble hoja blanca\n- Sin fragancia","Rollo",{"$f":"SUM(I156:I156)","v":0},null,0]
[144,"Papel higiénico 4 (Compra)","- Rollo con longitud mínima de 400 metros\n- Hoja sencilla de color natural\n- Sinfragancia","Rollo",{"$f":"SUM(I157:I157)","v":0},null,0]
[145,"Papel higiénico 5 (Compra)"," - Rollo con longitud mínima de 400 metros\n - Hoja sencilla de color blanco\n - Sin fragancia","Rollo",{"$f":"SUM(I158:I158)","v":0},null,0]
[146,"Toallas para manos 1 (Compra)","- Rollo con longitud mínima de 100 metros\n- Doble hoja con un tamaño mínimo 15 cm de ancho\n- Disponibles en color blanco","Rollo",{"$f":"SUM(I159:I159)","v":0},null,0]
[147,"Toallas para manos 2 (Compra)","- Rollo con longitud mínima de 100 metros\n- Doble hoja con un tamaño mínimo 15 cm de ancho\n- Disponibles en color natural","Rollo",{"$f":"SUM(I160:I160)","v":0},null,0]
[148,"Toallas para manos 3 (Compra)"," - Rollo con longitud mínima de 150 metros\n - Doble hoja con un tamaño mínimo 15 cm de ancho\n - Disponibles en color blanco\n - Sin olor o fragancia","Rollo",{"$f":"SUM(I161:I161)","v":0},null,0]
[149,"Toallas para manos 4 (Compra)"," - Rollo con longitud mínima de 150 metros\n - Doble hoja con un tamaño mínimo 15 cm de ancho\n - Disponibles en color natural\n - Sin fragancia","Rollo",{"$f":"SUM(I162:I162)","v":0},null,0]
[150,"Toallas para manos 5 (Compra)","- Toallas interdobladas, paquete con mínimo 150 unidades\n- Doble hoja con un tamaño mínimo de 20 cm de largo por 15 cm de ancho\n - Hoja color natural","Unidad",{"$f":"SUM(I163:I163)","v":0},null,0]
[151,"Toallas para manos 6 (Compra)","- Toallas interdobladas, paquete con mínimo 150 unidades\n- Doble hoja con un tamaño mínimo de 20 cm de largo por 15 cm de ancho\n - Hoja color blanco","Unidad",{"$f":"SUM(I164:I164)","v":0},null,0]
[152,"Toallas para manos 7 (Compra)","- Toallas con precorte\n- Rollo con longitud mínima de 100 metros\n- Doble hoja con tamaño mínimo de 15 cms de ancho\n- Color Blanco\n- Sin fragancia","Unidad",{"$f":"SUM(I165:I165)","v":0},null,0]
[153,"Toallas para manos 8 (Compra)","- Toallas con precorte\n- Rollo con longitud mínima de 100 metros\n- Doble hoja con tamaño mínimo de 15 cms de ancho\n- Color Natural\n- Sin fragancia","Unidad",{"$f":"SUM(I166:I166)","v":0},null,0]
[154,"Pañuelos (Compra)","- Doble hoja\n- Color blanco","Caja de mínimo 50 unidades",{"$f":"SUM(I167:I167)","v":0},null,0]
[155,"Vasos biodegradables 1 (Compra)"," - Elaborado en cartón 97% biodegradable\n- Capacidad mínima de 4 oz","Paquete de mínimo 50 unidades",{"$f":"SUM(I168:I168)","v":0},null,0]
[156,"Vasos biodegradables 2 (Compra)"," - Elaborado en cartón 97% biodegradable\n - Capacidad mínima de 6 oz","Paquete de mínimo 50",{"$f":"SUM(I169:I169)","v":0},null,0]
[157,"Vasos biodegradables 3 (Compra)"," - Elaborado en cartón 97% biodegradable\n- Capacidad mínima de 9 oz","Paquete de mínimo 40 unidades",{"$f":"SUM(I170:I170)","v":0},null,0]
[158,"Vasos biodegradables 4 (Compra)","- Capacidad mínima de 9 onzas \n- Sin tapa \n- Liso\n- Biodegradable y compostable.\n- Elaborado en polyboard (cartón)  y/ocon la fibra de caña de azúcar o almidón de maíz","Paquete de mínimo 50 unidades",{"$f":"SUM(I171:I171)","v":0},null,0]
[159,"Mezclador 1 (Compra)","- Mezcladores  elaborados en madera y/o apartir de recursos renovables como la caña de azucar y/o almidón de maíz\n- Longitud mínima de 11 cm","Paquete de mínimo 500",{"$f":"SUM(I172:I172)","v":0},null,0]
[160,"Servilleta papel (Compra)","- Tipo cafetería\n - Dobe hoja\n- Color blanco\n- Dimensiones mínimas de 21,5 cm de largo y 14 cm de ancho\n- 100% Biodegradable \n- Elaborado a base de papel reciclado no clorado\n- No debe contener PVC o Poliestireno expandido u otros plásticos de un solo uso tanto en el envase como en el embalaje.","Paquete de mínimo 100 unidades",{"$f":"SUM(I173:I173)","v":0},null,0]
[161,"Filtro para greca 1 (Compra)","- Elaborada en tela\n- Para greca\n- Capacidad de media libra\n- No debe contener PVC o Poliestireno expandido u otros plásticos de un solo uso tanto en el envase como en el embalaje","Unidad",{"$f":"SUM(I174:I174)","v":0},null,0]
[162,"Filtro para greca 2 (Compra)","- Elaborada en tela\n- Para greca\n- Capacidad de una 1 libra\n- No debe contener PVC o Poliestireno expandido u otros plásticos de un solo uso tanto en el envase como en el embalaje.","Unidad",{"$f":"SUM(I175:I175)","v":0},null,0]
[163,"Filtro para greca 3 (Compra)","- Elaborada en tela\n- Para greca\n- Capacidad de dos 2 libras\n- No debe contener PVC o Poliestireno expandido u otros plásticos de un solo uso tanto en el envase como en el embalaje.","Unidad",{"$f":"SUM(I176:I176)","v":0},null,0]
[164,"Churrusco para tubos de greca (Compra)","- Cepillo para lavado y fregado de grecas.  \n- No debe contener PVC, Poliestireno expandido u otros plásticos de un solo uso tanto en el envase como en el embalaje.\n- Base y mango elaborados en alambre","Unidad",{"$f":"SUM(I177:I177)","v":0},null,0]
[165,"Papel Aluminio 1 (Compra)","- Longitud mínima del rollo de 40 metros\n- Ancho mínimo del rollo de 27 cm","Caja de carton con un 1 rollo de mínimo 40 metros de largo y 27\ncm de ancho",{"$f":"SUM(I178:I178)","v":0},null,0]
[166,"Papel Aluminio 2 (Compra)","- Longitud mínima del rollo de 100 metros\n- Ancho mínimo del rollo de 27 cm","Caja de carton con un 1 rollo de mínimo 100 metros de largo y 27\ncm de ancho",{"$f":"SUM(I179:I179)","v":0},null,0]
[167,"Película transparente para alimentos (Compra)","- Longitud mínima del rollo de 50 metros\n- Ancho mínimo del rollo de 27 cm","Caja de carton con un 1 rollo",{"$f":"SUM(I180:I180)","v":0},null,0]
[168,"Termo para café 1 (Compra)","- Elaborado en plástico\n- Capacidad mínima de 1 litro","Unidad",{"$f":"SUM(I181:I181)","v":0},null,0]
[169,"Termo para café 2 (Compra)"," - Térmico, con bomba tipo dispensador. Portatil.  \n - Bomba manual para dispensar la bebida.  \n - Acero inoxidable y plastico. \n - Agarradera plastica, tapa con empaque, bomba manual. \n - Capacidad mínima de 3 litros","Unidad",{"$f":"SUM(I182:I182)","v":0},null,0]
[170,"Café 1 (Compra)","- 100% café tostado y molido.   \n- Tostión media.                                          \n- Puntaje en taza mayor o igual a 80 puntos catación SCA y/o Denominación de Origen (Anexo 6)\n- Empacada en bolsa de polipropileno aluminizada resistente a la humedad y al oxígeno.  \n- Debe cumplir con las Resoluciones 333 de 2011 y 2674 de 2013 hasta la entrada en vigencia de la Resolución 810 de 2021 y aquellas que la modifiquen, adicionen o deroguen.","Libra",{"$f":"SUM(I183:I183)","v":0},null,0]
[171,"Café 2 (Compra)","- Tostión media\n- Descafeinado\n- Empacado en bolsa de polipropileno aluminizada resistente a la humedad y al oxigeno\n- Debe cumplir con las Resoluciones 333 de 2011 y 2674 de 2013 y aquellas que la modifiquen, adicionen o deroguen.","Libra",{"$f":"SUM(I184:I184)","v":0},null,0]
[172,"Café 3 (Compra)","- Instantáneo, para máquinas automáticas\n- Tostión media\n- Empacada en bolsa de polipropileno aluminizada resistente a la humedad y al oxígeno.  \n- Debe cumplir con las Resoluciones 333 de 2011 y 2674 de 2013 hasta la entrada en vigencia de la Resolución 810 de 2021 y aquellas que la modifiquen, adicionen o deroguen.                          ","Bolsa de mínimo 500 g",{"$f":"SUM(I185:I185)","v":0},null,0]
[173,"Café Social (Compra)","- Diferentes tostiones\n- Puntaje en taza mayor o igual a a 82 puntos catación SCA y/o orgánico y/o artesanal y/o con Denominación de Origen\n- Empacada en bolsa de polipropileno aluminizada resistente a la humedad y al oxígeno.  \n- Debe cumplir con las Resoluciones 333 de 2011 y 2674 de 2013 hasta la entrada en vigencia de la Resolución 810 de 2021 y aquellas que la modifiquen, adicionen o deroguen\n","Bolsa de mínimo 500 g",{"$f":"SUM(I186:I186)","v":0},null,0]
[174,"Crema para café (Compra)","- No láctea\n- Debe cumplir con Resolución 333 de 2011 sobre rotulado y etiquetado nutricional y las normas que la modifiquen","Bolsas de mínimo 100 sobres de mínimo 4 g",{"$f":"SUM(I187:I187)","v":0},null,0]
[175,"Azúcar 1 (Compra)","- Blanca\n- Empaque elaborado en materiales atóxicos\n- Debe cumplir con Resolución 333 de 2011 sobre rotulado y etiquetado nutricional y las normas que la modifiquen","Bolsa de mínimo 200 sobres o tubipacks de 5 g",{"$f":"SUM(I188:I188)","v":0},null,0]
[176,"Azúcar 2 (Compra)","- Blanca\n- Empaque elaborado en materiales atóxicos\n- Debe cumplir con Resolución 333 de 2011 sobre rotulado y etiquetado nutricional y las normas que la modifiquen","Bolsa de mínimo 200 sobres o tubipacks de 3,5 g",{"$f":"SUM(I189:I189)","v":0},null,0]
[177,"Azúcar 3 (Compra)","- Blanca\n- Empaque elaborado en materiales atóxicos\n- Debe cumplir con Resolución 333 de 2011 sobre rotulado y etiquetado nutricional y las normas que la modifiquen","Libra",{"$f":"SUM(I190:I190)","v":0},null,0]
[178,"Azúcar 4 (Compra)","- Morena\n- Empaque elaborado en materiales atóxicos\n- Debe cumplir con Resolución 333 de 2011 sobre rotulado y etiquetado nutricional y las normas que la modifiquen","Libra",{"$f":"SUM(I191:I191)","v":0},null,0]
[179,"Endulzante (Compra)","- Sin calorías\n- Empaque elaborado en materiales atóxicos\n- Debe cumplir con Resolución 333 de 2011 sobre rotulado y etiquetado nutricional y las normas que la modifiquen","Caja de mínimo 100 sobres",{"$f":"SUM(I192:I192)","v":0},null,0]
[180,"Panela (Compra)","- Panela instantánes pulverizada, deshidratada\n- Debe cumplir con la NTC 1311 sobreo productos agrícolas\n- Empaque elaborado en materiales atóxicos\n- Debe cumplir con la Resolucion 779 de 2006\n- Debe cumplir con Resolución 333 de 2011 sobre rotulado y etiquetado nutricional y las normas que la modifiquen","Bolsa de mínimo 100 sobres de mínimo 5 g",{"$f":"SUM(I193:I193)","v":0},null,0]
[181,"Sal 1 (Compra)","- Refinada, con un 99,9% de pureza\n- Con adiciones de yodo y flúor\n- Debe cumplir con Resolución 333 de 2011 sobre rotulado y etiquetado nutricional y las normas que la modifiquen","Libra (500 g)",{"$f":"SUM(I194:I194)","v":0},null,0]
[182,"Sal 2 (Compra)","- Refinada, con un 99,9% de pureza\n- Con adiciones de yodo y flúor\n- Debe cumplir con Resolución 333 de 2011 sobre rotulado y etiquetado nutricional y las normas que la modifiquen","1 kg (1.000 g)",{"$f":"SUM(I195:I195)","v":0},null,0]
[183,"Sal 3 (Compra)","- Refinada, con un 99,9% de pureza\n- Con adiciones de yodo y flúor\n- Debe cumplir con Resolución 333 de 2011 sobre rotulado y etiquetado nutricional y las normas que la modifiquen","Salero de mínimo 130 g",{"$f":"SUM(I196:I196)","v":0},null,0]
[184,"Aromática (Compra)","- Para infusión\n- Cajas disponbiles en mínimo tres (3) sabores\n- 100% naturales","Cajas de mínimo 20 en sobres.",{"$f":"SUM(I197:I197)","v":0},null,0]
[185,"Aromática de panela (Compra)","- Para infusión\n- Cajas disponbiles en sabor limón, yerbabuena, canela y naranja\n- Panela 100% natural y ecológica\n- Embalaje en cartón corrugado  \n- Debe cumplir con la NTC 1311 sobre productos agrícolas \n- Empaque elaborado en materiales atóxicos \n- Debe cumplir con la Resolucion 779 de 2006 \n- Debe cumplir con Resolución 333 de 2011 sobre rotulado y etiquetado nutricional y las normas que la modifiquen. \n- Uso: Panela instantánea soluble al agua \n- Azúcares reductores expresados en glucosa, mínimo 5,74%; azúcares no reductores expresados en sacarosa, máximo 90%; proteínas, mínimo 0,2%; cenizas, mínimo 1%; humedad, máximo 5%; plomo expresado como As en mg/kg, máximo 0,1;\n- No debe contener PVC o Poliestireno expandido u otros plásticos de un solo uso tanto en el envase como en el embalaje.","Cajas de mínimo 20 en sobres.",{"$f":"SUM(I198:I198)","v":0},null,0]
[186,"Bebida de frutas (Compra)","- En jarabe\n- Cajas disponbiles en mínimo tres (3) sabores","Caja de mínimo 20 sobres",{"$f":"SUM(I199:I199)","v":0},null,0]
[187,"Bebida de panela (Compra)","- Bebida instantánea granulada\n- Cajas disponbiles en mínimo tres (3) sabores","Caja de mínimo 25 sobres",{"$f":"SUM(I200:I200)","v":0},null,0]
[188,"Té (Compra)","- Para infusión\n- Cajas disponbiles en mínimo tres (3) sabores\n- 100% naturales","Caja x 20 mínimo sobres",{"$f":"SUM(I201:I201)","v":0},null,0]
[189,"Infusión frutal (Compra)"," - Para infusión\n - 100% naturales\n - Sabores surtidos","Caja x 20 mínimo sobres",{"$f":"SUM(I202:I202)","v":0},null,0]
[190,"Agua potable 1 (Compra)","- Agua potable purificada sin gas","Botella plástica de\nmínimo 250 ml",{"$f":"SUM(I203:I203)","v":0},null,0]
[191,"Agua potable 2 (Compra)"," - Agua potable purificada sin gas","Botella plástica de\nmínimo 500 ml",{"$f":"SUM(I204:I204)","v":0},null,0]
[192,"Agua potable 3 (Compra)"," - Agua potable purificada\n-  Con gas","Botella plástica de\nmínimo 500 ml",{"$f":"SUM(I205:I205)","v":0},null,0]
[193,"Agua potable 4 (Compra)","- Agua potable potable purificada","Botellón de mínimo 18.9 L",{"$f":"SUM(I206:I206)","v":0},null,0]
[194,"Válvula dispensadora para botellón de agua (Compra)","-Válvula en material plástico con boquilla ajustable a los diferentes tipos de botellones","Unidad",{"$f":"SUM(I207:I207)","v":0},null,{"$f":"E207*F207","v":0}]
[195,"Servilleta de tela (Compra)","- Elaborada en tela\n- Color blanco\n- Dimensiones mínimas de 40 cm de largo y 40 cm de ancho.","Unidad",{"$f":"SUM(I208:I208)","v":0},null,0]
[196,"Cepillo para paredes y techos (Compra)"," - Cuerpo elaborado en plástico\n - Cerdas duras en fibra plástica\n - Largo mínimo de 140 cm","Unidad",{"$f":"SUM(I209:I209)","v":0},null,0]
[197,"Brillador 1 (Compra)","- Mopa elaborada en algodón\n- Área de barrido mínima de 100 cm de largo por 16cm de ancho\n- Armazón y mango metálico","Unidad",{"$f":"SUM(I210:I210)","v":0},null,0]
[198,"Brillador 2 (Compra)","- Mopa elaborada en algodón\n- Área de barrido mínima de 60 cm de largo por 16cm de ancho\n- Armazón y mango metálico","Unidad",{"$f":"SUM(I211:I211)","v":0},null,0]
[199,"Repuestos brillador 1 (Compra)","- Mopa elaborada en algodón\n- Área de barrido mínima de 100 cm de largo por 16 cm de ancho","Unidad",{"$f":"SUM(I212:I212)","v":0},null,0]
[200,"Repuestos brillador 2 (Compra)","- Mopa elaborada en algodón\n- Área de barrido mínima de 60 cm de largo por 16 cm de ancho","Unidad",{"$f":"SUM(I213:I213)","v":0},null,0]
[201,"Destapador para sanitario (chupa) (Compra)","- Tipo campana\n- Chupa elaborada en caucho\n- Diámetro mínimo de 12 cm\n- Mango elaborado en madera\n- Mango con longitud mínima de 33 cm","Unidad",{"$f":"SUM(I214:I214)","v":0},null,0]
[202,"Plumero o limpia polvo (Compra)","- Fibras sintéticas\n- Mango de plástico\n- Largo total mínimo de 65 cm\n- Electrostático","Unidad",{"$f":"SUM(I215:I215)","v":0},null,0]
[203,"Rastrillo 1 (Compra)","- Barra dentada plástica con mínimo 18 dientes\n- Mango metálico  plastificado con longitud mínima de 120 cm","Unidad",{"$f":"SUM(I216:I216)","v":0},null,0]
[204,"Rastrillo 2 (Compra)","- Barra dentada metálica con mínimo 18 dientes\n- Mango metálico plastificado con longitud mínima de 120 cm","Unidad",{"$f":"SUM(I217:I217)","v":0},null,0]
[205,"Recogedor de basura 1 (Compra)","- Elaborado en plástico\n- Con banda de goma y dientas barrescobas\n- Mango con longitud mínima de 70 cm","Unidad",{"$f":"SUM(I218:I218)","v":0},null,0]
[206,"Recogedor de basura 2 (Compra)"," - Elaborado en plástico\n - Plegable, con tapa que abre y cierra","Unidad",{"$f":"SUM(I219:I219)","v":0},null,0]
[207,"Atomizadores (Compra)","- Elaborado en plástico\n- Reutilizable\n- Capacidad mínima de 500 cc\n- con pistola","Unidad",{"$f":"SUM(I220:I220)","v":0},null,0]
[208,"Caneca para almacenar ropa sucia  (Arrendamiento)","- Elaborado en plástico\n- Dimensiones mínimas de 50 cm de alto por 30 cm de ancho\n- Incluye tapa\n- En colores variados","Unidad",{"$f":"SUM(I221:I221)","v":0},null,0]
[209,"Caneca para almacenar ropa sucia  (Compra)","- Elaborado en plástico\n- Dimensiones mínimas de 50 cm de alto por 30 cm de ancho\n- Incluye tapa\n- En colores variados","Unidad",{"$f":"SUM(I222:I222)","v":0},null,0]
[210,"Vasos  1 (Arrendamiento)","- Elaborado en vidrio\n- Cilíndrico\n- Capacidad mínima de 9 oz","Unidad",{"$f":"SUM(I223:I223)","v":0},null,0]
[211,"Vasos  1 (Compra)","- Elaborado en vidrio\n- Cilíndrico\n- Capacidad mínima de 9 oz","Unidad",{"$f":"SUM(I224:I224)","v":0},null,0]
[212,"Vasos  2 (Arrendamiento)","- Elaborado en vidrio\n- Cilíndrico\n- Capacidad mínima de 12 oz","Unidad",{"$f":"SUM(I225:I225)","v":0},null,0]
[213,"Vasos  2 (Compra)","- Elaborado en vidrio\n- Cilíndrico\n- Capacidad mínima de 12 oz","Unidad",{"$f":"SUM(I226:I226)","v":0},null,0]
[214,"Cuchara  (Compra)","- Elaboradas en acero inoxidable\n- Longitud total mínima de 17 cm","Unidad",{"$f":"SUM(I227:I227)","v":0},null,0]
[215,"Tenedor  (Compra)","- Elaborados en acero inoxidable\n- lisos\n- Longitud total mínima de 17 cm","Unidad",{"$f":"SUM(I228:I228)","v":0}]
[216,"Cuchillo  (Compra)","- Elaborados en acero inoxidable\n- lisos\n- Longitud total mínima de 20 cm","Unidad",{"$f":"SUM(I229:I229)","v":0}]
[217,"Cuchara pequeña  (Compra)","- Elaborados en acero inoxidable\n- lisos\n- Longitud total mínima de 12 cm","Unidad",{"$f":"SUM(I230:I230)","v":0}]
[218,"Platos  1 (Arrendamiento)","- Elaborados en porcelana blanca\n- Llanos\n- Color blanco sin diseño\n- Diámetro mínimo de 26 cm\n- Apto para uso en horno microondas","Unidad",{"$f":"SUM(I231:I231)","v":0}]
[219,"Platos  1 (Compra)","- Elaborados en porcelana blanca\n- Llanos\n- Color blanco sin diseño\n- Diámetro mínimo de 26 cm\n- Apto para uso en horno microondas","Unidad",{"$f":"SUM(I232:I232)","v":0}]
[220,"Platos  2 (Arrendamiento)","- Elaborados en porcelana blanca\n- Llanos\n- Color blanco sin diseño\n- Diámetro mínimo de 22 cm\n- Apto para uso en horno microondas","Unidad",{"$f":"SUM(I233:I233)","v":0},null,0]
[221,"Platos  2 (Compra)","- Elaborados en porcelana blanca\n- Llanos\n- Color blanco sin diseño\n- Diámetro mínimo de 22 cm\n- Apto para uso en horno microondas","Unidad",{"$f":"SUM(I234:I234)","v":0},null,0]
[222,"Platos  3 (Arrendamiento)","- Elaborados en porcelana blanca\n- Llanos\n- Color blanco sin diseño\n- Diámetro mínimo de 16 cm\n- Apto para uso en horno microondas","Unidad",{"$f":"SUM(I235:I235)","v":0},null,0]
[223,"Platos  3 (Compra)","- Elaborados en porcelana blanca\n- Llanos\n- Color blanco sin diseño\n- Diámetro mínimo de 16 cm\n- Apto para uso en horno microondas","Unidad",{"$f":"SUM(I236:I236)","v":0},null,0]
[224,"Platos  4 (Arrendamiento)","- Elaborados en porcelana blanca\n- Hondo\n- Color blanco sin diseño\n- Diámetro mínimo de 17 cm\n- Apto para uso en horno microondas","Unidad",{"$f":"SUM(I237:I237)","v":0},null,0]
[225,"Platos  4 (Compra)","- Elaborados en porcelana blanca\n- Hondo\n- Color blanco sin diseño\n- Diámetro mínimo de 17 cm\n- Apto para uso en horno microondas","Unidad",{"$f":"SUM(I238:I238)","v":0},null,0]
[226,"Platos  5 (Arrendamiento)","- Elaborados en porcelana blanca\n- Hondo\n- Color blanco  sin diseño\n- Diámetro mínimo de 22 cm\n- Apto para uso en horno microondas","Unidad",{"$f":"SUM(I239:I239)","v":0},null,0]
[227,"Platos  5 (Compra)","- Elaborados en porcelana blanca\n- Hondo\n- Color blanco  sin diseño\n- Diámetro mínimo de 22 cm\n- Apto para uso en horno microondas","Unidad",{"$f":"SUM(I240:I240)","v":0},null,0]
[228,"Pocillos  (Arrendamiento)","- Elaborado en porcelana blanca para café\n- Sin diseño\n- De mínimo 150 cc\n- No se debe rayar con el uso de cubiertos\n- Debe ser apta para uso en microondas","Unidad",{"$f":"SUM(I241:I241)","v":0},null,0]
[229,"Pocillos  (Compra)","- Elaborado en porcelana blanca para café\n- Sin diseño\n- De mínimo 150 cc\n- No se debe rayar con el uso de cubiertos\n- Debe ser apta para uso en microondas","Unidad",{"$f":"SUM(I242:I242)","v":0},null,0]
[230,"Juego de cubiertos  (Compra)","- Elaborados en acero inoxidable\n- Incluye cuchillo (longitud mínima de 20 cm), tenedor (longitud mínima de 17 cm), cuchara (longitud mínima de 17 cm), cuchara pequeña para postre (longitud mínima de 12 cm) y tenedor pequeño (longitud mínima de 12 cm).","Juego de 6 puestos",{"$f":"SUM(I243:I243)","v":0},null,0]
[231,"Terno para café (Arrendamiento)","-Pocillo y plato de porcelana blanca para café.\n- Sin diseño\n- Plato de mínimo 12 cm de diámetro y pocillo de mínimo 150 cc\n- No se debe rayar con el uso de los cubiertos y\ndebe ser apta para uso en horno microondas.","Juego",{"$f":"SUM(I244:I244)","v":0},null,0]
[232,"Terno para café (Compra)","-Pocillo y plato de porcelana blanca para café.\n- Sin diseño\n- Plato de mínimo 12 cm de diámetro y pocillo de mínimo 150 cc\n- No se debe rayar con el uso de los cubiertos y\ndebe ser apta para uso en horno microondas.","Juego",{"$f":"SUM(I245:I245)","v":0}]
[233,"Vajilla  1 (Arrendamiento)","- Elaborada en porcelana\n- Sin diseño\n- Compuesta de 8 puestos y cuatro piezas por puesto:\n- Plato para cena (diámetro mínimo de 26 cm)\n- Plato hondo (diámetro mínimo de 20 cm)\n- Plato auxiliar (diámetro mínimo de 16 cm)\n- Taza (capacidad mínima es de 280 cc)\n- Apta para uso en horno microondas.","Juego",{"$f":"SUM(I246:I246)","v":0},null,0]
[234,"Vajilla  1 (Compra)","- Elaborada en porcelana\n- Sin diseño\n- Compuesta de 8 puestos y cuatro piezas por puesto:\n- Plato para cena (diámetro mínimo de 26 cm)\n- Plato hondo (diámetro mínimo de 20 cm)\n- Plato auxiliar (diámetro mínimo de 16 cm)\n- Taza (capacidad mínima es de 280 cc)\n- Apta para uso en horno microondas.","Juego",{"$f":"SUM(I247:I247)","v":0},null,0]
[235,"Vajilla  2 (Arrendamiento)","- Elaborada en porcelana\n- Sin diseño\n- Compuesta de 4 puestos y cuatro piezas por puesto:\n- Plato para cena (diámetro mínimo de 26 cm)\n- Plato hondo (diámetro mínimo de 20 cm)\n- Plato auxiliar (diámetro mínimo de 16 cm)\n- Taza (capacidad mínima es de 280 cc)\n- Apta para uso en horno microondas.","Juego",{"$f":"SUM(I248:I248)","v":0},null,{"$f":"E248*F248","v":0}]
[236,"Vajilla  2 (Compra)","- Elaborada en porcelana\n- Sin diseño\n- Compuesta de 4 puestos y cuatro piezas por puesto:\n- Plato para cena (diámetro mínimo de 26 cm)\n- Plato hondo (diámetro mínimo de 20 cm)\n- Plato auxiliar (diámetro mínimo de 16 cm)\n- Taza (capacidad mínima es de 280 cc)\n- Apta para uso en horno microondas.","Juego",{"$f":"SUM(I249:I249)","v":0},null,0]
[237,"Cuchillo de cocina  (Compra)","- Hoja elaborada en acero inoxidable de mínimo 20 cm de largo y 2 cm de ancho.\n- Mango liso elaborado en polipropileno negro","Unidad",{"$f":"SUM(I250:I250)","v":0},null,0]
[238,"Tijeras de cocina  (Compra)","- Hojas elaborada en acero inoxidable de mínimo 20 cm de largo\n- Mango de plástico liso","Unidad",{"$f":"SUM(I251:I251)","v":0},null,0]
[239,"Jarra  (Arrendamiento)","- Elaborada en vidrio\n- Sin diseño\n- Capacidad mínima de 1,5 litros","Unidad",{"$f":"SUM(I252:I252)","v":0},null,0]
[240,"Jarra  (Compra)","- Elaborada en vidrio\n- Sin diseño\n- Capacidad mínima de 1,5 litros","Unidad",{"$f":"SUM(I253:I253)","v":0},null,0]
[241,"Combustible para Cortadora de césped, sopladora de hojas y guadañas (Compra)"," - Gasolina ","Galón",{"$f":"SUM(I254:I254)","v":0},null,0]
[242,"Organizador  porta escobas  (Compra)","- Con capacidad para organizar mínimo 4 escobas de manera simultánea","Unidad",{"$f":"SUM(I255:I255)","v":0},null,0]
[243,"Espátula  (Compra)","- Metálica con mango de plástico\n- Con hoja de mínimo 2 pulgadas de largo","Unidad",{"$f":"SUM(I256:I256)","v":0},null,0]
[244,"Haraganes 1  (Compra)","- Para limpiar vidrios\n- Con banda de goma con longitud mínima de 25 cm.\n- Mango con longitud mínima de 60 cm","Unidad",{"$f":"SUM(I257:I257)","v":0},null,0]
[245,"Haraganes 2  (Compra)","- Para limpiar vidrios\n- Con banda de goma con longitud mínima de 50 cm.\n- Mango metálico extensible con longitud mínima\nde 60 cm y máxima de 150 cm","Unidad",{"$f":"SUM(I258:I258)","v":0},null,0]
[246,"Haraganes 3  (Compra)","- Para escurrir pisos\n- Con banda de goma con longitud mínima de 35 cm","Unidad",{"$f":"SUM(I259:I259)","v":0},null,0]
[247,"Haraganes 4  (Compra)","- Para escurrir pisos\n-Con banda de goma con longitud mínima de 50 cm.","Unidad",{"$f":"SUM(I260:I260)","v":0},null,0]
[248,"Balde (Arrendamiento)","- Capacidad mínima de 10 litros\n- Con manija móvil\n- Con \"pico\" antiderrames\n- Disponibles en diferentes colores\n- Elaborado en material reciclable\n- Marcado de acuerdo con la norma ISO 11469 y ISO 1043. ","Unidad",{"$f":"SUM(I261:I261)","v":0},null,0]
[249,"Balde (Compra)","- Capacidad mínima de 10 litros\n- Con manija móvil\n- Con \"pico\" antiderrames\n- Disponibles en diferentes colores\n- Elaborado en material reciclable\n- Marcado de acuerdo con la norma ISO 11469 y ISO 1043. ","Unidad",{"$f":"SUM(I262:I262)","v":0},null,0]
[250,"Plato Biodegradable 1 (Compra)","- Plato pando, circular, sin divisiones \n- Biodegradable  \n-Tamaño: 15 cm\n- Sin ala\n- Elaborado con la fibra de caña de azúcar o almidón de maíz\n- No debe contener PVC o Poliestireno expandido u otros plásticos de un solo uso tanto en el envase como en el embalaje.","Unidad",{"$f":"SUM(I263:I263)","v":0},null,0]
[251,"Plato Biodegradable 2 (Compra)","- Plato pando, circular, sin divisiones \n- Biodegradable  \n-Tamaño: 18 cm\n- Sin ala\n- Elaborado con la fibra de caña de azúcar o almidón de maíz\n- No debe contener PVC o Poliestireno expandido u otros plásticos de un solo uso tanto en el envase como en el embalaje.","Unidad",{"$f":"SUM(I264:I264)","v":0},null,0]
[252,"Pocillos  (Arrendamiento)","- Elaborado en porcelana blanca para café\n- De mínimo 170 cc\n- No se debe rayar con el uso de cubiertos\n- Debe ser apta para uso en microondas","Unidad",{"$f":"SUM(I265:I265)","v":0},null,0]
[253,"Pocillos  (Compra)","- Elaborado en porcelana blanca para café\n- De mínimo 170 cc\n- No se debe rayar con el uso de cubiertos\n- Debe ser apta para uso en microondas","Unidad",{"$f":"SUM(I266:I266)","v":0},null,0]
[254,"Terno para café  (Arrendamiento)","-Pocillo y plato de porcelana blanca para café.\n- Plato de mínimo 13 cm de diámetro y pocillo de mínimo 170 cc\n- No se debe rayar con el uso de los cubiertos y\ndebe ser apta para uso en horno microondas.","Juego",{"$f":"SUM(I267:I267)","v":0},null,0]
[255,"Terno para café  (Compra)","-Pocillo y plato de porcelana blanca para café.\n- Plato de mínimo 13 cm de diámetro y pocillo de mínimo 170 cc\n- No se debe rayar con el uso de los cubiertos y\ndebe ser apta para uso en horno microondas.","Juego",{"$f":"SUM(I268:I268)","v":0},null,0]
[256,"Cafetera 1 (Arrendamiento)"," - Capacidad mínima de 12 tazas\n - 120 voltios\n - Potencia mínima de 900 w\n - Filtro permanente\n - Material plástico\n - Jarra de vidrio","Unidad",{"$f":"SUM(I269:I269)","v":0},null,0]
[257,"Cafetera 1 (Compra)"," - Capacidad mínima de 12 tazas\n - 120 voltios\n - Potencia mínima de 900 w\n - Filtro permanente\n - Material plástico\n - Jarra de vidrio","Unidad",{"$f":"SUM(I270:I270)","v":0},null,0]
[258,"Vajilla  1 (Arrendamiento)","- Elaborada en porcelana\n- Compuesta de 8 puestos y cuatro piezas por puesto:\n- Plato para cena (diámetro mínimo de 26 cm)\n- Plato hondo (diámetro mínimo de 20 cm)\n- Plato auxiliar (diámetro mínimo de 17 cm)\n- Taza (capacidad mínima es de 280 cc)\n- Apta para uso en horno microondas","Juego",{"$f":"SUM(I271:I271)","v":0},null,0]
[259,"Vajilla  1 (Compra)","- Elaborada en porcelana\n- Compuesta de 8 puestos y cuatro piezas por puesto:\n- Plato para cena (diámetro mínimo de 26 cm)\n- Plato hondo (diámetro mínimo de 20 cm)\n- Plato auxiliar (diámetro mínimo de 17 cm)\n- Taza (capacidad mínima es de 280 cc)\n- Apta para uso en horno microondas","Juego",{"$f":"SUM(I272:I272)","v":0},null,0]
[260,"Vajilla  2 (Arrendamiento)","- Elaborada en porcelana\n- Compuesta de 4 puestos y cuatro piezas por puesto:\n- Plato para cena (diámetro mínimo de 26 cm)\n- Plato hondo (diámetro mínimo de 20 cm)\n- Plato auxiliar (diámetro mínimo de 17 cm)\n- Taza (capacidad mínima es de 280 cc)\n- Apta para uso en horno microondas","Juego",{"$f":"SUM(I273:I273)","v":0},null,0]
[261,"Vajilla  2 (Compra)","- Elaborada en porcelana\n- Compuesta de 4 puestos y cuatro piezas por puesto:\n- Plato para cena (diámetro mínimo de 26 cm)\n- Plato hondo (diámetro mínimo de 20 cm)\n- Plato auxiliar (diámetro mínimo de 17 cm)\n- Taza (capacidad mínima es de 280 cc)\n- Apta para uso en horno microondas","Juego",{"$f":"SUM(I274:I274)","v":0},null,0]
[262,"Portavasos (Arrendamiento)","- Elaborado en acero inoxidable\n- Diámetro mínimo de 12 cm","Unidad",{"$f":"SUM(I275:I275)","v":0},null,0]
[263,"Portavasos (Compra)","- Elaborado en acero inoxidable\n- Diámetro mínimo de 12 cm","Unidad",{"$f":"SUM(I276:I276)","v":0},null,0]
[264,"Bandeja 1 (Arrendamiento)","- Elaborada en acero inoxidable\n- Sin diseño\n- Dimensiones mínimas de 37 cm de largo por 27 cm de ancho","Unidad",{"$f":"SUM(I277:I277)","v":0},null,0]
[265,"Bandeja 1 (Compra)","- Elaborada en acero inoxidable\n- Sin diseño\n- Dimensiones mínimas de 37 cm de largo por 27 cm de ancho","Unidad",{"$f":"SUM(I278:I278)","v":0},null,0]
[266,"Bandeja 2 (Arrendamiento)","- Elaborada en acero inoxidable\n- Sin diseño\n- Dimensiones mínimas de 50 cm de largo por 33 cm de ancho","Unidad",{"$f":"SUM(I279:I279)","v":0},null,0]
[267,"Bandeja 2 (Compra)","- Elaborada en acero inoxidable\n- Sin diseño\n- Dimensiones mínimas de 50 cm de largo por 33 cm de ancho","Unidad",{"$f":"SUM(I280:I280)","v":0},null,0]
[268,"Bandeja 3 (Arrendamiento)","- Elaborada en plástico\n- Superficie antideslizante\n- Diseño sencillo\n- Dimensiones mínimas de 37cm de largo por 27 cm de ancho\n- Color blanco o beige","Unidad",{"$f":"SUM(I281:I281)","v":0},null,0]
[269,"Bandeja 3 (Compra)","- Elaborada en plástico\n- Superficie antideslizante\n- Diseño sencillo\n- Dimensiones mínimas de 37cm de largo por 27 cm de ancho\n- Color blanco o beige","Unidad",{"$f":"SUM(I282:I282)","v":0},null,0]
[270,"Bandeja 4 (Arrendamiento)","- Elaborada en plástico\n- Superficie antideslizante\n- Diseño sencillo\n- Dimensiones mínimas de 45 cm de largo por 35 cm de ancho\n- Color blanco o beige","Unidad",{"$f":"SUM(I283:I283)","v":0},null,0]
[271,"Bandeja 4 (Compra)","- Elaborada en plástico\n- Superficie antideslizante\n- Diseño sencillo\n- Dimensiones mínimas de 45 cm de largo por 35 cm de ancho\n- Color blanco o beige","Unidad",{"$f":"SUM(I284:I284)","v":0},null,0]
[272,"Olleta (Arrendamiento)","- Elaborada en aluminio\n- Capacidad mínima de 2 litros","Unidad",{"$f":"SUM(I285:I285)","v":0},null,0]
[273,"Olleta (Compra)","- Elaborada en aluminio\n- Capacidad mínima de 2 litros","Unidad",{"$f":"SUM(I286:I286)","v":0},null,0]
[274,"Olla 1 (Arrendamiento)","- Elaborada en aluminio\n- Con tapa en aluminio\n- Capacidad mínima de 3 litros","Unidad",{"$f":"SUM(I287:I287)","v":0},null,0]
[275,"Olla 1 (Compra)","- Elaborada en aluminio\n- Con tapa en aluminio\n- Capacidad mínima de 3 litros","Unidad",{"$f":"SUM(I288:I288)","v":0},null,0]
[276,"Olla 2 (Arrendamiento)","- Elaborada en aluminio\n- Con tapa en aluminio\n- Capacidad mínima de 5 litros","Unidad",{"$f":"SUM(I289:I289)","v":0},null,0]
[277,"Olla 2 (Compra)","- Elaborada en aluminio\n- Con tapa en aluminio\n- Capacidad mínima de 5 litros","Unidad",{"$f":"SUM(I290:I290)","v":0},null,0]
[278,"Escurridor para platos (Arrendamiento)","- Elaborado en plástico\n- Con rejilla, portacubiertos y bandeja plástica de goteo\n- Dimensiones mínimas de 40 cm de largo y 30 cm de ancho","Unidad",{"$f":"SUM(I291:I291)","v":0},null,0]
[279,"Escurridor para platos (Compra)","- Elaborado en plástico\n- Con rejilla, portacubiertos y bandeja plástica de goteo\n- Dimensiones mínimas de 40 cm de largo y 30 cm de ancho","Unidad",{"$f":"SUM(I292:I292)","v":0},null,0]
[280,"Soporte para Botellón de agua (Compra)"," - Metálico\n- Plegable","Unidad",{"$f":"SUM(I293:I293)","v":0},null,0]
[281,"Carro exprimidor de trapero 1 (Arrendamiento)"," - Elaborado en plástico\n - Capacidad mínima de 24 litros\n - Con cuatro ruedas y manija de escurridor","Unidad",{"$f":"SUM(I294:I294)","v":0},null,0]
[282,"Carro exprimidor de trapero 1 (Compra)"," - Elaborado en plástico\n - Capacidad mínima de 24 litros\n - Con cuatro ruedas y manija de escurridor","Unidad",{"$f":"SUM(I295:I295)","v":0},null,0]
[283,"Carro exprimidor de trapero 2 (Arrendamiento)","- Elaborado en plástico\n- Capacidad mínima de 35 litros\n- Con cuatro ruedas y manija de escurridor","Unidad",{"$f":"SUM(I296:I296)","v":0},null,0]
[284,"Carro exprimidor de trapero 2 (Compra)","- Elaborado en plástico\n- Capacidad mínima de 35 litros\n- Con cuatro ruedas y manija de escurridor","Unidad",{"$f":"SUM(I297:I297)","v":0},null,0]
[285,"Carros para limpieza (Arrendamiento)","- Tamaño mínimo de 70 cm de largo por 50 cm de ancho por 95 cm de alto\n- Mínimo dos bandejas de servicio\n- Con mínimo una bolsa de limpieza\n- Con plataforma para balde escurridor\n- Con cuatro ruedas antirayones\n- Ruedas delanteras con ángulo de giro de 360 grados","Unidad",{"$f":"SUM(I298:I298)","v":0},null,0]
[286,"Carros para limpieza (Compra)","- Tamaño mínimo de 70 cm de largo por 50 cm de ancho por 95 cm de alto\n- Mínimo dos bandejas de servicio\n- Con mínimo una bolsa de limpieza\n- Con plataforma para balde escurridor\n- Con cuatro ruedas antirayones\n- Ruedas delanteras con ángulo de giro de 360 grados","Unidad",{"$f":"SUM(I299:I299)","v":0},null,0]
[287,"Carro de bebidas (Arrendamiento)","- Elaborado en plástico\n- Mínimo dos estantes para distribución de bebidas\n- Tamaño mínimo de 80 cm de largo por 47 cm de ancho por 90 cm de alto","Unidad",{"$f":"SUM(I300:I300)","v":0},null,0]
[288,"Carro de bebidas (Compra)","- Elaborado en plástico\n- Mínimo dos estantes para distribución de bebidas\n- Tamaño mínimo de 80 cm de largo por 47 cm de ancho por 90 cm de alto","Unidad",{"$f":"SUM(I301:I301)","v":0},null,0]
[289,"Escalera 1 (Arrendamiento)"," - Cuerpo plástico\n- Altura mínima de mínimo dos pasos.","Unidad",{"$f":"SUM(I302:I302)","v":0},null,0]
[290,"Escalera 1 (Compra)"," - Cuerpo plástico\n- Altura mínima de mínimo dos pasos.","Unidad",{"$f":"SUM(I303:I303)","v":0},null,0]
[291,"Escalera 2 (Arrendamiento)"," - Cuerpo Metálico\n- Altura mínima de  mínimo dos pasos.","Unidad",{"$f":"SUM(I304:I304)","v":0},null,0]
[292,"Escalera 2 (Compra)"," - Cuerpo Metálico\n- Altura mínima de  mínimo dos pasos.","Unidad",{"$f":"SUM(I305:I305)","v":0},null,0]
[293,"Escalera 3 (Arrendamiento)"," - Cuerpo Metálico\n- Altura mínima de mínimo cuatro pasos.","Unidad",{"$f":"SUM(I306:I306)","v":0},null,0]
[294,"Escalera 3 (Compra)"," - Cuerpo Metálico\n- Altura mínima de mínimo cuatro pasos.","Unidad",{"$f":"SUM(I307:I307)","v":0},null,0]
[295,"Escalera 4 (Arrendamiento)"," - Cuerpo Metálico\n- Altura mínima de mínimo seis pasos. ","Unidad",{"$f":"SUM(I308:I308)","v":0},null,0]
[296,"Escalera 4 (Compra)"," - Cuerpo Metálico\n- Altura mínima de mínimo seis pasos. ","Unidad",{"$f":"SUM(I309:I309)","v":0},null,0]
[297,"Escalera de tipo industrial (Arrendamiento)","Cuerpo en aluminio, tipo tijera\n- Altura mínima de 5 escalones\n- Con capacidad de resistencia a una carga concentrada en cualquier punto del escalón de 127 kg\n- Con tapones de caucho antideslizantes","Unidad",{"$f":"SUM(I310:I310)","v":0},null,0]
[298,"Escalera de tipo industrial (Compra)","Cuerpo en aluminio, tipo tijera\n- Altura mínima de 5 escalones\n- Con capacidad de resistencia a una carga concentrada en cualquier punto del escalón de 127 kg\n- Con tapones de caucho antideslizantes","Unidad",{"$f":"SUM(I311:I311)","v":0},null,0]
[299,"Mangueras 1 (Arrendamiento)"," - Longitud mínima de 20 metros\n - Elaborada en PVC\n - Con terminales roscadas en ambos extremos\n - Incluye accesorios: acoples y pistola ","Unidad",{"$f":"SUM(I312:I312)","v":0},null,{"$f":"E312*F312","v":0}]
[300,"Mangueras 1 (Compra)"," - Longitud mínima de 20 metros\n - Elaborada en PVC\n - Con terminales roscadas en ambos extremos\n - Incluye accesorios: acoples y pistola ","Unidad",{"$f":"SUM(I313:I313)","v":0},null,0]
[301,"Mangueras 2 (Arrendamiento)","- Longitud mínima de 30 metros\n- Elaborada en PVC\n- Con terminales roscadas en ambos extremos\n- Incluye accesorios: acoples y pistola","Unidad",{"$f":"SUM(I314:I314)","v":0},null,0]
[302,"Mangueras 2 (Compra)","- Longitud mínima de 30 metros\n- Elaborada en PVC\n- Con terminales roscadas en ambos extremos\n- Incluye accesorios: acoples y pistola","Unidad",{"$f":"SUM(I315:I315)","v":0},null,0]
[303,"Mangueras 3 (Arrendamiento)","- Longitud mínima de 50 metros\n- Elaborada en PVC\n- Con terminales roscadas en ambos extremos\n- Incluye accesorios: acoples y pistola","Unidad",{"$f":"SUM(I316:I316)","v":0},null,0]
[304,"Mangueras 3 (Compra)","- Longitud mínima de 50 metros\n- Elaborada en PVC\n- Con terminales roscadas en ambos extremos\n- Incluye accesorios: acoples y pistola","Unidad",{"$f":"SUM(I317:I317)","v":0},null,0]
[305,"Contenedor de basura 1 (Compra)","- Elaborado en plástico\n- Tapa con pedal\n- Capacidad mínima de 10 litros\n- Color negro\n- Impresión de la palabra \"Plásticos\" en la cara delantera del contenedor","Unidad",{"$f":"SUM(I318:I318)","v":0},null,0]
[306,"Contenedor de basura 2 (Compra)","- Elaborado en plástico\n- Tapa con pedal\n- Capacidad mínima de 10 litros\n- Color blanco\n- Impresión de las palabras \"Papel y cartón\" en la cara delantera del contenedor","Unidad",{"$f":"SUM(I319:I319)","v":0},null,0]
[307,"Contenedor de basura 3 (Compra)","- Elaborado en plástico\n- Tapa con pedal\n- Capacidad mínima de 10 litros\n- Color verde\n- Impresión de las palabras  \"No reciclables\" u \"Orgánicos\" u \"Ordinarios\" en la cara delantera del contenedor","Unidad",{"$f":"SUM(I320:I320)","v":0},null,0]
[308,"Contenedor de basura 4 (Compra)","- Elaborado en plástico\n- Tapa con pedal\n- Capacidad mínima de 10 litros\n- Color rojo\n- Impresión de las palabras \"Riesgo biológico\" o \"Residuos peligrosos\" en la cara delantera del contenedor","Unidad",{"$f":"SUM(I321:I321)","v":0},null,0]
[309,"Contenedor de basura 5 (Compra)","- Elaborado en plástico\n- Tapa con pedal\n- Capacidad mínima de 20 litros\n- Color negro\n- Impresión de la palabra \"Plásticos\" en la cara delantera del contenedor","Unidad",{"$f":"SUM(I322:I322)","v":0},null,0]
[310,"Contenedor de basura 6 (Compra)","- Elaborado en plástico\n- Tapa con pedal\n- Capacidad mínima de 20 litros\n- Color blanco\n- Impresión de las palabras \"Papel y cartón\" en la cara delantera del contenedor","Unidad",{"$f":"SUM(I323:I323)","v":0},null,0]
[311,"Contenedor de basura 7 (Compra)","- Elaborado en plástico\n- Tapa con pedal\n- Capacidad mínima de 20 litros\n- Color verde\n- Impresión de las palabras  \"No reciclables\" u \"Orgánicos\" u \"Ordinarios\" en la cara delantera del contenedor","Unidad",{"$f":"SUM(I324:I324)","v":0},null,0]
[312,"Contenedor de basura 8 (Compra)","- Elaborado en plástico\n- Tapa con pedal\n- Capacidad mínima de 20 litros\n- Color rojo\n- Impresión de las palabras \"Riesgo biológico\" o \"Residuos peligrosos\" en la cara delantera del\ncontenedor","Unidad",{"$f":"SUM(I325:I325)","v":0},null,0]
[313,"Contenedor de basura 9 (Compra)","- Elaborado en plástico\n- Con tapa en vaivén\n- Capacidad mínima de 50 litros\n- Color negro\n- Impresión de la palabra \"Plásticos\" en la cara delantera del contenedor","Unidad",{"$f":"SUM(I326:I326)","v":0},null,0]
[314,"Contenedor de basura 10 (Compra)","- Elaborado en plástico\n- Con tapa en vaivén\n- Capacidad mínima de 50 litros\n- Color blanco\n- Impresión de las palabras \"Papel y cartón\" en la cara delantera del contenedor","Unidad",{"$f":"SUM(I327:I327)","v":0},null,0]
[315,"Contenedor de basura 11 (Compra)","- Elaborado en plástico\n- Con tapa en vaivén\n- Capacidad mínima de 50 litros\n- Color verde\n- Impresión de las palabras  \"No reciclables\" u \"Orgánicos\" u \"Ordinarios\" en la cara delantera del contenedor","Unidad",{"$f":"SUM(I328:I328)","v":0},null,0]
[316,"Contenedor de basura 12 (Compra)","- Elaborado en plástico\n- Con tapa en vaivén\n- Capacidad mínima de 50 litros\n- Color rojo\n- Impresión de las palabras \"Riesgo biológico\" o \"Residuos peligrosos\" en la cara delantera del contenedor","Unidad",{"$f":"SUM(I329:I329)","v":0},null,0]
[317,"Contenedor de basura 13 (Compra)","- Elaborado en plástico\n-- Con tapa en vaivén\n- Capacidad mínima de 120 litros\n- Color negro\n- Impresión de la palabra \"Plásticos\" en la cara delantera del contenedor","Unidad",{"$f":"SUM(I330:I330)","v":0},null,0]
[318,"Contenedor de basura 14 (Compra)","- Elaborado en plástico\n- Con tapa en vaivén\n- Capacidad mínima de 120 litros\n- Color blanco\n- Impresión de las palabras \"Papel y cartón\" en la cara delantera del contenedor","Unidad",{"$f":"SUM(I331:I331)","v":0},null,0]
[319,"Contenedor de basura 15 (Compra)","- Elaborado en plástico\n- Con tapa en vaivén\n- Capacidad mínima de 120 litros\n- Color verde\n- Impresión de las palabras \"No reciclables\" u \"Orgánicos\" u \"Ordinarios\" en la cara delantera del contenedor","Unidad",{"$f":"SUM(I332:I332)","v":0},null,0]
[320,"Contenedor de basura 16 (Compra)","- Elaborado en plástico\n- Con tapa en vaivén\n- Capacidad mínima de 120 litros\n- Color rojo\n- Impresión de las palabras \"Riesgo biológico\" o\n\"Residuos peligrosos\" en la cara delantera del contenedor","Unidad",{"$f":"SUM(I333:I333)","v":0},null,0]
[321,"Contenedor de basura 17 (Compra)","- Elaborado en plástico\n- Con tapa\n- Capacidad mínima de 180 litros\n- Color negro\n- Con ruedas traseras macizas y manijas","Unidad",{"$f":"SUM(I334:I334)","v":0},null,0]
[322,"Contenedor de basura 18 (Compra)","- Elaborado en plástico\n- Con tapa\n- Capacidad mínima de 180 litros\n- Color verde\n- Con ruedas traseras macizas y manijas","Unidad",{"$f":"SUM(I335:I335)","v":0},null,0]
[323,"Contenedor de basura 19 (Compra)","- Elaborado en plástico\n- Con tapa\n- Capacidad mínima de 180 litros\n- Color blanco\n- Con ruedas traseras macizas y manijas","Unidad",{"$f":"SUM(I336:I336)","v":0},null,0]
[324,"Contenedor de basura 20 (Compra)","- Elaborado en plástico\n- Con tapa\n- Capacidad mínima de 240 litros\n- Color negro\n- Con ruedas traseras macizas y manijas","Unidad",{"$f":"SUM(I337:I337)","v":0},null,0]
[325,"Contenedor de basura 21 (Compra)","- Elaborado en plástico\n- Con tapa\n- Capacidad mínima de 240 litros\n- Color verde\n- Con ruedas traseras macizas y manijas","Unidad",{"$f":"SUM(I338:I338)","v":0},null,0]
[326,"Contenedor de basura 22 (Compra)","- Elaborado en plástico\n- Con tapa\n- Capacidad mínima de 240 litros\n- Color blanco\n- Con ruedas traseras macizas y manijas","Unidad",{"$f":"SUM(I339:I339)","v":0},null,0]
[327,"Contenedor de basura 23 (Compra)","- Elaborado en plástico\n- Con tapa\n- Capacidad mínima de 340 litros\n- Color negro\n- Con ruedas traseras macizas y manijas","Unidad",{"$f":"SUM(I340:I340)","v":0},null,0]
[328,"Contenedor de basura 24 (Compra)","- Elaborado en plástico\n- Con tapa\n- Capacidad mínima de 340 litros\n- Color verde\n- Con ruedas traseras macizas y manijas","Unidad",{"$f":"SUM(I341:I341)","v":0},null,0]
[329,"Contenedor de basura 25 (Compra)","- Elaborado en plástico\n- Con tapa\n- Capacidad mínima de 340 litros\n- Color blanco\n- Con ruedas traseras macizas y manijas","Unidad",{"$f":"SUM(I342:I342)","v":0},null,0]
[330,"Contenedor de basura 26 (Compra)","- Elaborado en plástico\n- Con tapa\n- Capacidad mínima de 760 litros\n- Color negro\n- Con ruedas traseras macizas y manijas","Unidad",{"$f":"SUM(I343:I343)","v":0},null,0]
[331,"Contenedor de basura 27 (Compra)","- Elaborado en plástico\n- Con tapa\n- Capacidad mínima de 760 litros\n- Color verde\n- Con ruedas traseras macizas y manijas","Unidad",{"$f":"SUM(I344:I344)","v":0},null,0]
[332,"Contenedor de basura 28 (Compra)","- Elaborado en plástico\n- Con tapa\n- Capacidad mínima de 760 litros\n- Color blanco\n- Con ruedas traseras macizas y manijas","Unidad",{"$f":"SUM(I345:I345)","v":0},null,0]
[333,"Contenedor de basura 29 (Compra)","- Elaborado en plástico\n- Con tapa\n- Capacidad mínima de 1.000 litros\n- Color blanco\n- Con ruedas traseras macizas y manijas","Unidad",{"$f":"SUM(I346:I346)","v":0},null,0]
[334,"Contenedor de basura 30 (Compra)","- Elaborado en plástico\n- Con tapa\n- Capacidad mínima de 1.000 litros\n- Color verde\n- Con ruedas traseras macizas y manijas","Unidad",{"$f":"SUM(I347:I347)","v":0},null,0]
[335,"Punto Ecológico 1 (Compra)","- Base metálica\n- Mínimo tres contenedores así:\n- Contenedor color verde con palabras \"residuos orgánicos aprovechables: restos de comida, desechos agrícolas\" en la cara frontal\n- Contenedor color blanco con palabras \"residuos aprovechables como plástico, vidrio, metales, multicapa, papel y cartón\" en la cara frontal\n- Contenedor color negro con las palabaras \"residuos no aprovechables: papel higiénico, servilletas, papeles y cartones contaminados con comida, papeles metalizados\" en la cara frontal\n- Capacidad mínima de 20 litros para cada contenedor\n- Contenedores elaborados en plástico\n- Debe cumplir con lo estipualdo en el artíuculo 4° de la Resolución 2184 del 26 de diciembre de 2019","Unidad",{"$f":"SUM(I348:I348)","v":0},null,0]
[336,"Punto Ecológico 2 (Compra)","- Base metálica\n- Mínimo tres contenedores así:\n- Contenedor color verde con palabras \"residuos orgánicos aprovechables: restos de comida, desechos agrícolas\" en la cara frontal\n- Contenedor color blanco con palabras \"residuos aprovechables como plástico, vidrio, metales, multicapa, papel y cartón\" en la cara frontal\n- Contenedor color negro con las palabaras \"residuos no aprovechables: papel higiénico, servilletas, papeles y cartones contaminados con comida, papeles metalizados\" en la cara frontal\n- Capacidad mínima de 35 litros para cada contenedor\n- Contenedores elaborados en plástico\n- Debe cumplir con lo estipualdo en el artíuclo 4° de la Resolución 2184 del 26 de diciembre de 2019","Unidad",{"$f":"SUM(I349:I349)","v":0},null,0]
[337,"Punto Ecológico 3 (Compra)","- Base metálica con techo en material metálico\n- Mínimo tres contenedores así:\n- Contenedor color verde con palabras \"residuos orgánicos aprovechables: restos de comida, desechos agrícolas\" en la cara frontal\n- Contenedor color blanco con palabras \"residuos aprovechables como plástico, vidrio, metales, multicapa, papel y cartón\" en la cara frontal\n- Contenedor color negro con las palabaras \"residuos no aprovechables: papel higiénico, servilletas, papeles y cartones contaminados con comida, papeles metalizados\" en la cara frontal\n- Capacidad mínima de 35 litros para cada contenedor\n- Contenedores elaborados en plástico\n- Debe cumplir con lo estipualdo en el artíuclo 4° de la Resolución 2184 del 26 de diciembre de 2019","Unidad",{"$f":"SUM(I350:I350)","v":0},null,0]
[338,"Punto Ecológico 4 (Compra)","- Base metálica\n- Mínimo tres contenedores así:\n- Contenedor color verde con palabras \"residuos orgánicos aprovechables: restos de comida, desechos agrícolas\" en la cara frontal\n- Contenedor color blanco con palabras \"residuos aprovechables como plástico, vidrio, metales, multicapa, papel y cartón\" en la cara frontal\n- Contenedor color negro con las palabaras \"residuos no aprovechables: papel higiénico, servilletas, papeles y cartones contaminados con comida, papeles metalizados\" en la cara frontal\n- Capacidad mínima de 50 litros para cada contenedor\n- Contenedores elaborados en plástico\n- Debe cumplir con lo estipualdo en el artíuclo 4° de la Resolución 2184 del 26 de diciembre de 2019","Unidad",{"$f":"SUM(I351:I351)","v":0},null,0]
[339,"Punto Ecológico 5 (Compra)","- Base metálica con techo en material metálico\n- Mínimo tres contenedores así:\n- Contenedor color verde con palabras \"residuos orgánicos aprovechables: restos de comida, desechos agrícolas\" en la cara frontal\n- Contenedor color blanco con palabras \"residuos aprovechables como plástico, vidrio, metales, multicapa, papel y cartón\" en la cara frontal\n- Contenedor color negro con las palabaras \"residuos no aprovechables: papel higiénico, servilletas, papeles y cartones contaminados con comida, papeles metalizados\" en la cara frontal\n- Capacidad mínima de 50 litros para cada contenedor\n- Contenedores elaborados en plástico\n- Debe cumplir con lo estipualdo en el artíuclo 4° de la Resolución 2184 del 26 de diciembre de 2019","Unidad",{"$f":"SUM(I352:I352)","v":0},null,0]
[340,"Punto Ecológico 6 (Compra)","- Base metálica\n- Mínimo tres contenedores así:\n- Contenedor color verde con palabras \"residuos orgánicos aprovechables: restos de comida, desechos agrícolas\" en la cara frontal\n- Contenedor color blanco con palabras \"residuos aprovechables como plástico, vidrio, metales, multicapa, papel y cartón\" en la cara frontal\n- Contenedor color negro con las palabaras \"residuos no aprovechables: papel higiénico, servilletas, papeles y cartones contaminados con comida, papeles metalizados\" en la cara frontal\n- Capacidad mínima de 100 litros para cada contenedor\n- Contenedores elaborados en plástico\n- Debe cumplir con lo estipualdo en el artíuclo 4° de la Resolución 2184 del 26 de diciembre de 2019","Unidad",{"$f":"SUM(I353:I353)","v":0},null,0]
[341,"Papelera 1 (Compra)","- Cuerpo metálico enmallado sin tapa\n- Con capacidad mínima de 10 litros\n- Diseño para oficina","Unidad",{"$f":"SUM(I354:I354)","v":0},null,0]
[342,"Papelera 2 (Compra)","- Cuerpo plástico\n- Con mecanismo de pedal para abrir y cerrar tapa\n- Con capacidad mínima de 10 litros\n- Diseño para baño","Unidad",{"$f":"SUM(I355:I355)","v":0},null,0]
[343,"Papelera 3 (Compra)","- Cuerpo plástico sin tapa\n- Con capacidad mínima de 10 litros\n- Diseño para baño","Unidad",{"$f":"SUM(I356:I356)","v":0},null,0]
[344,"Papelera 4 (Compra)","- Papelera de oficina de plástico reciclado\n- Color gris o negro\n- Con capacidad de 5 litros\n- Diámetro: 22 cm aproxi. Largo: 24 cm. \nNo debe contener PVC o Poliestireno expandido u otros plásticos de un solo uso tanto en el envase como en el embalaje.","Unidad",{"$f":"SUM(I357:I357)","v":0},null,0]
[345,"Papelera residuos peligrosos 1 (Compra)","- Cuerpo plástico\n- Con mecanismo de pedal para abrir y cerrar tapa\n- Con capacidad mínima de 10 litros\n- Diseño para baño\n- Color rojo\n- Con las palabras \"Riesgo biológico\" en la cara frontal","Unidad",{"$f":"SUM(I358:I358)","v":0},null,0]
[346,"Papelera residuos peligrosos 2 (Compra)","- Cuerpo plástico\n- Con mecanismo de pedal para abrir y cerrar tapa\n- Con capacidad mínima de 20 litros\n- Diseño para baño\n- Color rojo\n- Con las palabras \"Riesgo biológico\" en la cara frontal","Unidad",{"$f":"SUM(I359:I359)","v":0},null,0]
[347,"Señales peatonales de prevención y atención 1 (Compra)","- Elaborado en plástico\n- Tipo tijera, plegable\n- Tamaño mínimo de 25 cm de ancho por 60 cm de alto por 22 cm de largo.\n- Impresión en las dos caras con las palabras \"Cerrado\" o \"Área cerrada\" o \"No pasar\".\n- Color amarillo","Unidad",{"$f":"SUM(I360:I360)","v":0},null,0]
[348,"Señales peatonales de prevención y atención 2 (Compra)","- Elaborado en plástico\n- Tipo tijera, plegable\n- Tamaño mínimo de 25 cm de ancho por 60 cm de alto por 22 cm de largo.\n- Impresión en las dos caras con las palabras \"Cuidado\".\n- Color amarillo\n- Acordes con la reglamentación establecida por la NTC 1461","Unidad",{"$f":"SUM(I361:I361)","v":0},null,0]
[349,"Señales peatonales de prevención y atención 3 (Compra)","- Elaborado en plástico\n- Tipo tijera, plegable\n- Tamaño mínimo de 25 cm de ancho por 60 cm de alto por 22 cm de largo.\n- Impresión en las dos caras con las palabras \"Piso húmedo o \"Piso mojado\"\".\n- Color amarillo\n- Acordes con la reglamentación establecida por la NTC 1461","Unidad",{"$f":"SUM(I362:I362)","v":0},null,0]
[350,"Dispensador para papel higiénico 1 (Compra)","- Elaborado en plástico ABS blanco\n- Para rollo de 250 metros y 400 metros\n- Con visor para ver el estado del rollo\n- Con cerradura y llave\n- Incluye los elementos necesarios para realizar la instalación en pared\n-Incluye el costo de instalación.","Unidad",{"$f":"SUM(I363:I363)","v":0},null,0]
[351,"Dispensador para papel higiénico 2 (Compra)","- Elaborado en acero inoxidable\n- Para rollo de 250 metros y 400 metros\n- Con visor para ver el estado del rollo\n- Con cerradura y llave\n- Incluye los elementos necesarios para realizar la instalación en pared\n-Incluye el costo de instalación.","Unidad",{"$f":"SUM(I364:I364)","v":0},null,0]
[352,"Dispensador de toallas de manos 1 (Compra)","- Elaborado en plástico ABS\n- Para toallas de papel en rollo de 150 metros y 250 metros\n- Con mecanismo accionador de palanca, perilla giratoria o para halar con la mano.\n- Con cuchilla serrada para cortar la toalla de manos\n- Con cerradura y llave\n- Incluye los elementos necesarios para realizar la instalación en pared\n - Incluye el costo de instalación","Unidad",{"$f":"SUM(I365:I365)","v":0},null,0]
[353,"Dispensador de toallas de manos 2 (Compra)","- Elaborado en plástico ABS\n- Para toallas de papel interdobladas con capacidad mínima de 300 toallas\n- Con mecanismo para halar con la mano.\n- Con cerradura y llave\n- Incluye los elementos necesarios para realizar la instalación en pared\n-Incluye el costo de instalación","Unidad",{"$f":"SUM(I366:I366)","v":0},null,0]
[354,"Dispensador de toallas de manos 3 (Compra)","- Elaborado en acero inoxidable\n- Para toallas de papel interdobladas con capacidad mínima de 300 toallas\n- Con mecanismo para halar con la mano.\n- Con cerradura y llave\n- Incluye los elementos necesarios para realizar la instalación en pared\n-Incluye el costo de instalación","Unidad",{"$f":"SUM(I367:I367)","v":0},null,0]
[355,"Dispensador de jabón líquido 1 (Compra)","- Elaborado en plástico ABS blanco\n- Con válvula manual anticorrosiva.\n- Uso habilitado para cualquier jabón líquido con capacidad mínima de 500 cc\n- Incluye los elementos necesarios para realizar la instalación en pared\n-Incluye el costo de instalación","Unidad",{"$f":"SUM(I368:I368)","v":0},null,0]
[356,"Dispensador de jabón líquido 2 (Compra)","- Elaborado en plástico ABS blanco\n- Con sensor para suministro de jabón\n- Uso habilitado para cualquier jabón líquido con capacidad mínima de 500 ml\n- Incluye los elementos necesarios para realizar la instalación en pared\n -Incluye el costo de instalación'","Unidad",{"$f":"SUM(I369:I369)","v":0},null,0]
[357,"Dispensador de jabón líquido 3 (Compra)","- Elaborado en acero inoxidable\n- Con válvula manual anticorrosiva.\n- Uso habilitado para cualquier jabón líquido con capacidad mínima de 800 ml\n- Con cerradura y llave\n- Incluye los elementos necesarios para realizar la instalación en pared\n -Incluye el el costo de instalación'","Unidad",{"$f":"SUM(I370:I370)","v":0},null,0]
[358,"Dispensador de jabón líquido 4 (Compra)","- Elaborado en acero inoxidable\n- Con sensor para suministro de jabón\n- Uso habilitado para cualquier jabón líquido con capacidad mínima de 800 ml\n- Con cerradura y llave\n- Incluye los elementos necesarios para realizar la instalación en pared\n -Incluye el costo de instalación'","Unidad",{"$f":"SUM(I371:I371)","v":0},null,0]
[359,"Dispensador para ambientador (Compra)"," - Elaborado en plástico ABS blanco\n - Con dispersión programable de líquido ambientador\n - Capacidad mínima de 250 ml\n- Incluye los elementos necesarios para realizar la instalación en pared\n- Incluye aerosol para recarga mensual\n-Incluye el costo de instalación","Unidad",{"$f":"SUM(I372:I372)","v":0},null,0]
[360,"Dispensador goteo por gravedad y recarga (Compra)","- Elaborado en PVC blanco\n- Goteo programable para desodorizar sanitarios y orinales\n- Incluye manguera plástica de goteo\n- Incluye los elementos necesarios para realizar la instalación en pared\n- Incluye líquido para recarga mensual con agentes tensoactivos","Unidad",{"$f":"SUM(I373:I373)","v":0},null,0]
[361,"Dispensador de agua (Compra)","- Dispensador de agua fría y caliente\n- Sistema de filtración multinivel\n- Uso de gas refrigerante seguro para la capa de ozono\n\n","Unidad",{"$f":"SUM(I374:I374)","v":0},null,0]
[362,"Dispensador de agua con botellón (Compra)","- Dispensador de agua fría y caliente\n- Uso de gas refrigerante seguro para la capa de ozono\n","Unidad",{"$f":"SUM(I375:I375)","v":0},null,0]
[363,"Greca para tintos 1 (Arrendamiento)","- Eléctrica de 110 v\n- Cuerpo elaborada en lámina de acero inoxidable de calibre 24 como mínimo\n- Resistencias elaboradas en cobre\n- Terminales elaboradas en cobre remplazables con soldadura\n- Mínimo dos servicios\n- Con su respectivo filtro y aro\n - Con capacidad para 30 tintos","Unidad",{"$f":"SUM(I376:I376)","v":0},null,0]
[364,"Greca para tintos 1 (Compra)","- Eléctrica de 110 v\n- Cuerpo elaborada en lámina de acero inoxidable de calibre 24 como mínimo\n- Resistencias elaboradas en cobre\n- Terminales elaboradas en cobre remplazables con soldadura\n- Mínimo dos servicios\n- Con su respectivo filtro y aro\n - Con capacidad para 30 tintos","Unidad",{"$f":"SUM(I377:I377)","v":0},null,0]
[365,"Greca para tintos 2 (Arrendamiento)","- Eléctrica de 110 v\n- Cuerpo elaborada en lámina de acero inoxidable de calibre 24 como mínimo, grado alimento\n- Resistencias elaboradas en cobre\n- Terminales elaboradas en cobre remplazables sin soldadura\n- Mínimo 2 servicios\n -Con su respectivo filtro y aro\n- Con capacidad para 60 tintos","Unidad",{"$f":"SUM(I378:I378)","v":0},null,0]
[366,"Greca para tintos 2 (Compra)","- Eléctrica de 110 v\n- Cuerpo elaborada en lámina de acero inoxidable de calibre 24 como mínimo, grado alimento\n- Resistencias elaboradas en cobre\n- Terminales elaboradas en cobre remplazables sin soldadura\n- Mínimo 2 servicios\n -Con su respectivo filtro y aro\n- Con capacidad para 60 tintos","Unidad",{"$f":"SUM(I379:I379)","v":0},null,0]
[367,"Greca para tintos 3 (Arrendamiento)","- Eléctrica de 110 v\n- Cuerpo elaborada en lámina de acero inoxidable de calibre 24 como mínimo, grado alimento\n- Resistencias elaboradas en cobre\n- Terminales elaboradas en cobre remplazables sin soldadura\n- Mínimo dos servicios\n -Con su respectivo filtro y aro\n - Con capacidad para 120 tintos","Unidad",{"$f":"SUM(I380:I380)","v":0},null,0]
[368,"Greca para tintos 3 (Compra)","- Eléctrica de 110 v\n- Cuerpo elaborada en lámina de acero inoxidable de calibre 24 como mínimo, grado alimento\n- Resistencias elaboradas en cobre\n- Terminales elaboradas en cobre remplazables sin soldadura\n- Mínimo dos servicios\n -Con su respectivo filtro y aro\n - Con capacidad para 120 tintos","Unidad",{"$f":"SUM(I381:I381)","v":0},null,0]
[369,"Máquina de filtrado para café (Compra)","- Cafetera de método filtrado de café por goteo con conexión directamente a la red de agua o con opción de usarse completamente portátil sin requerir conexión directa a la red de agua\n- Grifo para dispensar agua caliente\n- Capacidad para termos de 1.9 a 3L, capacidad de 14 litros hora\n- Incluye termo con capacidad de mantener la bebida caliente, conservando la calidad de la taza de café durante mínimo 3 horas\n- Revestimiento de acero inoxidable con bomba tipo dispensador \n- Capacidad de 2,5 0 3,0 litros.","Unidad",{"$f":"SUM(I382:I382)","v":0},null,0]
[370,"Horno microondas (Arrendamiento)","- Potencia mínima de 900 w\n- Tamaño mínimo de 30 cm de ancho por 25 cm de alto por 35 cm de profundidad.\n- Con bandera giratoria de cristal templado\n- Con programas automáticos","Unidad",{"$f":"SUM(I383:I383)","v":0},null,0]
[371,"Horno microondas (Compra)","- Potencia mínima de 900 w\n- Tamaño mínimo de 30 cm de ancho por 25 cm de alto por 35 cm de profundidad.\n- Con bandera giratoria de cristal templado\n- Con programas automáticos","Unidad",{"$f":"SUM(I384:I384)","v":0},null,0]
[372,"Horno microondas de tipo industrial (Arrendamiento)","- Potencia mínima de 1000 w\n- Tamaño mínimo de 30 cm de ancho por 30 cm de alto por 40 cm de profundidad.\n- Descongelamiento automático\n- Con programas automáticos","Unidad",{"$f":"SUM(I385:I385)","v":0},null,0]
[373,"Horno microondas de tipo industrial (Compra)","- Potencia mínima de 1000 w\n- Tamaño mínimo de 30 cm de ancho por 30 cm de alto por 40 cm de profundidad.\n- Descongelamiento automático\n- Con programas automáticos","Unidad",{"$f":"SUM(I386:I386)","v":0},null,0]
[374,"Estufa 1 (Arrendamiento)","- De dos puestos\n- Lámina esmaltada\n- Eléctrica\n- Con perilla para graduar mínimo 3 niveles de calor","Unidad",{"$f":"SUM(I387:I387)","v":0},null,0]
[375,"Estufa 1 (Compra)","- De dos puestos\n- Lámina esmaltada\n- Eléctrica\n- Con perilla para graduar mínimo 3 niveles de calor","Unidad",{"$f":"SUM(I388:I388)","v":0},null,0]
[376,"Estufa 2 (Arrendamiento)","- De dos puestos\n- Lámina esmaltada- A gas\n- Con perilla y quemador para graduar la llama\n- Con parrilla","Unidad",{"$f":"SUM(I389:I389)","v":0},null,0]
[377,"Estufa 2 (Compra)","- De dos puestos\n- Lámina esmaltada\n- A gas\n- Con perilla y quemador para graduar la llama\n- Con parrilla","Unidad",{"$f":"SUM(I390:I390)","v":0},null,0]
[378,"Extensión eléctrica 1 (Compra)","- De mínimo 25 metros de longitud \n- Tipo industrial\n- Recubierta en plástico PVC\n- Con clavijas\n- Calibre 12","Unidad",{"$f":"SUM(I391:I391)","v":0},null,0]
[379,"Extensión eléctrica 2 (Compra)","- De mínimo 30 metros de longitud\n- Recubierta en plástico PVC\n- Con clavijas\n- Tipo industrial\n- Calibre 12","Unidad",{"$f":"SUM(I392:I392)","v":0},null,0]
[380,"Aspiradora 1 (Arrendamiento)","- De uso industrial para aspirado en seco y húmedo\n- Motor con potencia 1200 w y 1400 w\n- Capacidad entre 15 y 20 litros\n- Cable de potencia con longitud mínima de 5m\n- Accesorios mínimos: manguera puntera, 2 tubos para extensión, cepillos para tapizados","Unidad",{"$f":"SUM(I393:I393)","v":0},null,0]
[381,"Aspiradora 1 (Compra)","- De uso industrial para aspirado en seco y húmedo\n- Motor con potencia 1200 w y 1400 w\n- Capacidad entre 15 y 20 litros\n- Cable de potencia con longitud mínima de 5m\n- Accesorios mínimos: manguera puntera, 2 tubos para extensión, cepillos para tapizados","Unidad",{"$f":"SUM(I394:I394)","v":0},null,0]
[382,"Aspiradora 2 (Arrendamiento)","- De uso industrial para aspirado en seco y húmedo\n- Motor con potencia entre 1200 w y 1400 w\n- Capacidad entre 45 y 55 litros\n- Cable de potencia con longitud mínima de 5m\n- Accesorios mínimos: manguera puntera, 2 tubos para extensión, cepillos para tapizados","Unidad",{"$f":"SUM(I395:I395)","v":0},null,0]
[383,"Aspiradora 2 (Compra)","- De uso industrial para aspirado en seco y húmedo\n- Motor con potencia entre 1200 w y 1400 w\n- Capacidad entre 45 y 55 litros\n- Cable de potencia con longitud mínima de 5m\n- Accesorios mínimos: manguera puntera, 2 tubos para extensión, cepillos para tapizados","Unidad",{"$f":"SUM(I396:I396)","v":0},null,0]
[384,"Lavabrilladora de pisos 1 (Arrendamiento)","- De uso industrial\n- Motores con potencia mínima de 1,5 hp y velocidad mínima de 175 rpm.\n- Con manijas dobles\n- Con interruptor de apagado de seguridad\n- Diámetro mínimo de 16\"\n- Cable de potencia con longitud mínima de 8m\n- Accesorios mínimos portapad, cepillo suave y duro","Unidad ",{"$f":"SUM(I397:I397)","v":0},null,0]
[385,"Lavabrilladora de pisos 1 (Compra)","- De uso industrial\n- Motores con potencia mínima de 1,5 hp y velocidad mínima de 175 rpm.\n- Con manijas dobles\n- Con interruptor de apagado de seguridad\n- Diámetro mínimo de 16\"\n- Cable de potencia con longitud mínima de 8m\n- Accesorios mínimos portapad, cepillo suave y duro","Unidad ",{"$f":"SUM(I398:I398)","v":0},null,0]
[386,"Lavabrilladora de pisos 2 (Arrendamiento)","- De uso industrial\n- Motores con potencia mínima de 1,5 hp y velocidad mínima de 175 rpm.\n- Con manijas dobles\n- Con interruptor de apagado de seguridad\n- Diámetro mínimo de 20\"\n- Cable de potencia con longitud mínima de 8m\n- Accesorios mínimos portapad, cepillo suave y duro","Unidad",{"$f":"SUM(I399:I399)","v":0},null,0]
[387,"Lavabrilladora de pisos 2 (Compra)","- De uso industrial\n- Motores con potencia mínima de 1,5 hp y velocidad mínima de 175 rpm.\n- Con manijas dobles\n- Con interruptor de apagado de seguridad\n- Diámetro mínimo de 20\"\n- Cable de potencia con longitud mínima de 8m\n- Accesorios mínimos portapad, cepillo suave y duro","Unidad",{"$f":"SUM(I400:I400)","v":0},null,0]
[388,"Brilladora de alta revolución (Arrendamiento)","- De uso industrial\n- Motores con potencia mínima de 1,5 hp y velocidad mínima de 1500 rpm.\n- Con manijas dobles\n- Con interruptor de apagado de seguridad\n- Diámetro mínimo de 20\"\n- Cable de potencia con longitud mínima de 8m\n- Accesorios mínimos - portapad","Unidad",{"$f":"SUM(I401:I401)","v":0},null,0]
[389,"Brilladora de alta revolución (Compra)","- De uso industrial\n- Motores con potencia mínima de 1,5 hp y velocidad mínima de 1500 rpm.\n- Con manijas dobles\n- Con interruptor de apagado de seguridad\n- Diámetro mínimo de 20\"\n- Cable de potencia con longitud mínima de 8m\n- Accesorios mínimos - portapad","Unidad",{"$f":"SUM(I402:I402)","v":0},null,0]
[390,"Lavadora de alfombras y tapetes 1 (Arrendamiento)"," - Motor con potencia de mínimo 1100 w y velocidad mínima de 175 revoluciones por minuto.\n- Capacidad mínima de 5 litros\n- Cable de potencia con longitud mínima de 8m\n- Para lavar en seco o a vapor\n- Diámetro mínimo de 16\"","Unidad",{"$f":"SUM(I403:I403)","v":0},null,0]
[391,"Lavadora de alfombras y tapetes 1 (Compra)"," - Motor con potencia de mínimo 1100 w y velocidad mínima de 175 revoluciones por minuto.\n- Capacidad mínima de 5 litros\n- Cable de potencia con longitud mínima de 8m\n- Para lavar en seco o a vapor\n- Diámetro mínimo de 16\"","Unidad",{"$f":"SUM(I404:I404)","v":0},null,0]
[392,"Lavadora de alfombras y tapetes 2 (Arrendamiento)","- De inyección y extracción con dos motores, cada uno con una potencia entre 1200 w y 1400 w.\n- Capacidad mínima de 30 litros\n- Cable de potencia con longitud mínima de 8m\n- Diámetro mínimo de 20\"","Unidad",{"$f":"SUM(I405:I405)","v":0},null,0]
[393,"Lavadora de alfombras y tapetes 2 (Compra)","- De inyección y extracción con dos motores, cada uno con una potencia entre 1200 w y 1400 w.\n- Capacidad mínima de 30 litros\n- Cable de potencia con longitud mínima de 8m\n- Diámetro mínimo de 20\"","Unidad",{"$f":"SUM(I406:I406)","v":0},null,0]
[394,"Hidrolavadora Industrial (Arrendamiento)"," - Motor eléctrico y potencia de mínimo 2.2 Kw - 1.450 RPM y entre 2.5 HP y 3.5 HP.\n - Presión de salida de agua entre 900 psi y 1900 psi.\n - Con ruedas","Unidad",{"$f":"SUM(I407:I407)","v":0},null,0]
[395,"Hidrolavadora Industrial (Compra)"," - Motor eléctrico y potencia de mínimo 2.2 Kw - 1.450 RPM y entre 2.5 HP y 3.5 HP.\n - Presión de salida de agua entre 900 psi y 1900 psi.\n - Con ruedas","Unidad",{"$f":"SUM(I408:I408)","v":0},null,0]
[396,"Sopladora de hojas (Arrendamiento)"," - Potenciado por motor a gasolina o eléctrico inalámbrico\n - Caudal mínimo de 380 cfm / 645m3/h\n - Autonomía mínima de 30 minutos\n - Intensidad máxima de sonido de 100dB\n - Incluye combustible para su funcionamiento (Máximo 3 galones)","Unidad",{"$f":"SUM(I409:I409)","v":0},null,0]
[397,"Sopladora de hojas (Compra)"," - Potenciado por motor a gasolina o eléctrico inalámbrico\n - Caudal mínimo de 380 cfm / 645m3/h\n - Autonomía mínima de 30 minutos\n - Intensidad máxima de sonido de 100dB\n - Incluye combustible para su funcionamiento (Máximo 3 galones)","Unidad",{"$f":"SUM(I410:I410)","v":0},null,0]
[398,"Sonda para inodoro (Arrendamiento)","-Sonda de mínimo 3''\n-Cubierta de vinilo para proteger la porcelana.\n- Cable de 1/2\" (12,7 mm) con núcleo interno recubierto por compresión, resistente al retorcimiento.\n-Mangos grandes y de diseño ergonómico.\n-Funcional en inodoros ahorradores de agua\n-Peso entre 1,9 kg y 2,5 kg","Unidad",{"$f":"SUM(I411:I411)","v":0},null,{"$f":"E411*F411","v":0}]
[399,"Sonda para inodoro (Compra)","-Sonda de mínimo 3''\n-Cubierta de vinilo para proteger la porcelana.\n- Cable de 1/2\" (12,7 mm) con núcleo interno recubierto por compresión, resistente al retorcimiento.\n-Mangos grandes y de diseño ergonómico.\n-Funcional en inodoros ahorradores de agua\n-Peso entre 1,9 kg y 2,5 kg","Unidad",{"$f":"SUM(I412:I412)","v":0},null,0]
[400,"Girador Manual (Compra)","-Para destapar desagües entre 1/2\" a 1 1/2\".\n-Collar antideslizante que agarra y suelta el cable\n-Cable de núcleo hueco de mpinimo 5/16\" × 25 pies (7,6 m) con barrena de cabeza de bulbo.\n-Tambor rotativo de plástico moldeado\n-Diseño de tambor abierto que permite el acceso al cable","Unidad",{"$f":"SUM(I413:I413)","v":0},null,0]
[401,"Sonda para fregaderos (Compra)","Sonda Eléctrica para desagües de 3/4” (20 mm) a 2-1/2” (64 mm)\n-El equipo propulsor de velocidad variable gira el cable a 0-600 RPM.\n-Capacidad del tambor: 50 pies (15 m) de 5⁄16\" (8 mm) o 35 pies (11 m) de 3⁄8\" (10 mm).\n-El núcleo interior revestido de vinilo impide que se oxide por contacto con el resorte.","Unidad",{"$f":"SUM(I414:I414)","v":0},null,0]
[402,"Cortadora de cesped  (Arrendamiento)","-Cuenta con una cuchilla de 32 a 38 cm.\n-Chasis de acero con recolector o salida lateral.\n-Ruedas de 135 mm\n-Con  potencia entre 5 hp a 25 hp\n-Ancho de corte de 18 a 183 cm.\n-Peso entre 10 kg y 13,5 kg\n-Tiene manilla de seguridad\n-Incluye combustible para su funcionamiento (Máximo 3 galones)","Unidad",{"$f":"SUM(I415:I415)","v":0},null,0]
[403,"Cortadora de cesped  (Compra)","-Cuenta con una cuchilla de 32 a 38 cm.\n-Chasis de acero con recolector o salida lateral.\n-Ruedas de 135 mm\n-Con  potencia entre 5 hp a 25 hp\n-Ancho de corte de 18 a 183 cm.\n-Peso entre 10 kg y 13,5 kg\n-Tiene manilla de seguridad\n-Incluye combustible para su funcionamiento (Máximo 3 galones)","Unidad",{"$f":"SUM(I416:I416)","v":0},null,0]
[404,"Guadañas (Arrendamiento)"," -Guadaña de Eje Rígido\n - Viene cilindrada con apróximadamente 30 a 51,6 cm3.\n-Peso promedio entre 6,5 Kg y 7,7 Kg.\n-Cuchilla de 80 puntas\n-Capacidad del tanque de combustible entre 0,65 Lt y 1 Lt.\n-Cuenta con un sistema de arranque manual.\n-Cuenta con un sistema de ignición electrónico\n - Incluye el combustible para su funcioamiento (Máximo 3 galones)","Unidad",{"$f":"SUM(I417:I417)","v":0},null,0]
[405,"Guadañas (Compra)"," -Guadaña de Eje Rígido\n - Viene cilindrada con apróximadamente 30 a 51,6 cm3.\n-Peso promedio entre 6,5 Kg y 7,7 Kg.\n-Cuchilla de 80 puntas\n-Capacidad del tanque de combustible entre 0,65 Lt y 1 Lt.\n-Cuenta con un sistema de arranque manual.\n-Cuenta con un sistema de ignición electrónico\n - Incluye el combustible para su funcioamiento (Máximo 3 galones)","Unidad",{"$f":"SUM(I418:I418)","v":0},null,0]
[406,"Motobombas (Arrendamiento)","-Motobomba eléctrica\n-Fabricada en Hierro\n-Cuenta con una potencia de 2 hp a 111 hp\n-Velocidades desde 1800 RPM a 3450 RPM.\n-Peso promedio de 30 Kg.\n-Las medidas de succión por descarga van de 2 x 2 pulgadas a 12 x 12 pulgadas.","Unidad",{"$f":"SUM(I419:I419)","v":0},null,0]
[407,"Motobombas (Compra)","-Motobomba eléctrica\n-Fabricada en Hierro\n-Cuenta con una potencia de 2 hp a 111 hp\n-Velocidades desde 1800 RPM a 3450 RPM.\n-Peso promedio de 30 Kg.\n-Las medidas de succión por descarga van de 2 x 2 pulgadas a 12 x 12 pulgadas.","Unidad",{"$f":"SUM(I420:I420)","v":0},null,0]

{"sheet":"Detalle Especificaciones","index":4,"n_rows":146,"n_cols":7,"rows_kept":146,"cut":false,"hidden":false,"merged":[[35,2,35,3],[27,4,27,7],[28,0,28,1],[39,1,39,3],[39,6,39,7],[40,1,40,3],[40,6,40,7],[145,0,145,1],[131,3,131,4],[134,3,134,4],[135,3,135,4],[136,3,136,4],[139,0,139,1],[137,0,137,1],[132,0,132,1],[132,3,132,4],[133,0,133,1],[133,3,133,4],[134,0,134,1],[143,0,143,1],[144,0,144,1],[140,0,140,1],[141,0,141,1],[142,0,142,1],[45,1,45,3],[44,1,44,3],[44,6,44,7],[71,0,71,3],[71,6,71,7],[47,1,47,3],[47,6,47,7],[48,1,48,3],[48,6,48,7],[55,1,55,3],[55,6,55,7],[56,1,56,3],[57,1,57,3],[57,6,57,7],[52,1,52,3],[52,6,52,7],[53,1,53,3],[53,6,53,7],[54,1,54,3],[54,6,54,7],[49,1,49,3],[49,6,49,7],[50,1,50,3],[58,0,59,0],[16,0,16,2],[16,4,16,5],[16,6,16,7],[22,0,22,1],[22,4,22,7],[23,0,23,1],[23,4,23,7],[42,6,42,7],[43,1,43,3],[43,6,43,7],[24,0,24,1],[24,4,24,7],[25,0,25,1],[25,4,25,7],[37,0,37,3],[28,4,28,7],[29,0,29,1],[29,4,29,7],[41,1,41,3],[41,6,41,7],[42,1,42,3],[26,4,26,7],[31,0,32,7],[35,0,35,1],[1,0,1,7],[21,0,21,1],[21,4,21,7],[18,0,18,1],[18,4,18,7],[19,0,19,1],[19,4,19,7],[20,0,20,1],[20,4,20,7],[3,0,4,7],[6,0,6,1],[6,2,6,7],[7,0,7,1],[15,0,15,2],[15,4,15,5],[15,6,15,7],[8,0,8,1],[8,2,8,3],[8,4,8,5],[14,6,14,7],[8,6,8,7],[7,2,7,5],[10,0,11,7],[14,0,14,2],[14,4,14,5],[67,1,67,3],[67,6,67,7],[68,1,68,3],[68,6,68,7],[59,6,59,7],[60,0,61,0],[60,1,60,3],[60,6,60,7],[61,1,61,3],[61,6,61,7],[45,6,45,7],[38,0,57,0],[38,1,38,3],[38,6,38,7],[46,6,46,7],[46,1,46,3],[56,6,56,7],[50,6,50,7],[51,1,51,3],[51,6,51,7],[37,6,37,7],[27,0,27,1],[26,0,26,1],[58,1,58,3],[58,6,58,7],[59,1,59,3],[101,0,105,0],[101,1,101,3],[104,1,104,3],[104,6,104,7],[105,1,105,3],[76,0,78,0],[76,1,76,3],[76,6,76,7],[77,1,77,3],[77,6,77,7],[78,1,78,3],[78,6,78,7],[102,6,102,7],[103,1,103,3],[103,6,103,7],[101,6,101,7],[102,1,102,3],[105,6,105,7],[99,1,99,3],[99,6,99,7],[80,0,80,3],[80,6,80,7],[126,0,126,1],[128,0,128,1],[128,3,128,4],[131,0,131,1],[128,5,128,7],[129,0,129,1],[129,3,129,4],[129,5,136,7],[130,0,130,1],[130,3,130,4],[136,0,136,1],[108,0,109,0],[124,0,124,1],[108,1,108,3],[108,6,108,7],[109,1,109,3],[109,6,109,7],[111,0,112,7],[106,6,106,7],[122,0,122,1],[135,0,135,1],[122,5,122,7],[113,0,116,7],[81,0,81,7],[82,1,82,3],[82,6,82,7],[83,0,84,0],[86,6,86,7],[87,1,87,3],[87,6,87,7],[83,1,83,3],[83,6,83,7],[84,1,84,3],[84,6,84,7],[85,1,85,3],[85,6,85,7],[86,0,88,0],[86,1,86,3],[88,6,88,7],[100,1,100,3],[118,0,119,7],[123,0,123,1],[123,5,125,7],[125,0,125,1],[106,0,107,0],[106,1,106,3],[107,1,107,3],[107,6,107,7],[75,1,75,3],[88,1,88,3],[69,6,69,7],[66,6,66,7],[89,0,90,0],[89,1,89,3],[89,6,89,7],[90,1,90,3],[97,0,100,0],[97,1,97,3],[97,6,97,7],[98,1,98,3],[98,6,98,7],[94,1,94,3],[94,6,94,7],[95,1,95,3],[95,6,95,7],[96,1,96,3],[96,6,96,7],[90,6,90,7],[93,0,93,7],[94,0,96,0],[91,1,91,3],[91,6,91,7],[75,6,75,7],[100,6,100,7],[140,5,145,7],[139,5,139,7],[72,0,75,0],[72,1,72,3],[72,6,72,7],[62,6,62,7],[63,1,63,3],[63,6,63,7],[64,1,64,3],[64,6,64,7],[68,0,69,0],[69,1,69,3],[65,1,65,3],[65,6,65,7],[66,1,66,3],[65,0,67,0],[62,0,64,0],[62,1,62,3],[73,1,73,3],[73,6,73,7],[74,1,74,3],[74,6,74,7]]}
[]
["Especificaciones del servicio - Sede 1"]
[]
["Información básica"]
[]
[]
["Nombre de la Sede"]
["Dirección",null,null,null,null,null,"Telefono"]
["Departamento",null,null,null,"Municipio"]
[]
["Información de las instalaciones de la sede"]
[]
[]
[]
["Tipo de instalación:",null,null,null,"Si seleccionó otro, indique cuál:"]
["N° de pisos:",null,null,null,"Área total aproximada en m2:"]
["N° de personas trabajando en las intalaciones:",null,null,null,"N° estimado de visitantes por día:"]
[]
["Tipo de área ",null,"Cantidad","Área total estimada en m2","Observaciones"]
["Ascensores"]
["Auditorios"]
["Baños"]
["Oficinas (N° de cubículos)"]
["Parqueadero/sótano"]
["Salones comunes"]
["Terrazas"]
["Zonas comunes"]
["Zonas de cafetería"]
["Zonas verdes"]
["Otro:"]
[]
["Actividades a desarrollar"]
[]
[]
[]
["Tipo de servicio requerido en la sede:"]
[]
["Actividades de servicio de aseo",null,null,null,"Marque con una X","Frecuencia","Observaciones"]
["Áreas Comunes ","Limpieza de pasillos, salas de reunión, áreas de archivo y almacenaje, bibliotecas, bodegas y otras áreas comunes solicitadas por la Entidad Compradora. "]
[null,"Limpieza, aspirado, brillo y cuidado de sillas, muebles, poltronas y mesas. "]
[null,"Limpieza de persianas, cortinas, cortinas tipo blackout, acrílicos, techos y rejillas de ventilación."]
[null,"Limpieza de ventanas y vidrios interiores de oficinas, módulos, salas de reunión, zonas comunes y puertas,."]
[null,"Limpieza de paredes, barandas, escaleras, muros y divisiones modulares."]
[null,"Limpieza de cuadros, elementos decorativos, lámparas de escritorios, lámparas fluorescentes, marcos, enchufes e interruptores."]
[null,"Limpieza y brillo de placas, ceniceros, letreros, plantas interiores, elementos decorativos que lo requieran, lámparas colgantes y otras lámparas que lo requieran."]
[null,"Limpieza, aspirado, desmanchado y brillo de ascensores"]
[null,"Lavado de limpiones y paños. Lavado ocasional de manteles, servilletas y banderas en máquina lavadora."]
[null,"Limpieza y vaciado de contenedores de basuras, canecas, ceniceros y papeleras. Cambio de bolsa plástica. "]
[null,"Limpieza de los implementos, equipos y utensilios empleados para el servicio de cafetería, entre ellos, microondas, neveras, grecas, dispensadores, estufas, así como las instalaciones físicas de las cafeterías. "]
[null,"Apoyo en la limpieza y organización de elementos luego de comidas, reuniones de trabajo o eventos especiales realizados por la Entidad Compradora"]
[null,"Evacuación diaria de desechos de las zonas objeto de la prestación del servicio: Introducción en empaques adecuados y disposición en los lugares destinados para su posterior recolección."]
[null,"Limpieza básica de tanques, fuentes y piletas (máximo 5000 litros). No incluye insumos especializados."]
[null,"Limpieza de parqueaderos, terrazas, sótanos y casetas de seguridad. No debe requerir maquinar adicional a la establecida en el Anexo 4 del pliego de condicioenes."]
[null,"Limpieza y riego las plantas y jardines interiores, y riego de los jardines exteriores aledaños a las instalaciones Entidad Compradora"]
[null,"Eliminación de suciedad acumulada, hongos, maleza, hierbas y tierra entre las hendiduras de baldosas o ladrillos. "]
[null,"Lavado las fachadas y vidrios exteriores de las instalaciones de la Entidad Compradora a una altura menor a 1,5 metros. "]
[null,"Realización de brigadas de aseo."]
[null,"Limpieza de los elementos, equipos y utensilios empleados para el servicio de aseo. "]
["Oficinas","Limpieza de oficinas, divisiones, escritorios, mesas, libros, cuadros, objetos decorativos, sillas, estanterías, repisas, archivadores y cajoneras. "]
[null,"Limpieza exterior de computadores, teléfonos, impresoras, fotocopiadoras, consolas, fax, y demás equipos para uso administrativo con sus componentes que tenga la Entidad Compradora."]
["Pisos y tapizados ","Decapado, limpieza, brillo, sellado y mantenimiento del brillo de pisos, escaleras y estantes. "]
[null,"Limpieza, lavado, aspirado y desmanchado de alfombras, tapetes y tapizados. No incluye despegue de los tapetes o alfombras para lavado especializado. "]
["Baños","Limpieza y desinfección de sanitarios, orinales lavamanos, duchas, griferías, dispensadores, secadores, accesorios, espejos, paredes, puertas y divisiones, pisos y papeleras. Aplicación de ambientadores y productos para el control del mal olor.  "]
[null,"Desatasco de sanitarios, orinales, duchas, sifones y lavamanos. "]
[null,"Abastecimiento de los baños de papel higiénico, toallas de papel, bolsas de basura, jabón de manos y otros elementos requeridos para su uso."]
["Zonas exteriores","Limpieza de patios, aceras, entradas, jardines, antejardines, zonas verdes y zonas exteriores aledañas a las instalaciones de la Entidad Compradora. "]
[null,"Recolección de hojas y limpieza de canalizaciones en caso de obstrucción. "]
[null,"Limpieza y vaciado de contenedores, canecas y ceniceros exteriores. "]
["Buenas prácticas de aseo","Clasificación  y envase de materiales y basuras y puesta a disposición de estos en los lugares de las instalaciones físicas de la Entidad Compradora  indicados para su recolección y posterior reciclaje. "]
[null,"Utilización de las señales de seguridad peatonal o equipos de seguridad industrial para evitar accidentes, de acuerdo a las instrucciones de la Entidad Compradora."]
[]
["Actividades de servicio de cafetería ",null,null,null,"Marque con una X","Frecuencia","Observaciones"]
["Servicio de bebidas y atención de eventos ","Preparación de bebidas calientes y frías según las especificaciones de la Entidad Compradora "]
[null,"Ofrecimiento de bebidas calientes y frías en los horarios indicados por la Entidad Compradora.  Realización de recorridos periódicos para recoger los elementos utilizados para el consumo de productos. "]
[null,"Preparación de termos con café, té, aromática y agua fría y caliente en el lugar y horarios que indique la Entidad Compradora. Lo anterior con la respectiva dotación de té, aromática, azúcar, mezcladores, servilletas, vasos y crema. "]
[null,"Atención a reuniones de trabajo o eventos especiales de la Entidad Compradora. "]
["Limpieza y cuidado ","Limpieza y desinfección del área de cafetería y del menaje, elementos y equipos empleados para la prestación del servicio, entre ellos, microondas, neveras, grecas, dispensadores, estufas, así como las instalaciones físicas de las cafeterías. "]
[null,"Abastecimiento del área de cafetería de los insumos requeridos para la prestación del servicio de cafetería. "]
[null,"Realización del inventario y cuidado del menaje, elementos y equipos empleados en la prestación del servicio. Cuidado de las instalaciones físicas de las cafeterías dispuestas para la prestación del servicio. "]
[]
["Actividades de mantenimiento locativo básico",null,null,null,"Marque con una X","Frecuencia","Observaciones"]
["Mantenimiento preventivo"]
["Plomería","Inspección de tuberías, sanitarios, orinales, lavaplatos, duchas, sifones, canalizaciones, cunetas, cañerías, piletas y fuentes para verificar su buen funcionamiento. Aviso al supervisor del contrato sobre cualquier falla o anomalía."]
["Mantenimiento eléctrico ","Limpieza de luminarias, lámparas, reflectores, balastos, transformadores (externa), fusibles, tubos de descarga, cebadores (starter), casquillos, bombillos, interruptores automáticos (breakers), tomas de corriente, extensiones y cableado eléctrico."]
[null,"Revisión externa de transformadores, cableado e instalaciones eléctricas. Aviso al supervisor del contrato sobre cualquier falla o anomalía."]
["Reparaciones locativas menores.","Inspección de cortinas, cortinas tipo blackout, persianas, tapetes, marcos, puertas, casilleros, vidrios, ventanas, estanterías, repisas, mesas, muebles de oficina, cerraduras, chapas, bisagras, manijas y fallebas para verificar su buen funcionamiento. Aviso al supervisor del contrato sobre cualquier falla o anomalía."]
["Mantenimiento de elementos y equipos ","Inspección de secadores de manos y dispensadores de jabón, líquido antibacterial, papel higiénico, toallas de papel, ambientador y desodorizador de sanitarios para verificar su buen funcionamiento. Aviso al supervisor del contrato sobre cualquier falla o anomalía. "]
[null,"Inspección de estufas, grecas y purificadores de agua para verificar su buen funcionamiento. Aviso al supervisor del contrato sobre cualquier falla o anomalía. "]
[null,"Limpieza interna y extena de los elementos y equipos anteriores. Lubricación de sus partes mecánicas, cambio de filtros, escobillas y resistencias cuando sea necesario y revisión de las conexiones eléctricas. "]
["Limpieza en lugares de difícil acceso","Inspección y limpieza de ventanas,  persianas, cortinas, cortinas tipo balckout, acrílicos, techos, rejillas, canales de ventilación y otros lugares de difícil acceso. Aviso al supervisor del contrato sobre cualquier falla o anomalía. "]
[null,"Limpieza de la fachada de la Entidad Compradora siempre que el operario no implique trabajo en alturas.  "]
["General","Apoyo en las brigadas de mantenimiento que programe la Entidad Compradora. Las actividades ejecutadas por los operarios auxiliar y de mantenimiento deben incluir únicamente las establecidas en este Anexo. "]
[]
["Mantenimiento correctivo "]
["Plomería ","Reparación de fugas menores en tuberías, sanitarios, orinales, lavamanos, lavaplatos, duchas, piletas y fuentes."]
[null,"Reemplazo de piezas dañadas de tuberías, sanitarios, orinales, lavamanos, lavaplatos y duchas."]
[null,"Reparación de taponamientos en tuberías, sanitarios, orinales, lavaplatos, duchas, sifones, canalizaciones, cunetas, cañerías, piletas y fuentes.  "]
["Mantenimiento eléctrico ","Instalación, reparación, reemplazo y limpieza de luminarias, lámparas, reflectores, balastos, tubos de descarga, cebadores (starter), casquillos, bombillos, interruptores automáticos (breakers), tomas de corriente y fusibles. Reemplazo de insumos y repuestos requeridos para todo lo anterior. "]
[null,"Reparación de cortos menores. "]
[null,"Instalación y traslado de salidas eléctricas. "]
[null,"Reparación de la señal de televisión por daños menores."]
["Reparaciones locativas menores ","Reparaciones menores de resane, enchape y pintura de parades, pisos y techos interiores de las instalaciones."]
[null,"Ajuste y desmonte de marcos, puertas, vidrios y ventanas."]
[null,"Instalación o reparaciones de persianas, cortinas, cortinas tipo blackout y tapetes. "]
[null,"Instalación o reparaciones de repisas, estanterías, casilleros, sillas, mesas y otros muebles de oficina. "]
[null,"Instalación o reparaciones de cerraduras, chapas, manijas, bisagras y fallebas de puertas, escritorios, archivadores, casilleros y similares. Cambio de todo tipo de guardas y cerraduras si es requerido."]
["Mantenimiento de elementos y equipos ","Instalación o reemplazo de secadores de manos y dispensadores de jabón, líquido antibacterial, papel higiénico, toallas de papel, ambientador y desodorizador de sanitarios. Reemplazo de insumos y repuestos requeridos para todo lo anterior. "]
[null,"Instalación, reparación o reemplazo de grecas, estufas y purificadores de agua. Reemplazo de sus insumos y repuestos. "]
["Traslado de materiales y adecuación de espacios","Traslado de muebles, instalación, reparación y adecuación de páneles y módulos de oficina (puestos de trabajo)."]
[null,"Habilitar bodegas, lugares de archivo, salas de reunión, auditorios y salones comunes según lo requiera la Entidad Compradora."]
[]
["Describa los elementos, equipos y maquinaria que requiere la sede de la Entidad Compradora para las actividades de mantenimiento básico locativo, de acuerdo con lo establecido en el Acuerdo Marco de Precios"]
[]
[]
[]
[]
[]
[]
["Servicios Especiales"]
[]
[]
[]
["Fumigación",null,"Marque con una X","M2 de área interior","M2 de área exterior","Detalles y observaciones"]
["Roedores"]
["Insectos rastreros y voladores"]
["Desinfección ambiental"]
[]
[]
["Jardinería ",null,"Marque con una X","Equipos o materiales",null,"Detalles y observaciones"]
["Poda de prado, bordes, cercas vivas y plantas (no incluye trabajo en alturas). "]
["Aplicación de fertilizantes de uso común (la tarifa debe incluir un estimado 500 gramos de fertilizante al año por metro cuadrado). "]
["Remoción de tierra para oxigenación. "]
["Trasplante y reemplazo de plantas. (No incluye trasplante de árboles, ni arbustos con una altura superior a un metro, no incluye suministro de plantas)"]
["Traslado, mantenimiento y limpieza de macetas, jardineras y soportes. Descarte de agua de los recipientes recibidores.  "]
["Revisión de humedad y riego de plantas, prados y árboles."]
["Aplicación de plaguicidas y funguicidas de uso común."]
["Empaque y traslado de desechos producto de la prestación del servicio hasta los lugares de recolección. "]
[]
[]
["Trabajo en alturas nivel avanzado",null,"Marque con una X","Unidad","Cantidad","Detalles y observaciones"]
["Lavado, limpieza y desinfección de tanques ",null,null,"m2"]
["Limpieza de cristales",null,null,"numero de pisos"]
["Limpieza de cortinas",null,null,"numero de cortinas"]
["Reparación de cortinas",null,null,"numero de cortinas"]
["Instalación de cortinas",null,null,"numero de cortinas"]
["Limpieza y mantenimiento de fachada",null,null,"numero de pisos"]

{"sheet":"Observaciones Proveedores ","index":5,"n_rows":47,"n_cols":10,"rows_kept":47,"cut":false,"hidden":false,"merged":[[16,9,17,9],[18,3,18,7],[19,0,19,1],[19,3,19,7],[9,0,9,1],[11,0,11,7],[4,0,4,7],[6,0,6,7],[40,0,40,1],[41,0,41,1],[43,0,43,1],[46,0,47,7],[49,0,54,7],[9,3,9,7],[34,0,34,7],[36,0,36,1],[36,3,36,5],[37,0,37,1],[39,0,39,1],[39,3,39,7],[26,0,26,2],[26,3,26,7],[28,0,28,7],[13,0,13,1],[16,0,16,7],[17,0,17,7],[18,0,18,1],[14,0,14,1],[36,9,37,9],[39,9,40,9],[14,43,14,47],[14,48,14,49],[14,51,14,55],[14,56,14,57],[14,59,14,63],[14,64,14,65],[14,19,14,23],[14,24,14,25],[14,27,14,31],[14,32,14,33],[14,35,14,39],[14,40,14,41],[7,0,7,7],[14,3,14,7],[14,11,14,15],[14,16,14,17],[6,9,7,9],[8,3,8,7],[8,0,8,1],[14,115,14,119],[14,120,14,121],[14,123,14,127],[14,128,14,129],[14,131,14,135],[14,136,14,137],[14,91,14,95],[14,96,14,97],[14,99,14,103],[14,104,14,105],[14,107,14,111],[14,112,14,113],[14,67,14,71],[14,72,14,73],[14,75,14,79],[14,80,14,81],[14,83,14,87],[14,88,14,89],[14,187,14,191],[14,192,14,193],[14,195,14,199],[14,200,14,201],[14,203,14,207],[14,208,14,209],[14,163,14,167],[14,168,14,169],[14,171,14,175],[14,176,14,177],[14,179,14,183],[14,184,14,185],[14,139,14,143],[14,144,14,145],[14,147,14,151],[14,152,14,153],[14,155,14,159],[14,160,14,161],[14,259,14,263],[14,264,14,265],[14,267,14,271],[14,272,14,273],[14,275,14,279],[14,280,14,281],[14,235,14,239],[14,240,14,241],[14,243,14,247],[14,248,14,249],[14,251,14,255],[14,256,14,257],[14,211,14,215],[14,216,14,217],[14,219,14,223],[14,224,14,225],[14,227,14,231],[14,232,14,233],[14,331,14,335],[14,336,14,337],[14,339,14,343],[14,344,14,345],[14,347,14,351],[14,352,14,353],[14,307,14,311],[14,312,14,313],[14,315,14,319],[14,320,14,321],[14,323,14,327],[14,328,14,329],[14,283,14,287],[14,288,14,289],[14,291,14,295],[14,296,14,297],[14,299,14,303],[14,304,14,305],[14,403,14,407],[14,408,14,409],[14,411,14,415],[14,416,14,417],[14,419,14,423],[14,424,14,425],[14,379,14,383],[14,384,14,385],[14,387,14,391],[14,392,14,393],[14,395,14,399],[14,400,14,401],[14,355,14,359],[14,360,14,361],[14,363,14,367],[14,368,14,369],[14,371,14,375],[14,376,14,377],[14,475,14,479],[14,480,14,481],[14,483,14,487],[14,488,14,489],[14,491,14,495],[14,496,14,497],[14,451,14,455],[14,456,14,457],[14,459,14,463],[14,464,14,465],[14,467,14,471],[14,472,14,473],[14,427,14,431],[14,432,14,433],[14,435,14,439],[14,440,14,441],[14,443,14,447],[14,448,14,449],[14,547,14,551],[14,552,14,553],[14,555,14,559],[14,560,14,561],[14,563,14,567],[14,568,14,569],[14,523,14,527],[14,528,14,529],[14,531,14,535],[14,536,14,537],[14,539,14,543],[14,544,14,545],[14,499,14,503],[14,504,14,505],[14,507,14,511],[14,512,14,513],[14,515,14,519],[14,520,14,521],[14,619,14,623],[14,624,14,625],[14,627,14,631],[14,632,14,633],[14,635,14,639],[14,640,14,641],[14,595,14,599],[14,600,14,601],[14,603,14,607],[14,608,14,609],[14,611,14,615],[14,616,14,617],[14,571,14,575],[14,576,14,577],[14,579,14,583],[14,584,14,585],[14,587,14,591],[14,592,14,593],[14,691,14,695],[14,696,14,697],[14,699,14,703],[14,704,14,705],[14,707,14,711],[14,712,14,713],[14,667,14,671],[14,672,14,673],[14,675,14,679],[14,680,14,681],[14,683,14,687],[14,688,14,689],[14,643,14,647],[14,648,14,649],[14,651,14,655],[14,656,14,657],[14,659,14,663],[14,664,14,665],[14,763,14,767],[14,768,14,769],[14,771,14,775],[14,776,14,777],[14,779,14,783],[14,784,14,785],[14,739,14,743],[14,744,14,745],[14,747,14,751],[14,752,14,753],[14,755,14,759],[14,760,14,761],[14,715,14,719],[14,720,14,721],[14,723,14,727],[14,728,14,729],[14,731,14,735],[14,736,14,737],[14,835,14,839],[14,840,14,841],[14,843,14,847],[14,848,14,849],[14,851,14,855],[14,856,14,857],[14,811,14,815],[14,816,14,817],[14,819,14,823],[14,824,14,825],[14,827,14,831],[14,832,14,833],[14,787,14,791],[14,792,14,793],[14,795,14,799],[14,800,14,801],[14,803,14,807],[14,808,14,809],[14,907,14,911],[14,912,14,913],[14,915,14,919],[14,920,14,921],[14,923,14,927],[14,928,14,929],[14,883,14,887],[14,888,14,889],[14,891,14,895],[14,896,14,897],[14,899,14,903],[14,904,14,905],[14,859,14,863],[14,864,14,865],[14,867,14,871],[14,872,14,873],[14,875,14,879],[14,880,14,881],[14,979,14,983],[14,984,14,985],[14,987,14,991],[14,992,14,993],[14,995,14,999],[14,1000,14,1001],[14,955,14,959],[14,960,14,961],[14,963,14,967],[14,968,14,969],[14,971,14,975],[14,976,14,977],[14,931,14,935],[14,936,14,937],[14,939,14,943],[14,944,14,945],[14,947,14,951],[14,952,14,953],[14,1051,14,1055],[14,1056,14,1057],[14,1059,14,1063],[14,1064,14,1065],[14,1067,14,1071],[14,1072,14,1073],[14,1027,14,1031],[14,1032,14,1033],[14,1035,14,1039],[14,1040,14,1041],[14,1043,14,1047],[14,1048,14,1049],[14,1003,14,1007],[14,1008,14,1009],[14,1011,14,1015],[14,1016,14,1017],[14,1019,14,1023],[14,1024,14,1025],[14,1123,14,1127],[14,1128,14,1129],[14,1131,14,1135],[14,1136,14,1137],[14,1139,14,1143],[14,1144,14,1145],[14,1099,14,1103],[14,1104,14,1105],[14,1107,14,1111],[14,1112,14,1113],[14,1115,14,1119],[14,1120,14,1121],[14,1075,14,1079],[14,1080,14,1081],[14,1083,14,1087],[14,1088,14,1089],[14,1091,14,1095],[14,1096,14,1097],[14,1195,14,1199],[14,1200,14,1201],[14,1203,14,1207],[14,1208,14,1209],[14,1211,14,1215],[14,1216,14,1217],[14,1171,14,1175],[14,1176,14,1177],[14,1179,14,1183],[14,1184,14,1185],[14,1187,14,1191],[14,1192,14,1193],[14,1147,14,1151],[14,1152,14,1153],[14,1155,14,1159],[14,1160,14,1161],[14,1163,14,1167],[14,1168,14,1169],[14,1267,14,1271],[14,1272,14,1273],[14,1275,14,1279],[14,1280,14,1281],[14,1283,14,1287],[14,1288,14,1289],[14,1243,14,1247],[14,1248,14,1249],[14,1251,14,1255],[14,1256,14,1257],[14,1259,14,1263],[14,1264,14,1265],[14,1219,14,1223],[14,1224,14,1225],[14,1227,14,1231],[14,1232,14,1233],[14,1235,14,1239],[14,1240,14,1241],[14,1339,14,1343],[14,1344,14,1345],[14,1347,14,1351],[14,1352,14,1353],[14,1355,14,1359],[14,1360,14,1361],[14,1315,14,1319],[14,1320,14,1321],[14,1323,14,1327],[14,1328,14,1329],[14,1331,14,1335],[14,1336,14,1337],[14,1291,14,1295],[14,1296,14,1297],[14,1299,14,1303],[14,1304,14,1305],[14,1307,14,1311],[14,1312,14,1313],[14,1411,14,1415],[14,1416,14,1417],[14,1419,14,1423],[14,1424,14,1425],[14,1427,14,1431],[14,1432,14,1433],[14,1387,14,1391],[14,1392,14,1393],[14,1395,14,1399],[14,1400,14,1401],[14,1403,14,1407],[14,1408,14,1409],[14,1363,14,1367],[14,1368,14,1369],[14,1371,14,1375],[14,1376,14,1377],[14,1379,14,1383],[14,1384,14,1385],[14,1483,14,1487],[14,1488,14,1489],[14,1491,14,1495],[14,1496,14,1497],[14,1499,14,1503],[14,1504,14,1505],[14,1459,14,1463],[14,1464,14,1465],[14,1467,14,1471],[14,1472,14,1473],[14,1475,14,1479],[14,1480,14,1481],[14,1435,14,1439],[14,1440,14,1441],[14,1443,14,1447],[14,1448,14,1449],[14,1451,14,1455],[14,1456,14,1457],[14,1555,14,1559],[14,1560,14,1561],[14,1563,14,1567],[14,1568,14,1569],[14,1571,14,1575],[14,1576,14,1577],[14,1531,14,1535],[14,1536,14,1537],[14,1539,14,1543],[14,1544,14,1545],[14,1547,14,1551],[14,1552,14,1553],[14,1507,14,1511],[14,1512,14,1513],[14,1515,14,1519],[14,1520,14,1521],[14,1523,14,1527],[14,1528,14,1529],[14,1627,14,1631],[14,1632,14,1633],[14,1635,14,1639],[14,1640,14,1641],[14,1643,14,1647],[14,1648,14,1649],[14,1603,14,1607],[14,1608,14,1609],[14,1611,14,1615],[14,1616,14,1617],[14,1619,14,1623],[14,1624,14,1625],[14,1579,14,1583],[14,1584,14,1585],[14,1587,14,1591],[14,1592,14,1593],[14,1595,14,1599],[14,1600,14,1601],[14,1699,14,1703],[14,1704,14,1705],[14,1707,14,1711],[14,1712,14,1713],[14,1715,14,1719],[14,1720,14,1721],[14,1675,14,1679],[14,1680,14,1681],[14,1683,14,1687],[14,1688,14,1689],[14,1691,14,1695],[14,1696,14,1697],[14,1651,14,1655],[14,1656,14,1657],[14,1659,14,1663],[14,1664,14,1665],[14,1667,14,1671],[14,1672,14,1673],[14,1771,14,1775],[14,1776,14,1777],[14,1779,14,1783],[14,1784,14,1785],[14,1787,14,1791],[14,1792,14,1793],[14,1747,14,1751],[14,1752,14,1753],[14,1755,14,1759],[14,1760,14,1761],[14,1763,14,1767],[14,1768,14,1769],[14,1723,14,1727],[14,1728,14,1729],[14,1731,14,1735],[14,1736,14,1737],[14,1739,14,1743],[14,1744,14,1745],[14,1843,14,1847],[14,1848,14,1849],[14,1851,14,1855],[14,1856,14,1857],[14,1859,14,1863],[14,1864,14,1865],[14,1819,14,1823],[14,1824,14,1825],[14,1827,14,1831],[14,1832,14,1833],[14,1835,14,1839],[14,1840,14,1841],[14,1795,14,1799],[14,1800,14,1801],[14,1803,14,1807],[14,1808,14,1809],[14,1811,14,1815],[14,1816,14,1817],[14,1915,14,1919],[14,1920,14,1921],[14,1923,14,1927],[14,1928,14,1929],[14,1931,14,1935],[14,1936,14,1937],[14,1891,14,1895],[14,1896,14,1897],[14,1899,14,1903],[14,1904,14,1905],[14,1907,14,1911],[14,1912,14,1913],[14,1867,14,1871],[14,1872,14,1873],[14,1875,14,1879],[14,1880,14,1881],[14,1883,14,1887],[14,1888,14,1889],[14,1987,14,1991],[14,1992,14,1993],[14,1995,14,1999],[14,2000,14,2001],[14,2003,14,2007],[14,2008,14,2009],[14,1963,14,1967],[14,1968,14,1969],[14,1971,14,1975],[14,1976,14,1977],[14,1979,14,1983],[14,1984,14,1985],[14,1939,14,1943],[14,1944,14,1945],[14,1947,14,1951],[14,1952,14,1953],[14,1955,14,1959],[14,1960,14,1961],[14,2059,14,2063],[14,2064,14,2065],[14,2067,14,2071],[14,2072,14,2073],[14,2075,14,2079],[14,2080,14,2081],[14,2035,14,2039],[14,2040,14,2041],[14,2043,14,2047],[14,2048,14,2049],[14,2051,14,2055],[14,2056,14,2057],[14,2011,14,2015],[14,2016,14,2017],[14,2019,14,2023],[14,2024,14,2025],[14,2027,14,2031],[14,2032,14,2033],[14,2131,14,2135],[14,2136,14,2137],[14,2139,14,2143],[14,2144,14,2145],[14,2147,14,2151],[14,2152,14,2153],[14,2107,14,2111],[14,2112,14,2113],[14,2115,14,2119],[14,2120,14,2121],[14,2123,14,2127],[14,2128,14,2129],[14,2083,14,2087],[14,2088,14,2089],[14,2091,14,2095],[14,2096,14,2097],[14,2099,14,2103],[14,2104,14,2105],[14,2203,14,2207],[14,2208,14,2209],[14,2211,14,2215],[14,2216,14,2217],[14,2219,14,2223],[14,2224,14,2225],[14,2179,14,2183],[14,2184,14,2185],[14,2187,14,2191],[14,2192,14,2193],[14,2195,14,2199],[14,2200,14,2201],[14,2155,14,2159],[14,2160,14,2161],[14,2163,14,2167],[14,2168,14,2169],[14,2171,14,2175],[14,2176,14,2177],[14,2275,14,2279],[14,2280,14,2281],[14,2283,14,2287],[14,2288,14,2289],[14,2291,14,2295],[14,2296,14,2297],[14,2251,14,2255],[14,2256,14,2257],[14,2259,14,2263],[14,2264,14,2265],[14,2267,14,2271],[14,2272,14,2273],[14,2227,14,2231],[14,2232,14,2233],[14,2235,14,2239],[14,2240,14,2241],[14,2243,14,2247],[14,2248,14,2249],[14,2347,14,2351],[14,2352,14,2353],[14,2355,14,2359],[14,2360,14,2361],[14,2363,14,2367],[14,2368,14,2369],[14,2323,14,2327],[14,2328,14,2329],[14,2331,14,2335],[14,2336,14,2337],[14,2339,14,2343],[14,2344,14,2345],[14,2299,14,2303],[14,2304,14,2305],[14,2307,14,2311],[14,2312,14,2313],[14,2315,14,2319],[14,2320,14,2321],[14,2419,14,2423],[14,2424,14,2425],[14,2427,14,2431],[14,2432,14,2433],[14,2435,14,2439],[14,2440,14,2441],[14,2395,14,2399],[14,2400,14,2401],[14,2403,14,2407],[14,2408,14,2409],[14,2411,14,2415],[14,2416,14,2417],[14,2371,14,2375],[14,2376,14,2377],[14,2379,14,2383],[14,2384,14,2385],[14,2387,14,2391],[14,2392,14,2393],[14,2491,14,2495],[14,2496,14,2497],[14,2499,14,2503],[14,2504,14,2505],[14,2507,14,2511],[14,2512,14,2513],[14,2467,14,2471],[14,2472,14,2473],[14,2475,14,2479],[14,2480,14,2481],[14,2483,14,2487],[14,2488,14,2489],[14,2443,14,2447],[14,2448,14,2449],[14,2451,14,2455],[14,2456,14,2457],[14,2459,14,2463],[14,2464,14,2465],[14,2563,14,2567],[14,2568,14,2569],[14,2571,14,2575],[14,2576,14,2577],[14,2579,14,2583],[14,2584,14,2585],[14,2539,14,2543],[14,2544,14,2545],[14,2547,14,2551],[14,2552,14,2553],[14,2555,14,2559],[14,2560,14,2561],[14,2515,14,2519],[14,2520,14,2521],[14,2523,14,2527],[14,2528,14,2529],[14,2531,14,2535],[14,2536,14,2537],[14,2635,14,2639],[14,2640,14,2641],[14,2643,14,2647],[14,2648,14,2649],[14,2651,14,2655],[14,2656,14,2657],[14,2611,14,2615],[14,2616,14,2617],[14,2619,14,2623],[14,2624,14,2625],[14,2627,14,2631],[14,2632,14,2633],[14,2587,14,2591],[14,2592,14,2593],[14,2595,14,2599],[14,2600,14,2601],[14,2603,14,2607],[14,2608,14,2609],[14,2707,14,2711],[14,2712,14,2713],[14,2715,14,2719],[14,2720,14,2721],[14,2723,14,2727],[14,2728,14,2729],[14,2683,14,2687],[14,2688,14,2689],[14,2691,14,2695],[14,2696,14,2697],[14,2699,14,2703],[14,2704,14,2705],[14,2659,14,2663],[14,2664,14,2665],[14,2667,14,2671],[14,2672,14,2673],[14,2675,14,2679],[14,2680,14,2681],[14,2779,14,2783],[14,2784,14,2785],[14,2787,14,2791],[14,2792,14,2793],[14,2795,14,2799],[14,2800,14,2801],[14,2755,14,2759],[14,2760,14,2761],[14,2763,14,2767],[14,2768,14,2769],[14,2771,14,2775],[14,2776,14,2777],[14,2731,14,2735],[14,2736,14,2737],[14,2739,14,2743],[14,2744,14,2745],[14,2747,14,2751],[14,2752,14,2753],[14,2851,14,2855],[14,2856,14,2857],[14,2859,14,2863],[14,2864,14,2865],[14,2867,14,2871],[14,2872,14,2873],[14,2827,14,2831],[14,2832,14,2833],[14,2835,14,2839],[14,2840,14,2841],[14,2843,14,2847],[14,2848,14,2849],[14,2803,14,2807],[14,2808,14,2809],[14,2811,14,2815],[14,2816,14,2817],[14,2819,14,2823],[14,2824,14,2825],[14,2923,14,2927],[14,2928,14,2929],[14,2931,14,2935],[14,2936,14,2937],[14,2939,14,2943],[14,2944,14,2945],[14,2899,14,2903],[14,2904,14,2905],[14,2907,14,2911],[14,2912,14,2913],[14,2915,14,2919],[14,2920,14,2921],[14,2875,14,2879],[14,2880,14,2881],[14,2883,14,2887],[14,2888,14,2889],[14,2891,14,2895],[14,2896,14,2897],[14,2995,14,2999],[14,3000,14,3001],[14,3003,14,3007],[14,3008,14,3009],[14,3011,14,3015],[14,3016,14,3017],[14,2971,14,2975],[14,2976,14,2977],[14,2979,14,2983],[14,2984,14,2985],[14,2987,14,2991],[14,2992,14,2993],[14,2947,14,2951],[14,2952,14,2953],[14,2955,14,2959],[14,2960,14,2961],[14,2963,14,2967],[14,2968,14,2969],[14,3067,14,3071],[14,3072,14,3073],[14,3075,14,3079],[14,3080,14,3081],[14,3083,14,3087],[14,3088,14,3089],[14,3043,14,3047],[14,3048,14,3049],[14,3051,14,3055],[14,3056,14,3057],[14,3059,14,3063],[14,3064,14,3065],[14,3019,14,3023],[14,3024,14,3025],[14,3027,14,3031],[14,3032,14,3033],[14,3035,14,3039],[14,3040,14,3041],[14,3139,14,3143],[14,3144,14,3145],[14,3147,14,3151],[14,3152,14,3153],[14,3155,14,3159],[14,3160,14,3161],[14,3115,14,3119],[14,3120,14,3121],[14,3123,14,3127],[14,3128,14,3129],[14,3131,14,3135],[14,3136,14,3137],[14,3091,14,3095],[14,3096,14,3097],[14,3099,14,3103],[14,3104,14,3105],[14,3107,14,3111],[14,3112,14,3113],[14,3211,14,3215],[14,3216,14,3217],[14,3219,14,3223],[14,3224,14,3225],[14,3227,14,3231],[14,3232,14,3233],[14,3187,14,3191],[14,3192,14,3193],[14,3195,14,3199],[14,3200,14,3201],[14,3203,14,3207],[14,3208,14,3209],[14,3163,14,3167],[14,3168,14,3169],[14,3171,14,3175],[14,3176,14,3177],[14,3179,14,3183],[14,3184,14,3185],[14,3283,14,3287],[14,3288,14,3289],[14,3291,14,3295],[14,3296,14,3297],[14,3299,14,3303],[14,3304,14,3305],[14,3259,14,3263],[14,3264,14,3265],[14,3267,14,3271],[14,3272,14,3273],[14,3275,14,3279],[14,3280,14,3281],[14,3235,14,3239],[14,3240,14,3241],[14,3243,14,3247],[14,3248,14,3249],[14,3251,14,3255],[14,3256,14,3257],[14,3355,14,3359],[14,3360,14,3361],[14,3363,14,3367],[14,3368,14,3369],[14,3371,14,3375],[14,3376,14,3377],[14,3331,14,3335],[14,3336,14,3337],[14,3339,14,3343],[14,3344,14,3345],[14,3347,14,3351],[14,3352,14,3353],[14,3307,14,3311],[14,3312,14,3313],[14,3315,14,3319],[14,3320,14,3321],[14,3323,14,3327],[14,3328,14,3329],[14,3427,14,3431],[14,3432,14,3433],[14,3435,14,3439],[14,3440,14,3441],[14,3443,14,3447],[14,3448,14,3449],[14,3403,14,3407],[14,3408,14,3409],[14,3411,14,3415],[14,3416,14,3417],[14,3419,14,3423],[14,3424,14,3425],[14,3379,14,3383],[14,3384,14,3385],[14,3387,14,3391],[14,3392,14,3393],[14,3395,14,3399],[14,3400,14,3401],[14,3499,14,3503],[14,3504,14,3505],[14,3507,14,3511],[14,3512,14,3513],[14,3515,14,3519],[14,3520,14,3521],[14,3475,14,3479],[14,3480,14,3481],[14,3483,14,3487],[14,3488,14,3489],[14,3491,14,3495],[14,3496,14,3497],[14,3451,14,3455],[14,3456,14,3457],[14,3459,14,3463],[14,3464,14,3465],[14,3467,14,3471],[14,3472,14,3473],[14,3571,14,3575],[14,3576,14,3577],[14,3579,14,3583],[14,3584,14,3585],[14,3587,14,3591],[14,3592,14,3593],[14,3547,14,3551],[14,3552,14,3553],[14,3555,14,3559],[14,3560,14,3561],[14,3563,14,3567],[14,3568,14,3569],[14,3523,14,3527],[14,3528,14,3529],[14,3531,14,3535],[14,3536,14,3537],[14,3539,14,3543],[14,3544,14,3545],[14,3643,14,3647],[14,3648,14,3649],[14,3651,14,3655],[14,3656,14,3657],[14,3659,14,3663],[14,3664,14,3665],[14,3619,14,3623],[14,3624,14,3625],[14,3627,14,3631],[14,3632,14,3633],[14,3635,14,3639],[14,3640,14,3641],[14,3595,14,3599],[14,3600,14,3601],[14,3603,14,3607],[14,3608,14,3609],[14,3611,14,3615],[14,3616,14,3617],[14,3715,14,3719],[14,3720,14,3721],[14,3723,14,3727],[14,3728,14,3729],[14,3731,14,3735],[14,3736,14,3737],[14,3691,14,3695],[14,3696,14,3697],[14,3699,14,3703],[14,3704,14,3705],[14,3707,14,3711],[14,3712,14,3713],[14,3667,14,3671],[14,3672,14,3673],[14,3675,14,3679],[14,3680,14,3681],[14,3683,14,3687],[14,3688,14,3689],[14,3787,14,3791],[14,3792,14,3793],[14,3795,14,3799],[14,3800,14,3801],[14,3803,14,3807],[14,3808,14,3809],[14,3763,14,3767],[14,3768,14,3769],[14,3771,14,3775],[14,3776,14,3777],[14,3779,14,3783],[14,3784,14,3785],[14,3739,14,3743],[14,3744,14,3745],[14,3747,14,3751],[14,3752,14,3753],[14,3755,14,3759],[14,3760,14,3761],[14,3859,14,3863],[14,3864,14,3865],[14,3867,14,3871],[14,3872,14,3873],[14,3875,14,3879],[14,3880,14,3881],[14,3835,14,3839],[14,3840,14,3841],[14,3843,14,3847],[14,3848,14,3849],[14,3851,14,3855],[14,3856,14,3857],[14,3811,14,3815],[14,3816,14,3817],[14,3819,14,3823]],"merged_total":4145,"flags":["merged_cut"]}
["Solicitud de Información General"]
[]
[]
[]
["2. Personal ",null,null,null,null,null,null,null,null,"Observaciones Sede ___\n*Escriba el número de la sede"]
["*"]
["Tiempo completo",null,null,null,null,null,null,null,null,"Observaciones Personal Tiempo Completo"]
["Inserte el número de filas de acuerdo con la cantidad de perfiles solicitados por la Entidad en la Solicitud de Información General"]
["Número de fila ",null,null,"Perfil del operario que requiere la Entidad en la sede"]
[]
[]
["Medio Tiempo",null,null,null,null,null,null,null,null,"Observaciones Personal Medio Tiempo"]
["Inserte el número de filas de acuerdo con la cantidad de perfiles solicitados por la Entidad en la Solicitud de Información General"]
["Número de fila ",null,null,"Perfil del operario que requiere la Entidad en la sede"]
[]
[]
["Personal por Turnos",null,null,null,null,null,null,null,null,"Observaciones Personal Por Turnos"]
["Inserte el número de filas de acuerdo con la cantidad de perfiles solicitados por la Entidad en la Solicitud de Información General"]
["Número de fila ",null,null,"Perfil del operario que requiere la Entidad en la sede"]
[]
[]
["Disminución del personal",null,null,null,null,null,null,null,null,"Observaciones Disminución de Personal"]
["Inserte el número de filas de acuerdo con la cantidad de perfiles solicitados en la disminución"]
["Número de fila ",null,null,"Perfil del operario que requiere la Entidad en la sede"]
[]
[]
["Observaciones sobre la dotación del personal "]
[]
["3. Bienes de Aseo y Cafetería ",null,null,null,null,null,null,null,null,"Observaciones de los Bienes de Aseo y Cfetería"]
["Inserte el número de filas de acuerdo con la cantidad de Bienes solicitados por la Entidad en el Detalle de Bienes de Aseo y Caf"]
["Número de fila ",null,null,"Nombre del Bien "]
[]
[]
[]
["4. Servicios Especiales",null,null,null,null,null,null,null,null,"Observaciones Servicios Generales"]
[]
["1. Fumigación",null,{"$f":"IF($C38<100,\"No\",\"Sí\")","v":"No"},"N° de fumigaciones requeridas durante la Orden de Compra"]
["Total en m2 ",null,{"$f":"SUM(J38)","v":0}]
[]
["2. Jardinería",null,{"$f":"IF($C41<100,\"No\",\"Sí\")","v":"No"}]
["Área total de la zona verde a mantener en m2: ",null,{"$f":"SUM(J41)","v":0}]
[]
[]
["3. Trabajo en alturas nivel avanzado"]
[]
[]
["6. Observaciones generales"]

{"sheet":"ConsolidadoServicios","index":6,"n_rows":0,"n_cols":0,"rows_kept":0,"cut":false,"hidden":true,"merged":[]}

{"sheet":"solCotizacionCSV_es","index":7,"n_rows":0,"n_cols":0,"rows_kept":0,"cut":false,"hidden":true,"merged":[]}

{"sheet":"Listas","index":8,"n_rows":23,"n_cols":28,"rows_kept":23,"cut":false,"hidden":true,"merged":[]}
["RegionCobertura","TipoInstalacion","TipoServicioSede","check","Confirmacion","Hora","meridiano","PersonalTC","PersonalMT","PersonalTurno","regioncobertura1","regioncobertura2","regioncobertura3","regioncobertura4","regioncobertura5","regioncobertura6","regioncobertura7","regioncobertura8","regioncobertura9","regioncobertura10","regioncobertura11","regioncobertura12","regioncobertura13","regioncobertura14","regioncobertura15","regioncobertura16","regioncobertura17","regioncobertura18"]
[1,"Batallón","Aseo","X","Sí","08:00:00","a.m.","Operario de aseo","Operario de aseo","Turno operario de mantenimiento","Asecolbas Ltda","Arios Colombia Sas","Arios Colombia Sas","Arios Colombia Sas","Arios Colombia Sas","Arios Colombia Sas","Arios Colombia Sas","Arios Colombia Sas","Arios Colombia Sas","Asecolbas Ltda","Aseos Colombianos Aseocolba S.A","Aseos Colombianos Aseocolba S.A","Aseos Colombianos Aseocolba S.A","Arios Colombia Sas","Arios Colombia Sas","Asecolbas Ltda","Aseos Colombianos Aseocolba S.A","Aseos Colombianos Aseocolba S.A"]
[2,"Campestre","Aseo y cafetería",null,"No","08:30:00","p.m.","Operario de cafetería","Operario de cafetería","Turno operario de mantenimiento capacitado para trabajo en alturas nivel básico","Aseos Colombianos Aseocolba S.A","Aseos Colombianos Aseocolba S.A","Aseovil Ltda","Asecolbas Ltda","Asecolbas Ltda","Asecolbas Ltda","Aseovil Ltda","Asecolbas Ltda","Asecolbas Ltda","Centro Aseo Mantenimiento Profesional S.A.S.","Brillaseo S.A.S.","Cleaner S.A.","Cleaner S.A.","Aseos Colombianos Aseocolba S.A","Asecolbas Ltda","Aseos Colombianos Aseocolba S.A","Cleaner S.A.","Cleaner S.A."]
[3,"Club","Aseo, cafetería y mantenimiento",null,null,"09:00:00",null,"Operario de aseo y cafetería","Operario de aseo y cafetería","Turno coordinador de trabajo en alturas nivel básico","Centro Aseo Mantenimiento Profesional S.A.S.","Aseovil Ltda","Centro Aseo Mantenimiento Profesional S.A.S.","Aseovil Ltda","Aseos Colombianos Aseocolba S.A","Centro Aseo Mantenimiento Profesional S.A.S.","Centro Aseo Mantenimiento Profesional S.A.S.","Centro Aseo Mantenimiento Profesional S.A.S.","Centro Aseo Mantenimiento Profesional S.A.S.","Cleaner S.A.","Centro Aseo Mantenimiento Profesional S.A.S.","Conserjes Inmobiliarios Ltda","Conserjes Inmobiliarios Ltda","Cleaner S.A.","Aseos Colombianos Aseocolba S.A","Cleaner S.A.","Conserjes Inmobiliarios Ltda","Conserjes Inmobiliarios Ltda"]
[4,"Colegio","Aseo y mantenimiento",null,null,"09:30:00",null,"Operario de mantenimiento","Operario de mantenimiento",null,"Cleaner S.A.","Brillaseo S.A.S.","Cleaner S.A.","Brillaseo S.A.S.","Brillaseo S.A.S.","Cleaner S.A.","Cleaner S.A.","Cleaner S.A.","Cleaner S.A.","Conserjes Inmobiliarios Ltda","Cleaner S.A.","Easyclean G&E S.A.S.","Easyclean G&E S.A.S.","Conserjes Inmobiliarios Ltda","Cleaner S.A.","Conserjes Inmobiliarios Ltda","Easyclean G&E S.A.S.","Easyclean G&E S.A.S."]
[5,"Edificio administrativo",null,null,null,"10:00:00",null,"Operario auxiliar","Operario auxiliar",null,"Compañía De Aseos Aseocar Ltda","Centro Aseo Mantenimiento Profesional S.A.S.","Compañía De Aseos Aseocar Ltda","Centro Aseo Mantenimiento Profesional S.A.S.","Centro Aseo Mantenimiento Profesional S.A.S.","Conserjes Inmobiliarios Ltda","Conserjes Inmobiliarios Ltda","Conserjes Inmobiliarios Ltda","Conserjes Inmobiliarios Ltda","Easyclean G&E S.A.S.","Conserjes Inmobiliarios Ltda","Serdan S.A","Serdan S.A","Easyclean G&E S.A.S.","Conserjes Inmobiliarios Ltda","Easyclean G&E S.A.S.","Serdan S.A","Serdan S.A"]
[6,"Otro",null,null,null,"10:30:00",null,"Coordinador de tiempo completo","Jardinero",null,"Conserjes Inmobiliarios Ltda","Cleaner S.A.","Conserjes Inmobiliarios Ltda","Cleaner S.A.","Cleaner S.A.","Easyclean G&E S.A.S.","Easyclean G&E S.A.S.","Easyclean G&E S.A.S.","Easyclean G&E S.A.S.","Mr Clean S.A.","Easyclean G&E S.A.S.","Union Temporal Aseo Colombia","Union Temporal Aseo Colombia","Serdan S.A","Easyclean G&E S.A.S.","Serdan S.A","Union Temporal Aseo Colombia","Union Temporal Aseo Colombia"]
[7,null,null,null,null,"11:00:00",null,"Jardinero","Operario de mantenimiento capacitado para trabajo en alturas nivel básico",null,"Easyclean G&E S.A.S.","Compañía De Aseos Aseocar Ltda","Easyclean G&E S.A.S.","Conserjes Inmobiliarios Ltda","Conserjes Inmobiliarios Ltda","Representaciones E Inversiones Elite Ltda","Mr Clean S.A.","Florez & Alvarez S.A.","Mr Clean S.A.","Representaciones E Inversiones Elite Ltda","Florez & Alvarez S.A.","Union Temporal Servi Eficiente 2016","Union Temporal Servi Eficiente 2016","Union Temporal Aseo Colombia","Serdan S.A","Union Temporal Aseo Colombia","Union Temporal Servi Eficiente 2016","Union Temporal Servi Eficiente 2016"]
[8,null,null,null,null,"11:30:00",null,"Operario de mantenimiento capacitado para trabajo en alturas nivel básico","Operario auxiliar capacitado para trabajo en alturas nivel básico",null,"Florez & Alvarez S.A.","Conserjes Inmobiliarios Ltda","Eco Servir S.A.S.","Easyclean G&E S.A.S.","Easyclean G&E S.A.S.","Serdan S.A","N&R Integral Service Company Sas","Ladoinsa Labores Dotaciones Industriales S.A.S","N&R Integral Service Company Sas","Serdan S.A","Ladoinsa Labores Dotaciones Industriales S.A.S",null,null,"Union Temporal Servi Eficiente 2016","Union Temporal Aseo Colombia","Union Temporal Servi Eficiente 2016"]
[9,null,null,null,null,"12:00:00",null,"Operario auxiliar capacitado para trabajo en alturas nivel básico","Jardinero capacitado para trabajo en alturas nivel básico",null,"Mr Clean S.A.","Easyclean G&E S.A.S.","Mr Clean S.A.","Eco Servir S.A.S.","Ladoinsa Labores Dotaciones Industriales S.A.S","Servi Limpieza S.A.","Representaciones E Inversiones Elite Ltda","Mr Clean S.A.","Representaciones E Inversiones Elite Ltda","Servi Limpieza S.A.","Representaciones E Inversiones Elite Ltda",null,null,null,"Union Temporal Servi Eficiente 2016"]
[10,null,null,null,null,"12:30:00",null,"Jardinero capacitado para trabajo en alturas nivel básico","Coordinador de trabajo en alturas nivel básico",null,"Representaciones E Inversiones Elite Ltda","Eco Servir S.A.S.","Representaciones E Inversiones Elite Ltda","Ladoinsa Labores Dotaciones Industriales S.A.S","Mr Clean S.A.","Servicios De Aseo, Cafeteria Y Mantenimiento Institucional Outsourcing Seasin Limitada","Serdan S.A","N&R Integral Service Company Sas","Serdan S.A","Serviaseo S.A","Serdan S.A"]
[11,null,null,null,null,"01:00:00",null,"Coordinador de trabajo en alturas nivel básico",null,null,"Serdan S.A","Ladoinsa Labores Dotaciones Industriales S.A.S","Serdan S.A","Mr Clean S.A.","Representaciones E Inversiones Elite Ltda","Union Temporal Aseo Colombia","Servi Limpieza S.A.","Representaciones E Inversiones Elite Ltda","Servi Limpieza S.A.","Servicio Integral Talentos Ltda","Servi Limpieza S.A."]
[12,null,null,null,null,"01:30:00",null,null,null,null,"Servi Limpieza S.A.","Mr Clean S.A.","Servi Limpieza S.A.","N&R Integral Service Company Sas","Serdan S.A","Union Temporal Eminser - Soloaseo 2016","Servicios De Aseo, Cafeteria Y Mantenimiento Institucional Outsourcing Seasin Limitada","Serdan S.A","Servicio Integral Talentos Ltda","Servicios De Aseo, Cafeteria Y Mantenimiento Institucional Outsourcing Seasin Limitada","Serviaseo S.A"]
[13,null,null,null,null,"02:00:00",null,null,null,null,"Servicios De Aseo, Cafeteria Y Mantenimiento Institucional Outsourcing Seasin Limitada","Representaciones E Inversiones Elite Ltda","Servicios De Aseo, Cafeteria Y Mantenimiento Institucional Outsourcing Seasin Limitada","Representaciones E Inversiones Elite Ltda","Servicios De Aseo, Cafeteria Y Mantenimiento Institucional Outsourcing Seasin Limitada","Union Temporal Servi Eficiente 2016","Union Temporal Aseo Colombia","Servi Limpieza S.A.","Servicios De Aseo, Cafeteria Y Mantenimiento Institucional Outsourcing Seasin Limitada","Union Temporal Aseo Colombia","Servicios De Aseo, Cafeteria Y Mantenimiento Institucional Outsourcing Seasin Limitada"]
[14,null,null,null,null,"02:30:00",null,null,null,null,"Union Temporal Aseo Colombia","Serdan S.A","Serviespeciales S.A.S.","Serdan S.A","Serviespeciales S.A.S.",null,"Union Temporal Biolimpieza","Serviaseo S.A","Union Temporal Aseo Colombia","Union Temporal Eminser - Soloaseo 2016","Serviespeciales S.A.S."]
[15,null,null,null,null,"03:00:00",null,null,null,null,"Union Temporal Eminser - Soloaseo 2016","Servi Limpieza S.A.","Union Temporal Aseo Colombia","Servi Limpieza S.A.","Union Temporal Aseo Colombia",null,"Union Temporal Eminser - Soloaseo 2016","Servicios De Aseo, Cafeteria Y Mantenimiento Institucional Outsourcing Seasin Limitada","Union Temporal Eminser - Soloaseo 2016","Union Temporal Servi Eficiente 2016","Union Temporal Aseo Colombia"]
[16,null,null,null,null,"03:30:00",null,null,null,null,"Union Temporal Servi Eficiente 2016","Servicios De Aseo, Cafeteria Y Mantenimiento Institucional Outsourcing Seasin Limitada","Union Temporal Biolimpieza","Servicios De Aseo, Cafeteria Y Mantenimiento Institucional Outsourcing Seasin Limitada","Union Temporal Biolimpieza",null,"Union Temporal Servi Eficiente 2016","Serviespeciales S.A.S.","Union Temporal Servi Eficiente 2016",null,"Union Temporal Biolimpieza"]
[17,null,null,null,null,"04:00:00",null,null,null,null,null,"Union Temporal Aseo Colombia","Union Temporal Eminser - Soloaseo 2016","Serviespeciales S.A.S.","Union Temporal Eminser - Soloaseo 2016",null,"Unión Temporal Servicol 2016","Union Temporal Aseo Colombia",null,null,"Union Temporal Eminser - Soloaseo 2016"]
[18,null,null,null,null,"04:30:00",null,null,null,null,null,"Union Temporal Eminser - Soloaseo 2016","Union Temporal Servi Eficiente 2016","Union Temporal Aseo Colombia","Union Temporal Servi Eficiente 2016",null,null,"Union Temporal Eminser - Soloaseo 2016",null,null,"Union Temporal Servi Eficiente 2016"]
[null,null,null,null,null,"05:00:00",null,null,null,null,null,"Union Temporal Servi Eficiente 2016","Unión Temporal Servicol 2016","Union Temporal Biolimpieza","Unión Temporal Servicol 2016",null,null,"Union Temporal Servi Eficiente 2016"]
[null,null,null,null,null,null,null,null,null,null,null,null,null,"Union Temporal Eminser - Soloaseo 2016",null,null,null,"Unión Temporal Servicol 2016"]
[null,null,null,null,null,null,null,null,null,null,null,null,null,"Union Temporal Servi Eficiente 2016"]
[null,null,null,null,null,null,null,null,null,null,null,null,null,"Unión Temporal Servicol 2016"]

{"sheet":"ClasifiPersonal","index":9,"n_rows":23,"n_cols":1,"rows_kept":23,"cut":false,"hidden":true,"merged":[]}
["Perfil"]
["Operario de aseo y cafetería con compromiso social"]
["Operario de aseo y cafetería"]
["Operario de mantenimiento"]
["Operario auxiliar"]
["Coordinador de tiempo completo"]
["Jardinero"]
["Operario de mantenimiento capacitado para trabajo en alturas"]
["Operario auxiliar capacitado para trabajo en alturas"]
["Jardinero capacitado para trabajo en alturas"]
["Coordinador de trabajo en alturas"]
["Turno operario de mantenimiento"]
["Turno operario de mantenimiento capacitado para trabajo en alturas nivel básico"]
["Turno coordinador de trabajo en alturas nivel básico"]
["Operario de aseo y cafetería MT"]
["Operario de mantenimiento MT"]
["Operario auxiliar MT"]
["Coordinador MT"]
["Jardinero MT"]
["Operario de mantenimiento capacitado para trabajo en alturas MT"]
["Operario auxiliar capacitado para trabajo en alturas MT"]
["Jardinero capacitado para trabajo en alturas MT"]
["Coordinador de trabajo en alturas MT"]

{"sheet":"TablaDinamica","index":10,"n_rows":0,"n_cols":0,"rows_kept":0,"cut":false,"hidden":true,"merged":[]}

{"sheet":"temp","index":11,"n_rows":0,"n_cols":0,"rows_kept":0,"cut":false,"hidden":true,"merged":[]}

{"sheet":"Precios","index":12,"n_rows":0,"n_cols":0,"rows_kept":0,"cut":false,"hidden":true,"merged":[]}